Workbook

Sheet Up in E1 (E1xM1)
A1: Additional file 2: Differentially expressed transcripts (DETs) in embryos and megagametophytes at different stages of seed development.
A2: The Arabidopsis genes showing the highest sequence similarity to the Scots pine transcript are presented (#N/A = no alignment to genes in the TAIR database. Cut off value 1e-5)
A3: The highest up-regulated transcripts in E1/M1. Samples subjected to pairwise comparison are highlighted in bold
C4: RPKM Embryos | H4: RPKM Megagametophytes | N4: Arabidopsis homologous gene names and annotation
A5: Transcript ID | B5: Fold change | C5: E1 | D5: E2 | E5: E3DO | F5: E3SU | G5: E4 | H5: M1 | I5: M2 | J5: M3 | K5: M4 | L5: At locus ID | M5: At name | N5: At annotation | O5: Involved in
A6: isotig42299 | B6: 9.97 | C6: =VLOOKUP(A6,'[1]all genes'!$A:$K,3,FALSE) -> 344.004 | D6: =VLOOKUP(A6,'[1]all genes'!$A:$K,4,FALSE) -> 82.784 | E6: =VLOOKUP(A6,'[1]all genes'!$A:$K,5,FALSE) -> 93.16 | F6: =VLOOKUP(A6,'[1]all genes'!$A:$K,6,FALSE) -> 206.886 | G6: =VLOOKUP(A6,'[1]all genes'!$A:$K,7,FALSE) -> 7.429 | H6: =VLOOKUP(A6,'[1]all genes'!$A:$K,8,FALSE) -> 0.342 | I6: =VLOOKUP(A6,'[1]all genes'!$A:$K,9,FALSE) -> 0 | J6: =VLOOKUP(A6,'[1]all genes'!$A:$K,10,FALSE) -> 0.653 | K6: =VLOOKUP(A6,'[1]all genes'!$A:$K,11,FALSE) -> 0.734 | L6: No hits
A7: isotig101972 | B7: 9.73 | C7: =VLOOKUP(A7,'[1]all genes'!$A:$K,3,FALSE) -> 2337.312 | D7: =VLOOKUP(A7,'[1]all genes'!$A:$K,4,FALSE) -> 1557.12 | E7: =VLOOKUP(A7,'[1]all genes'!$A:$K,5,FALSE) -> 774.994 | F7: =VLOOKUP(A7,'[1]all genes'!$A:$K,6,FALSE) -> 1080.524 | G7: =VLOOKUP(A7,'[1]all genes'!$A:$K,7,FALSE) -> 331.704 | H7: =VLOOKUP(A7,'[1]all genes'!$A:$K,8,FALSE) -> 2.751 | I7: =VLOOKUP(A7,'[1]all genes'!$A:$K,9,FALSE) -> 0 | J7: =VLOOKUP(A7,'[1]all genes'!$A:$K,10,FALSE) -> 0 | K7: =VLOOKUP(A7,'[1]all genes'!$A:$K,11,FALSE) -> 1.477 | L7: No hits
A8: isotig56640 | B8: 8.96 | C8: =VLOOKUP(A8,'[1]all genes'!$A:$K,3,FALSE) -> 366.459 | D8: =VLOOKUP(A8,'[1]all genes'!$A:$K,4,FALSE) -> 151.191 | E8: =VLOOKUP(A8,'[1]all genes'!$A:$K,5,FALSE) -> 102.056 | F8: =VLOOKUP(A8,'[1]all genes'!$A:$K,6,FALSE) -> 132.601 | G8: =VLOOKUP(A8,'[1]all genes'!$A:$K,7,FALSE) -> 21.066 | H8: =VLOOKUP(A8,'[1]all genes'!$A:$K,8,FALSE) -> 0.736 | I8: =VLOOKUP(A8,'[1]all genes'!$A:$K,9,FALSE) -> 0.459 | J8: =VLOOKUP(A8,'[1]all genes'!$A:$K,10,FALSE) -> 0.469 | K8: =VLOOKUP(A8,'[1]all genes'!$A:$K,11,FALSE) -> 0.527 | L8: No hits
A9: isotig56593 | B9: 7.60 | C9: =VLOOKUP(A9,'[1]all genes'!$A:$K,3,FALSE) -> 187.22 | D9: =VLOOKUP(A9,'[1]all genes'!$A:$K,4,FALSE) -> 137.64 | E9: =VLOOKUP(A9,'[1]all genes'!$A:$K,5,FALSE) -> 88.341 | F9: =VLOOKUP(A9,'[1]all genes'!$A:$K,6,FALSE) -> 130.891 | G9: =VLOOKUP(A9,'[1]all genes'!$A:$K,7,FALSE) -> 36.077 | H9: =VLOOKUP(A9,'[1]all genes'!$A:$K,8,FALSE) -> 0.968 | I9: =VLOOKUP(A9,'[1]all genes'!$A:$K,9,FALSE) -> 0.907 | J9: =VLOOKUP(A9,'[1]all genes'!$A:$K,10,FALSE) -> 1.388 | K9: =VLOOKUP(A9,'[1]all genes'!$A:$K,11,FALSE) -> 1.56 | L9: No hits
A10: isotig39291 | B10: 7.18 | C10: =VLOOKUP(A10,'[1]all genes'!$A:$K,3,FALSE) -> 209.836 | D10: =VLOOKUP(A10,'[1]all genes'!$A:$K,4,FALSE) -> 16.905 | E10: =VLOOKUP(A10,'[1]all genes'!$A:$K,5,FALSE) -> 48.413 | F10: =VLOOKUP(A10,'[1]all genes'!$A:$K,6,FALSE) -> 0.699 | G10: =VLOOKUP(A10,'[1]all genes'!$A:$K,7,FALSE) -> 3.752 | H10: =VLOOKUP(A10,'[1]all genes'!$A:$K,8,FALSE) -> 1.45 | I10: =VLOOKUP(A10,'[1]all genes'!$A:$K,9,FALSE) -> 0.679 | J10: =VLOOKUP(A10,'[1]all genes'!$A:$K,10,FALSE) -> 1.386 | K10: =VLOOKUP(A10,'[1]all genes'!$A:$K,11,FALSE) -> 0.779 | L10: AT4G26880.1 | N10: Stigma-specific STIG1-like protein 1 | O10: unknown
A11: isotig11848 | B11: 7.17 | C11: =VLOOKUP(A11,'[1]all genes'!$A:$K,3,FALSE) -> 1043.502 | D11: =VLOOKUP(A11,'[1]all genes'!$A:$K,4,FALSE) -> 656.052 | E11: =VLOOKUP(A11,'[1]all genes'!$A:$K,5,FALSE) -> 442.745 | F11: =VLOOKUP(A11,'[1]all genes'!$A:$K,6,FALSE) -> 666.113 | G11: =VLOOKUP(A11,'[1]all genes'!$A:$K,7,FALSE) -> 166.769 | H11: =VLOOKUP(A11,'[1]all genes'!$A:$K,8,FALSE) -> 7.264 | I11: =VLOOKUP(A11,'[1]all genes'!$A:$K,9,FALSE) -> 5.565 | J11: =VLOOKUP(A11,'[1]all genes'!$A:$K,10,FALSE) -> 4.417 | K11: =VLOOKUP(A11,'[1]all genes'!$A:$K,11,FALSE) -> 5.319 | L11: No hits
A12: isotig38581 | B12: 7.15 | C12: =VLOOKUP(A12,'[1]all genes'!$A:$K,3,FALSE) -> 53.73 | D12: =VLOOKUP(A12,'[1]all genes'!$A:$K,4,FALSE) -> 113.592 | E12: =VLOOKUP(A12,'[1]all genes'!$A:$K,5,FALSE) -> 69.151 | F12: =VLOOKUP(A12,'[1]all genes'!$A:$K,6,FALSE) -> 214.241 | G12: =VLOOKUP(A12,'[1]all genes'!$A:$K,7,FALSE) -> 43.036 | H12: =VLOOKUP(A12,'[1]all genes'!$A:$K,8,FALSE) -> 0.378 | I12: =VLOOKUP(A12,'[1]all genes'!$A:$K,9,FALSE) -> 0.354 | J12: =VLOOKUP(A12,'[1]all genes'!$A:$K,10,FALSE) -> 0.722 | K12: =VLOOKUP(A12,'[1]all genes'!$A:$K,11,FALSE) -> 2.03 | L12: AT5G09970.1 | M12: CYP78A7 | N12: Cytochrome P450 78A7 | O12: regulation of growth
A13: isotig62881 | B13: 7.06 | C13: =VLOOKUP(A13,'[1]all genes'!$A:$K,3,FALSE) -> 129.984 | D13: =VLOOKUP(A13,'[1]all genes'!$A:$K,4,FALSE) -> 0.632 | E13: =VLOOKUP(A13,'[1]all genes'!$A:$K,5,FALSE) -> 0 | F13: =VLOOKUP(A13,'[1]all genes'!$A:$K,6,FALSE) -> 0 | G13: =VLOOKUP(A13,'[1]all genes'!$A:$K,7,FALSE) -> 0.505 | H13: =VLOOKUP(A13,'[1]all genes'!$A:$K,8,FALSE) -> 0.976 | I13: =VLOOKUP(A13,'[1]all genes'!$A:$K,9,FALSE) -> 0 | J13: =VLOOKUP(A13,'[1]all genes'!$A:$K,10,FALSE) -> 0 | K13: =VLOOKUP(A13,'[1]all genes'!$A:$K,11,FALSE) -> 0 | L13: AT5G53190.1 | M13: SWEET3 | N13: Bidirectional sugar transporter SWEET3 | O13: carbohydrate transmembrane transport
A14: isotig61160 | B14: 7.03 | C14: =VLOOKUP(A14,'[1]all genes'!$A:$K,3,FALSE) -> 112.2 | D14: =VLOOKUP(A14,'[1]all genes'!$A:$K,4,FALSE) -> 5.563 | E14: =VLOOKUP(A14,'[1]all genes'!$A:$K,5,FALSE) -> 3.929 | F14: =VLOOKUP(A14,'[1]all genes'!$A:$K,6,FALSE) -> 0 | G14: =VLOOKUP(A14,'[1]all genes'!$A:$K,7,FALSE) -> 0.889 | H14: =VLOOKUP(A14,'[1]all genes'!$A:$K,8,FALSE) -> 0.859 | I14: =VLOOKUP(A14,'[1]all genes'!$A:$K,9,FALSE) -> 0 | J14: =VLOOKUP(A14,'[1]all genes'!$A:$K,10,FALSE) -> 0.41 | K14: =VLOOKUP(A14,'[1]all genes'!$A:$K,11,FALSE) -> 0 | L14: AT1G22380.1 | M14: UGT85A3 | N14: UDP-glycosyltransferase 85A3 | O14: transferase activity
A15: isotig40165 | B15: 6.85 | C15: =VLOOKUP(A15,'[1]all genes'!$A:$K,3,FALSE) -> 768.679 | D15: =VLOOKUP(A15,'[1]all genes'!$A:$K,4,FALSE) -> 486.064 | E15: =VLOOKUP(A15,'[1]all genes'!$A:$K,5,FALSE) -> 306.871 | F15: =VLOOKUP(A15,'[1]all genes'!$A:$K,6,FALSE) -> 402.103 | G15: =VLOOKUP(A15,'[1]all genes'!$A:$K,7,FALSE) -> 158.957 | H15: =VLOOKUP(A15,'[1]all genes'!$A:$K,8,FALSE) -> 6.667 | I15: =VLOOKUP(A15,'[1]all genes'!$A:$K,9,FALSE) -> 3.344 | J15: =VLOOKUP(A15,'[1]all genes'!$A:$K,10,FALSE) -> 5.916 | K15: =VLOOKUP(A15,'[1]all genes'!$A:$K,11,FALSE) -> 7.416 | L15: No hits
A16: isotig50289 | B16: 6.84 | C16: =VLOOKUP(A16,'[1]all genes'!$A:$K,3,FALSE) -> 170.753 | D16: =VLOOKUP(A16,'[1]all genes'!$A:$K,4,FALSE) -> 18.333 | E16: =VLOOKUP(A16,'[1]all genes'!$A:$K,5,FALSE) -> 23.848 | F16: =VLOOKUP(A16,'[1]all genes'!$A:$K,6,FALSE) -> 0 | G16: =VLOOKUP(A16,'[1]all genes'!$A:$K,7,FALSE) -> 0.771 | H16: =VLOOKUP(A16,'[1]all genes'!$A:$K,8,FALSE) -> 1.49 | I16: =VLOOKUP(A16,'[1]all genes'!$A:$K,9,FALSE) -> 2.092 | J16: =VLOOKUP(A16,'[1]all genes'!$A:$K,10,FALSE) -> 2.136 | K16: =VLOOKUP(A16,'[1]all genes'!$A:$K,11,FALSE) -> 1.6 | L16: AT1G02335.1 | M16: GL22 | N16: Germin-like protein subfamily 2 member 2 | O16: metal ion binding; nutrient reservoir activity
A17: isotig62762 | B17: 6.76 | C17: =VLOOKUP(A17,'[1]all genes'!$A:$K,3,FALSE) -> 373.053 | D17: =VLOOKUP(A17,'[1]all genes'!$A:$K,4,FALSE) -> 22.234 | E17: =VLOOKUP(A17,'[1]all genes'!$A:$K,5,FALSE) -> 35.888 | F17: =VLOOKUP(A17,'[1]all genes'!$A:$K,6,FALSE) -> 1.418 | G17: =VLOOKUP(A17,'[1]all genes'!$A:$K,7,FALSE) -> 5.076 | H17: =VLOOKUP(A17,'[1]all genes'!$A:$K,8,FALSE) -> 3.433 | I17: =VLOOKUP(A17,'[1]all genes'!$A:$K,9,FALSE) -> 1.378 | J17: =VLOOKUP(A17,'[1]all genes'!$A:$K,10,FALSE) -> 0.469 | K17: =VLOOKUP(A17,'[1]all genes'!$A:$K,11,FALSE) -> 3.16 | L17: AT1G69830.1 | M17: AMY3 | N17: Alpha-amylase 3, chloroplastic | O17: carbohydrate metabolic process
A18: isotig65228 | B18: 6.71 | C18: =VLOOKUP(A18,'[1]all genes'!$A:$K,3,FALSE) -> 59.625 | D18: =VLOOKUP(A18,'[1]all genes'!$A:$K,4,FALSE) -> 11.768 | E18: =VLOOKUP(A18,'[1]all genes'!$A:$K,5,FALSE) -> 11.946 | F18: =VLOOKUP(A18,'[1]all genes'!$A:$K,6,FALSE) -> 0 | G18: =VLOOKUP(A18,'[1]all genes'!$A:$K,7,FALSE) -> 1.175 | H18: =VLOOKUP(A18,'[1]all genes'!$A:$K,8,FALSE) -> 0.568 | I18: =VLOOKUP(A18,'[1]all genes'!$A:$K,9,FALSE) -> 0 | J18: =VLOOKUP(A18,'[1]all genes'!$A:$K,10,FALSE) -> 0 | K18: =VLOOKUP(A18,'[1]all genes'!$A:$K,11,FALSE) -> 0 | L18: AT5G55250.1 | M18: IAMT1 | N18: Indole-3-acetate O-methyltransferase 1 | O18: auxin homeostasis; polarity specification of adaxial/abaxial axis
A19: isotig69298 | B19: 6.66 | C19: =VLOOKUP(A19,'[1]all genes'!$A:$K,3,FALSE) -> 71.765 | D19: =VLOOKUP(A19,'[1]all genes'!$A:$K,4,FALSE) -> 12.864 | E19: =VLOOKUP(A19,'[1]all genes'!$A:$K,5,FALSE) -> 20.115 | F19: =VLOOKUP(A19,'[1]all genes'!$A:$K,6,FALSE) -> 0 | G19: =VLOOKUP(A19,'[1]all genes'!$A:$K,7,FALSE) -> 0.734 | H19: =VLOOKUP(A19,'[1]all genes'!$A:$K,8,FALSE) -> 0.709 | I19: =VLOOKUP(A19,'[1]all genes'!$A:$K,9,FALSE) -> 0 | J19: =VLOOKUP(A19,'[1]all genes'!$A:$K,10,FALSE) -> 0.678 | K19: =VLOOKUP(A19,'[1]all genes'!$A:$K,11,FALSE) -> 1.524 | L19: AT4G39700.1 | N19: Heavy metal transport/detoxification superfamily protein | O19: metal ion transport
A20: isotig32836 | B20: 6.62 | C20: =VLOOKUP(A20,'[1]all genes'!$A:$K,3,FALSE) -> 28.116 | D20: =VLOOKUP(A20,'[1]all genes'!$A:$K,4,FALSE) -> 7.756 | E20: =VLOOKUP(A20,'[1]all genes'!$A:$K,5,FALSE) -> 6.26 | F20: =VLOOKUP(A20,'[1]all genes'!$A:$K,6,FALSE) -> 4.947 | G20: =VLOOKUP(A20,'[1]all genes'!$A:$K,7,FALSE) -> 0.885 | H20: =VLOOKUP(A20,'[1]all genes'!$A:$K,8,FALSE) -> 0.285 | I20: =VLOOKUP(A20,'[1]all genes'!$A:$K,9,FALSE) -> 0.267 | J20: =VLOOKUP(A20,'[1]all genes'!$A:$K,10,FALSE) -> 0 | K20: =VLOOKUP(A20,'[1]all genes'!$A:$K,11,FALSE) -> 0 | L20: AT3G14240.1 | N20: Subtilase family protein | O20: proteolysis, negative regulation of catalytic activity
A21: isotig60719 | B21: 6.49 | C21: =VLOOKUP(A21,'[1]all genes'!$A:$K,3,FALSE) -> 37.144 | D21: =VLOOKUP(A21,'[1]all genes'!$A:$K,4,FALSE) -> 14.492 | E21: =VLOOKUP(A21,'[1]all genes'!$A:$K,5,FALSE) -> 14.403 | F21: =VLOOKUP(A21,'[1]all genes'!$A:$K,6,FALSE) -> 19.571 | G21: =VLOOKUP(A21,'[1]all genes'!$A:$K,7,FALSE) -> 0 | H21: =VLOOKUP(A21,'[1]all genes'!$A:$K,8,FALSE) -> 0.414 | I21: =VLOOKUP(A21,'[1]all genes'!$A:$K,9,FALSE) -> 1.552 | J21: =VLOOKUP(A21,'[1]all genes'!$A:$K,10,FALSE) -> 0.792 | K21: =VLOOKUP(A21,'[1]all genes'!$A:$K,11,FALSE) -> 0.89 | L21: No hits
A22: isotig101683 | B22: 6.49 | C22: =VLOOKUP(A22,'[1]all genes'!$A:$K,3,FALSE) -> 121.18 | D22: =VLOOKUP(A22,'[1]all genes'!$A:$K,4,FALSE) -> 12.257 | E22: =VLOOKUP(A22,'[1]all genes'!$A:$K,5,FALSE) -> 2.473 | F22: =VLOOKUP(A22,'[1]all genes'!$A:$K,6,FALSE) -> 5.212 | G22: =VLOOKUP(A22,'[1]all genes'!$A:$K,7,FALSE) -> 0 | H22: =VLOOKUP(A22,'[1]all genes'!$A:$K,8,FALSE) -> 1.352 | I22: =VLOOKUP(A22,'[1]all genes'!$A:$K,9,FALSE) -> 0 | J22: =VLOOKUP(A22,'[1]all genes'!$A:$K,10,FALSE) -> 0 | K22: =VLOOKUP(A22,'[1]all genes'!$A:$K,11,FALSE) -> 0 | L22: AT1G75950.1 | M22: SKP1A | N22: SKP1-like protein 1A | O22: auxin-activated signaling pathway
A23: isotig59039 | B23: 6.46 | C23: =VLOOKUP(A23,'[1]all genes'!$A:$K,3,FALSE) -> 31.611 | D23: =VLOOKUP(A23,'[1]all genes'!$A:$K,4,FALSE) -> 1.854 | E23: =VLOOKUP(A23,'[1]all genes'!$A:$K,5,FALSE) -> 1.636 | F23: =VLOOKUP(A23,'[1]all genes'!$A:$K,6,FALSE) -> 0.345 | G23: =VLOOKUP(A23,'[1]all genes'!$A:$K,7,FALSE) -> 0.37 | H23: =VLOOKUP(A23,'[1]all genes'!$A:$K,8,FALSE) -> 0.358 | I23: =VLOOKUP(A23,'[1]all genes'!$A:$K,9,FALSE) -> 0.335 | J23: =VLOOKUP(A23,'[1]all genes'!$A:$K,10,FALSE) -> 0.342 | K23: =VLOOKUP(A23,'[1]all genes'!$A:$K,11,FALSE) -> 0.384 | L23: AT3G61740.1 | M23: ATX3 | N23: Histone-lysine N-methyltransferase ATX3 | O23: regulation of transcription, DNA-dependent
A24: isotig59351 | B24: 6.37 | C24: =VLOOKUP(A24,'[1]all genes'!$A:$K,3,FALSE) -> 60.924 | D24: =VLOOKUP(A24,'[1]all genes'!$A:$K,4,FALSE) -> 5.255 | E24: =VLOOKUP(A24,'[1]all genes'!$A:$K,5,FALSE) -> 6.747 | F24: =VLOOKUP(A24,'[1]all genes'!$A:$K,6,FALSE) -> 0.711 | G24: =VLOOKUP(A24,'[1]all genes'!$A:$K,7,FALSE) -> 2.29 | H24: =VLOOKUP(A24,'[1]all genes'!$A:$K,8,FALSE) -> 0.738 | I24: =VLOOKUP(A24,'[1]all genes'!$A:$K,9,FALSE) -> 0.345 | J24: =VLOOKUP(A24,'[1]all genes'!$A:$K,10,FALSE) -> 0.352 | K24: =VLOOKUP(A24,'[1]all genes'!$A:$K,11,FALSE) -> 1.188 | L24: AT3G48080.1 | M24: EDS1B | N24: Protein EDS1B | O24: lipid metabolic process
A25: isotig21539 | B25: 6.24 | C25: =VLOOKUP(A25,'[1]all genes'!$A:$K,3,FALSE) -> 28.766 | D25: =VLOOKUP(A25,'[1]all genes'!$A:$K,4,FALSE) -> 20.22 | E25: =VLOOKUP(A25,'[1]all genes'!$A:$K,5,FALSE) -> 22.289 | F25: =VLOOKUP(A25,'[1]all genes'!$A:$K,6,FALSE) -> 1.468 | G25: =VLOOKUP(A25,'[1]all genes'!$A:$K,7,FALSE) -> 4.729 | H25: =VLOOKUP(A25,'[1]all genes'!$A:$K,8,FALSE) -> 0.381 | I25: =VLOOKUP(A25,'[1]all genes'!$A:$K,9,FALSE) -> 0 | J25: =VLOOKUP(A25,'[1]all genes'!$A:$K,10,FALSE) -> 0.364 | K25: =VLOOKUP(A25,'[1]all genes'!$A:$K,11,FALSE) -> 1.227 | L25: AT3G26200.1 | M25: CYP71B22 | N25: Cytochrome P450 71B22 | O25: oxidation-reduction process
A26: isotig10972 | B26: 6.16 | C26: =VLOOKUP(A26,'[1]all genes'!$A:$K,3,FALSE) -> 2341.7 | D26: =VLOOKUP(A26,'[1]all genes'!$A:$K,4,FALSE) -> 64.944 | E26: =VLOOKUP(A26,'[1]all genes'!$A:$K,5,FALSE) -> 40.708 | F26: =VLOOKUP(A26,'[1]all genes'!$A:$K,6,FALSE) -> 4.344 | G26: =VLOOKUP(A26,'[1]all genes'!$A:$K,7,FALSE) -> 11.079 | H26: =VLOOKUP(A26,'[1]all genes'!$A:$K,8,FALSE) -> 32.674 | I26: =VLOOKUP(A26,'[1]all genes'!$A:$K,9,FALSE) -> 20.572 | J26: =VLOOKUP(A26,'[1]all genes'!$A:$K,10,FALSE) -> 15.074 | K26: =VLOOKUP(A26,'[1]all genes'!$A:$K,11,FALSE) -> 20.571 | L26: AT2G30870.1 | M26: GSTF10 | N26: Glutathione S-transferase F10 | O26: response to toxic substance
A27: isotig51549 | B27: 6.14 | C27: =VLOOKUP(A27,'[1]all genes'!$A:$K,3,FALSE) -> 54.05 | D27: =VLOOKUP(A27,'[1]all genes'!$A:$K,4,FALSE) -> 0.994 | E27: =VLOOKUP(A27,'[1]all genes'!$A:$K,5,FALSE) -> 4.212 | F27: =VLOOKUP(A27,'[1]all genes'!$A:$K,6,FALSE) -> 0 | G27: =VLOOKUP(A27,'[1]all genes'!$A:$K,7,FALSE) -> 0 | H27: =VLOOKUP(A27,'[1]all genes'!$A:$K,8,FALSE) -> 0.767 | I27: =VLOOKUP(A27,'[1]all genes'!$A:$K,9,FALSE) -> 1.437 | J27: =VLOOKUP(A27,'[1]all genes'!$A:$K,10,FALSE) -> 0 | K27: =VLOOKUP(A27,'[1]all genes'!$A:$K,11,FALSE) -> 0.824 | L27: AT1G10370.1 | M27: GSTU17 | N27: Glutathione S-transferase U17 | O27: response to growth hormone
A28: isotig82212 | B28: 6.00 | C28: =VLOOKUP(A28,'[1]all genes'!$A:$K,3,FALSE) -> 59.438 | D28: =VLOOKUP(A28,'[1]all genes'!$A:$K,4,FALSE) -> 19.239 | E28: =VLOOKUP(A28,'[1]all genes'!$A:$K,5,FALSE) -> 5.944 | F28: =VLOOKUP(A28,'[1]all genes'!$A:$K,6,FALSE) -> 8.053 | G28: =VLOOKUP(A28,'[1]all genes'!$A:$K,7,FALSE) -> 3.843 | H28: =VLOOKUP(A28,'[1]all genes'!$A:$K,8,FALSE) -> 0.928 | I28: =VLOOKUP(A28,'[1]all genes'!$A:$K,9,FALSE) -> 0 | J28: =VLOOKUP(A28,'[1]all genes'!$A:$K,10,FALSE) -> 1.774 | K28: =VLOOKUP(A28,'[1]all genes'!$A:$K,11,FALSE) -> 1.994 | L28: AT1G47128.1 | M28: RD21A | N28: Cysteine proteinase RD21a | O28: proteolysis involved in cellular protein catabolic process
A29: isotig35313 | B29: 6.00 | C29: =VLOOKUP(A29,'[1]all genes'!$A:$K,3,FALSE) -> 126.367 | D29: =VLOOKUP(A29,'[1]all genes'!$A:$K,4,FALSE) -> 21.303 | E29: =VLOOKUP(A29,'[1]all genes'!$A:$K,5,FALSE) -> 25.273 | F29: =VLOOKUP(A29,'[1]all genes'!$A:$K,6,FALSE) -> 3.805 | G29: =VLOOKUP(A29,'[1]all genes'!$A:$K,7,FALSE) -> 9.533 | H29: =VLOOKUP(A29,'[1]all genes'!$A:$K,8,FALSE) -> 1.974 | I29: =VLOOKUP(A29,'[1]all genes'!$A:$K,9,FALSE) -> 3.08 | J29: =VLOOKUP(A29,'[1]all genes'!$A:$K,10,FALSE) -> 1.886 | K29: =VLOOKUP(A29,'[1]all genes'!$A:$K,11,FALSE) -> 2.12 | L29: No hits
A30: isotig26983 | B30: 5.98 | C30: =VLOOKUP(A30,'[1]all genes'!$A:$K,3,FALSE) -> 64.718 | D30: =VLOOKUP(A30,'[1]all genes'!$A:$K,4,FALSE) -> 72.539 | E30: =VLOOKUP(A30,'[1]all genes'!$A:$K,5,FALSE) -> 40.917 | F30: =VLOOKUP(A30,'[1]all genes'!$A:$K,6,FALSE) -> 33.573 | G30: =VLOOKUP(A30,'[1]all genes'!$A:$K,7,FALSE) -> 32.163 | H30: =VLOOKUP(A30,'[1]all genes'!$A:$K,8,FALSE) -> 1.024 | I30: =VLOOKUP(A30,'[1]all genes'!$A:$K,9,FALSE) -> 0.639 | J30: =VLOOKUP(A30,'[1]all genes'!$A:$K,10,FALSE) -> 0 | K30: =VLOOKUP(A30,'[1]all genes'!$A:$K,11,FALSE) -> 1.1 | L30: AT1G76160.1 | M30: sks5 | N30: SKU5 similar 5 | O30: oxidation reduction
A31: isotig25980 | B31: 5.95 | C31: =VLOOKUP(A31,'[1]all genes'!$A:$K,3,FALSE) -> 345.459 | D31: =VLOOKUP(A31,'[1]all genes'!$A:$K,4,FALSE) -> 62.089 | E31: =VLOOKUP(A31,'[1]all genes'!$A:$K,5,FALSE) -> 59.14 | F31: =VLOOKUP(A31,'[1]all genes'!$A:$K,6,FALSE) -> 2.149 | G31: =VLOOKUP(A31,'[1]all genes'!$A:$K,7,FALSE) -> 23.076 | H31: =VLOOKUP(A31,'[1]all genes'!$A:$K,8,FALSE) -> 5.574 | I31: =VLOOKUP(A31,'[1]all genes'!$A:$K,9,FALSE) -> 12.525 | J31: =VLOOKUP(A31,'[1]all genes'!$A:$K,10,FALSE) -> 1.065 | K31: =VLOOKUP(A31,'[1]all genes'!$A:$K,11,FALSE) -> 8.381 | L31: No hits
A32: isotig18285 | B32: 5.94 | C32: =VLOOKUP(A32,'[1]all genes'!$A:$K,3,FALSE) -> 14.452 | D32: =VLOOKUP(A32,'[1]all genes'!$A:$K,4,FALSE) -> 4.568 | E32: =VLOOKUP(A32,'[1]all genes'!$A:$K,5,FALSE) -> 4.946 | F32: =VLOOKUP(A32,'[1]all genes'!$A:$K,6,FALSE) -> 1.813 | G32: =VLOOKUP(A32,'[1]all genes'!$A:$K,7,FALSE) -> 2.434 | H32: =VLOOKUP(A32,'[1]all genes'!$A:$K,8,FALSE) -> 0.235 | I32: =VLOOKUP(A32,'[1]all genes'!$A:$K,9,FALSE) -> 0 | J32: =VLOOKUP(A32,'[1]all genes'!$A:$K,10,FALSE) -> 0 | K32: =VLOOKUP(A32,'[1]all genes'!$A:$K,11,FALSE) -> 0.758 | L32: AT4G29720.1 | M32: PAO5 | N32: Probable polyamine oxidase 5 | O32: regulation of timing of transition from vegetative to reproductive phase
A33: isotig50389 | B33: 5.94 | C33: =VLOOKUP(A33,'[1]all genes'!$A:$K,3,FALSE) -> 44.567 | D33: =VLOOKUP(A33,'[1]all genes'!$A:$K,4,FALSE) -> 6.574 | E33: =VLOOKUP(A33,'[1]all genes'!$A:$K,5,FALSE) -> 1.326 | F33: =VLOOKUP(A33,'[1]all genes'!$A:$K,6,FALSE) -> 6.29 | G33: =VLOOKUP(A33,'[1]all genes'!$A:$K,7,FALSE) -> 19.512 | H33: =VLOOKUP(A33,'[1]all genes'!$A:$K,8,FALSE) -> 0.725 | I33: =VLOOKUP(A33,'[1]all genes'!$A:$K,9,FALSE) -> 0 | J33: =VLOOKUP(A33,'[1]all genes'!$A:$K,10,FALSE) -> 0 | K33: =VLOOKUP(A33,'[1]all genes'!$A:$K,11,FALSE) -> 0 | L33: No hits
A34: isotig63780 | B34: 5.93 | C34: =VLOOKUP(A34,'[1]all genes'!$A:$K,3,FALSE) -> 95.012 | D34: =VLOOKUP(A34,'[1]all genes'!$A:$K,4,FALSE) -> 57.797 | E34: =VLOOKUP(A34,'[1]all genes'!$A:$K,5,FALSE) -> 62.645 | F34: =VLOOKUP(A34,'[1]all genes'!$A:$K,6,FALSE) -> 5.001 | G34: =VLOOKUP(A34,'[1]all genes'!$A:$K,7,FALSE) -> 5.37 | H34: =VLOOKUP(A34,'[1]all genes'!$A:$K,8,FALSE) -> 1.557 | I34: =VLOOKUP(A34,'[1]all genes'!$A:$K,9,FALSE) -> 3.886 | J34: =VLOOKUP(A34,'[1]all genes'!$A:$K,10,FALSE) -> 0.496 | K34: =VLOOKUP(A34,'[1]all genes'!$A:$K,11,FALSE) -> 1.114 | L34: AT5G60530.1 | M34: LEA | N34: late embryogenesis abundant protein-related / LEA protein-related | O34: transition metal ion transport
A35: isotig60425 | B35: 5.91 | C35: =VLOOKUP(A35,'[1]all genes'!$A:$K,3,FALSE) -> 24.338 | D35: =VLOOKUP(A35,'[1]all genes'!$A:$K,4,FALSE) -> 2.095 | E35: =VLOOKUP(A35,'[1]all genes'!$A:$K,5,FALSE) -> 4.808 | F35: =VLOOKUP(A35,'[1]all genes'!$A:$K,6,FALSE) -> 1.559 | G35: =VLOOKUP(A35,'[1]all genes'!$A:$K,7,FALSE) -> 1.256 | H35: =VLOOKUP(A35,'[1]all genes'!$A:$K,8,FALSE) -> 0.404 | I35: =VLOOKUP(A35,'[1]all genes'!$A:$K,9,FALSE) -> 1.515 | J35: =VLOOKUP(A35,'[1]all genes'!$A:$K,10,FALSE) -> 0.386 | K35: =VLOOKUP(A35,'[1]all genes'!$A:$K,11,FALSE) -> 0.434 | L35: AT4G32940.1 | M35: GAMMA-VPE | N35: Vacuolar-processing enzyme gamma-isozyme | O35: response to hormones
A37: The highest up-regulated transcripts in E1 when M1 RPKM value was equal to 0.
C38: RPKM Embryos | H38: RPKM Megagametophytes | N38: Arabidopsis homologous gene names and annotation
A39: Transcript ID | B39: Fold change | C39: E1 | D39: E2 | E39: E3DO | F39: E3SU | G39: E4 | H39: M1 | I39: M2 | J39: M3 | K39: M4 | L39: At locus ID | M39: At name | N39: At annotation | O39: Involved in
A40: isotig98833 | B40: 99.00 | C40: 980.78 | D40: 494.428 | E40: 351.408 | F40: 472.717 | G40: 153.43 | H40: 0 | I40: 0 | J40: 1.18 | K40: 0 | L40: AT5G23870.2 | M40: PAE9 | N40: Pectin acetylesterase 9 | O40: cell wall loosening
A41: isotig18163 | B41: 99.00 | C41: 297.588 | D41: 287.147 | E41: 411.141 | F41: 150.315 | G41: 30.857 | H41: 0 | I41: 0 | J41: 0 | K41: 0 | L41: AT5G62360.1 | N41: Plant invertase/pectin methylesterase inhibitor superfamily protein | O41: negative regulation of catalytic activity
A42: isotig93401 | B42: 99.00 | C42: 292.782 | D42: 72.613 | E42: 51.277 | F42: 117.608 | G42: 7.964 | H42: 0 | I42: 0 | J42: 0 | K42: 1.181 | L42: AT1G01190.1 | M42: CYP78A8 | N42: cytochrome P450, family 78, subfamily A, polypeptide 8 | O42: oxidation-reduction process
A43: isotig14330 | B43: 99.00 | C43: 234.826 | D43: 92.652 | E43: 80.893 | F43: 23.818 | G43: 2.019 | H43: 0 | I43: 0 | J43: 0 | K43: 0 | L43: AT4G38400.1 | M43: EXLA2 | N43: Expansin-like A2 | O43: sexual reproduction
A44: isotig71172 | B44: 99.00 | C44: 208.104 | D44: 29.647 | E44: 56.527 | F44: 19.856 | G44: 14.214 | H44: 0 | I44: 0 | J44: 0 | K44: 0 | L44: AT5G67070.1 | M44: RALFL34 | N44: Protein RALF-like 34 | O44: cell-cell signaling; hormone activity
A45: isotig04574 | B45: 99.00 | C45: 203.454 | D45: 50.966 | E45: 34.9 | F45: 56.315 | G45: 3.394 | H45: 0 | I45: 0 | J45: 0 | K45: 0 | L45: AT5G09970.1 | M45: CYP78A7 | N45: Cytochrome P450 78A7 | O45: regulation of growth
A46: isotig44201 | B46: 99.00 | C46: 182.288 | D46: 35.528 | E46: 72.725 | F46: 56.892 | G46: 11.859 | H46: 0 | I46: 0 | J46: 0 | K46: 0.746 | L46: No hits
A47: isotig25556 | B47: 99.00 | C47: 170.334 | D47: 77.394 | E47: 85.883 | F47: 112.444 | G47: 92.764 | H47: 0 | I47: 0 | J47: 0 | K47: 0 | L47: AT1G10460.1 | M47: GLP7 | N47: Germin-like protein subfamily 1 member 1 | O47: manganese ion binding; nutrient reservoir activity
A48: isotig105225 | B48: 99.00 | C48: 141.863 | D48: 38.948 | E48: 21.714 | F48: 45.764 | G48: 1.638 | H48: 0 | I48: 0 | J48: 0 | K48: 0 | L48: AT5G09970.1 | M48: CYP78A7 | N48: Cytochrome P450 78A7 | O48: regulation of growth
A49: isotig28522 | B49: 99.00 | C49: 122.291 | D49: 9.953 | E49: 8.032 | F49: 1.587 | G49: 1.704 | H49: 0 | I49: 0 | J49: 0 | K49: 0 | L49: AT1G60710.1 | M49: ATB2 | N49: Probable aldo-keto reductase 4 | O49: oxidation-reduction process
A50: isotig27999 | B50: 99.00 | C50: 117.606 | D50: 20.636 | E50: 13.715 | F50: 0 | G50: 0 | H50: 0 | I50: 0 | J50: 0 | K50: 0 | L50: AT4G09610.1 | M50: GASA2 | N50: Gibberellin-regulated protein 2 | O50: response to gibberellin stimulus
A51: isotig62250 | B51: 99.00 | C51: 92.295 | D51: 13.337 | E51: 8.134 | F51: 0.451 | G51: 3.391 | H51: 0 | I51: 0.438 | J51: 0.894 | K51: 1.508 | L51: AT1G03230.1 | N51: Eukaryotic aspartyl protease family protein | O51: response to salt stress
A52: isotig113839 | B52: 99.00 | C52: 90.258 | D52: 91.296 | E52: 46.888 | F52: 24.705 | G52: 13.264 | H52: 0 | I52: 0 | J52: 6.123 | K52: 0 | L52: No hits
A53: isotig78926 | B53: 99.00 | C53: 88.551 | D53: 87.272 | E53: 128.934 | F53: 17.945 | G53: 13.764 | H53: 0 | I53: 1.66 | J53: 1.694 | K53: 0.952 | L53: AT5G62360.1 | N53: Plant invertase/pectin methylesterase inhibitor superfamily protein | O53: negative regulation of catalytic activity
A54: isotig98557 | B54: 99.00 | C54: 88.31 | D54: 17.546 | E54: 9.011 | F54: 0 | G54: 1.275 | H54: 0 | I54: 4.612 | J54: 3.53 | K54: 3.968 | L54: No hits
A55: isotig39233 | B55: 99.00 | C55: 87.537 | D55: 11.285 | E55: 23.294 | F55: 9.044 | G55: 0.694 | H55: 0 | I55: 0 | J55: 0 | K55: 0.72 | L55: AT4G38400.1 | M55: EXLA2 | N55: Expansin-like A2 | O55: sexual reproduction
A56: isotig19551 | B56: 99.00 | C56: 84.732 | D56: 45.71 | E56: 52.453 | F56: 39.685 | G56: 3.044 | H56: 0 | I56: 0 | J56: 0 | K56: 0 | L56: No hits
A57: isotig77785 | B57: 99.00 | C57: 75.917 | D57: 1.129 | E57: 3.987 | F57: 0.84 | G57: 0 | H57: 0 | I57: 0 | J57: 0 | K57: 0.936 | L57: AT2G23690.1 | N57: unknown protein | O57: unknown
A58: isotig28596 | B58: 99.00 | C58: 75.654 | D58: 14.653 | E58: 24.145 | F58: 1.817 | G58: 6.505 | H58: 0 | I58: 0 | J58: 0 | K58: 0 | L58: AT2G36790.1 | M58: UGT73C6 | N58: UDP-glycosyltransferase 73C6 | O58: flavonol biosynthetic process
A59: isotig54539 | B59: 99.00 | C59: 71.987 | D59: 0 | E59: 4.114 | F59: 0 | G59: 2.327 | H59: 0 | I59: 0 | J59: 0 | K59: 0 | L59: AT5G57625.1 | N59: CAP (Cysteine-rich secretory proteins, Antigen 5, and Pathogenesis-related 1 protein) superfamily protein | O59: unknown
A60: isotig46869 | B60: 99.00 | C60: 71.563 | D60: 3.731 | E60: 10.539 | F60: 0.555 | G60: 5.367 | H60: 0 | I60: 0.539 | J60: 1.652 | K60: 1.238 | L60: AT1G12600.1 | M60: UTR4 | N60: UDP-galactose/UDP-glucose transporter 4 | O60: transmembrane transport
A61: isotig114968 | B61: 99.00 | C61: 71.409 | D61: 4.815 | E61: 34.005 | F61: 10.75 | G61: 3.848 | H61: 0 | I61: 0 | J61: 0 | K61: 0 | L61: No hits
A62: isotig80926 | B62: 99.00 | C62: 66.97 | D62: 0 | E62: 4.196 | F62: 0 | G62: 0 | H62: 0 | I62: 0 | J62: 0 | K62: 0 | L62: AT1G71050.1 | M62: HIPP20 | N62: Heavy metal transport/detoxification superfamily protein | O62: metal ion transport
A63: isotig34613 | B63: 99.00 | C63: 64.723 | D63: 23.021 | E63: 19.305 | F63: 0 | G63: 2.299 | H63: 0 | I63: 0 | J63: 0 | K63: 2.386 | L63: AT5G55250.1 | M63: IAMT1 | N63: Indole-3-acetate O-methyltransferase 1 | O63: auxin homeostasis; polarity specification of adaxial/abaxial axis
A64: isotig65493 | B64: 99.00 | C64: 59.107 | D64: 6.726 | E64: 3.694 | F64: 0.556 | G64: 0 | H64: 0 | I64: 1.08 | J64: 0.551 | K64: 2.479 | L64: AT5G54160.1 | M64: OMT1 | N64: Flavone 3'-O-methyltransferase 1 | O64: flavonol biosynthetic process
A65: isotig80545 | B65: 99.00 | C65: 58.07 | D65: 3.524 | E65: 3.318 | F65: 0 | G65: 0 | H65: 0 | I65: 0.849 | J65: 0 | K65: 0.974 | L65: No hits
A66: isotig28869 | B66: 99.00 | C66: 57.641 | D66: 28.602 | E66: 27.966 | F66: 34.382 | G66: 58.016 | H66: 0 | I66: 0 | J66: 0 | K66: 1.824 | L66: AT5G67070.1 | M66: RALFL34 | N66: Protein RALF-like 34 | O66: cell-cell signaling; hormone activity
A67: isotig48941 | B67: 99.00 | C67: 57.015 | D67: 1.722 | E67: 4.255 | F67: 3.203 | G67: 0 | H67: 0 | I67: 0 | J67: 0.635 | K67: 0 | L67: AT1G71830.1 | M67: SERK1 | N67: Somatic embryogenesis receptor kinase 1 | O67: embryo development ending in seed dormancy
A68: isotig41809 | B68: 99.00 | C68: 55.68 | D68: 208.872 | E68: 124.012 | F68: 233.316 | G68: 19.844 | H68: 0 | I68: 0 | J68: 0 | K68: 0.735 | L68: AT5G09970.1 | M68: CYP78A7 | N68: Cytochrome P450 78A7 | O68: regulation of growth
A69: isotig78352 | B69: 99.00 | C69: 53.648 | D69: 1.131 | E69: 2.395 | F69: 0 | G69: 0 | H69: 0 | I69: 0 | J69: 0 | K69: 0 | L69: AT1G71050.1 | M69: HIPP20 | N69: Heavy metal transport/detoxification superfamily protein | O69: metal ion transport

Sheet Up in M1 (E1xM1)
A1: Additional file 2: Differentially expressed transcripts (DETs) in embryos and megagametophytes at different stages of seed development.
A2: The Arabidopsis genes showing the highest sequence similarity to the Scots pine transcript are presented (#N/A = no alignment to genes in the TAIR database. Cut off value 1e-5)
A3: The highest up-regulated transcripts in M1/E1. Samples subjected to pairwise comparison are highlighted in bold
C4: RPKM Embryos | H4: RPKM Megagametophytes | N4: Arabidopsis homologous gene names and annotation
A5: Transcript ID | B5: Fold change | C5: E1 | D5: E2 | E5: E3DO | F5: E3SU | G5: E4 | H5: M1 | I5: M2 | J5: M3 | K5: M4 | L5: At locus ID | M5: At name | N5: At annotation | O5: Involved in
A6: isotig89204 | B6: -6.813149162 | C6: 1.309 | D6: 21.185 | E6: 17.765 | F6: 14.78 | G6: 26.451 | H6: 147.198 | I6: 115.813 | J6: 149.456 | K6: 194.321 | L6: AT4G28520.2 | M6: CRC | N6: 12S seed storage protein CRC | O6: seed maturation; nutrient reservoir activity
A7: isotig96814 | B7: -6.654049937 | C7: 1.509 | D7: 10.682 | E7: 9.698 | F7: 7.949 | G7: 57.309 | H7: 151.97 | I7: 104.791 | J7: 158.734 | K7: 242.927 | L7: AT1G03880.1 | M7: CRB | N7: 12S seed storage protein CRB | O7: nutrient reservoir activity; response to ABA
A8: isotig75095 | B8: -6.578842634 | C8: 18.252 | D8: 436.58 | E8: 296.794 | F8: 94.556 | G8: 462.539 | H8: 1744.775 | I8: 3192.018 | J8: 3679.977 | K8: 4834.673
A9: isotig104606 | B9: -6.556242602 | C9: 3.942 | D9: 25.92 | E9: 142.208 | F9: 86.058 | G9: 269.256 | H9: 370.973 | I9: 609.672 | J9: 716.367 | K9: 699.314
A10: isotig17379 | B10: -6.399794315 | C10: 110.455 | D10: 1296.884 | E10: 1045.763 | F10: 392.882 | G10: 537.405 | H10: 9326.43 | I10: 13142.126 | J10: 16174.761 | K10: 14693.908
A11: isotig98072 | B11: -6.398077663 | C11: 4.651 | D11: 65.862 | E11: 71.979 | F11: 36.175 | G11: 244.344 | H11: 392.247 | I11: 471.561 | J11: 542.586 | K11: 915.363
A12: isotig21345 | B12: -6.319000008 | C12: 2.651 | D12: 40.218 | E12: 71.001 | F12: 152.635 | G12: 346.54 | H12: 211.65 | I12: 441.897 | J12: 424.291 | K12: 394.603
A13: isotig102265 | B13: -6.315492524 | C13: 3.592 | D13: 29.064 | E13: 35.917 | F13: 16.221 | G13: 8.709 | H13: 286.081 | I13: 345.339 | J13: 438.216 | K13: 465.397
A14: isotig97641 | B14: -6.284176776 | C14: 23.148 | D14: 99.9 | E14: 192.9 | F14: 124.29 | G14: 598.704 | H14: 1804.011 | I14: 1668.846 | J14: 1608.774 | K14: 2165.308
A15: isotig87380 | B15: -6.267553777 | C15: 3.833 | D15: 18.091 | E15: 40.151 | F15: 20.194 | G15: 48.531 | H15: 295.298 | I15: 333.478 | J15: 355.597 | K15: 657.874
A16: isotig90298 | B16: -6.257794708 | C16: 1.344 | D16: 4.078 | E16: 16.319 | F16: 5.058 | G16: 33.672 | H16: 102.845 | I16: 58.957 | J16: 74.211 | K16: 118.345
A17: isotig91944 | B17: -6.243037548 | C17: 1.396 | D17: 16.944 | E17: 1.994 | F17: 1.051 | G17: 14.667 | H17: 105.737 | I17: 181.68 | J17: 192.713 | K17: 270.443 | L17: AT1G03890.1 | M17: CRD | N17: 12S seed storage protein CRD | O17: seed maturation; nutrient reservoir activity
A18: isotig103667 | B18: -6.2232261 | C18: 5.638 | D18: 24.714 | E18: 56.383 | F18: 16.976 | G18: 51.648 | H18: 421.214 | I18: 346.3 | J18: 403.919 | K18: 466.572
A19: isotig99981 | B19: -6.182580329 | C19: 3.271 | D19: 46.327 | E19: 23.368 | F19: 13.544 | G19: 46.273 | H19: 237.587 | I19: 278.674 | J19: 244.13 | K19: 485.646 | L19: AT1G03890.1 | M19: CRD | N19: 12S seed storage protein CRD | O19: seed maturation; nutrient reservoir activity
A20: isotig82381 | B20: -6.14275762 | C20: 2.378 | D20: 31.263 | E20: 16.133 | F20: 12.527 | G20: 37.472 | H20: 168.022 | I20: 251.198 | J20: 238.628 | K20: 325.021 | L20: AT4G28520.2 | M20: CRC | N20: 12S seed storage protein CRC | O20: seed maturation; nutrient reservoir activity
A21: isotig110158 | B21: -6.069489123 | C21: 23.608 | D21: 83.579 | E21: 217.112 | F21: 108.843 | G21: 293.378 | H21: 1585.468 | I21: 1346.431 | J21: 1477.655 | K21: 1786.951
A22: isotig98287 | B22: -5.965044251 | C22: 1.56 | D22: 12.623 | E22: 8.914 | F22: 2.348 | G22: 17.651 | H22: 97.45 | I22: 151.696 | J22: 124.554 | K22: 136.06
A23: isotig87880 | B23: -5.93802295 | C23: 2.571 | D23: 28.61 | E23: 18.367 | F23: 6.774 | G23: 74.819 | H23: 157.625 | I23: 162.631 | J23: 175.573 | K23: 331.032 | L23: AT1G03880.1 | M23: CRB | N23: 12S seed storage protein CRB | O23: nutrient reservoir activity; response to ABA
A24: isotig84018 | B24: -5.929123443 | C24: 1.217 | D24: 12.314 | E24: 26.958 | F24: 8.247 | G24: 25.584 | H24: 74.154 | I24: 147.768 | J24: 148.993 | K24: 154.179 | L24: AT4G28520.1 | M24: CRC | N24: 12S seed storage protein CRC | O24: seed maturation; nutrient reservoir activity
A25: isotig96258 | B25: -5.928807652 | C25: 1.484 | D25: 31.527 | E25: 5.301 | F25: 1.117 | G25: 13.196 | H25: 90.403 | I25: 219.214 | J25: 200.469 | K25: 251.446
A26: isotig116865 | B26: -5.909906813 | C26: 6.554 | D26: 86.176 | E26: 51.493 | F26: 19.732 | G26: 90.049 | H26: 394.063 | I26: 383.35 | J26: 440.148 | K26: 538.65
A27: isotig98597 | B27: -5.853121273 | C27: 1.574 | D27: 33.445 | E27: 8.997 | F27: 3.555 | G27: 22.907 | H27: 90.985 | I27: 75.982 | J27: 65.797 | K27: 105.641
A28: isotig100751 | B28: -5.846058257 | C28: 5.055 | D28: 35.79 | E28: 24.07 | F28: 13.951 | G28: 73.539 | H28: 290.777 | I28: 242.697 | J28: 204.945 | K28: 398.496
A29: isotig102309 | B29: -5.792646098 | C29: 1.771 | D29: 26.865 | E29: 3.794 | F29: 1.333 | G29: 32.916 | H29: 98.17 | I29: 106.161 | J29: 84.563 | K29: 129.195 | L29: AT1G03890.1 | M29: CRD | N29: 12S seed storage protein CRD | O29: seed maturation; nutrient reservoir activity
A30: isotig105584 | B30: -5.772277735 | C30: 2.06 | D30: 14.584 | E30: 5.885 | F30: 9.302 | G30: 21.642 | H30: 112.589 | I30: 67.771 | J30: 50.722 | K30: 46.641
A31: isotig93604 | B31: -5.730360299 | C31: 1.438 | D31: 8.725 | E31: 3.081 | F31: 0 | G31: 12.782 | H31: 76.343 | I31: 83.045 | J31: 92.265 | K31: 155.544
A32: isotig83084 | B32: -5.687513129 | C32: 1.203 | D32: 4.867 | E32: 12.029 | F32: 6.338 | G32: 13.612 | H32: 61.998 | I32: 119.62 | J32: 118.492 | K32: 149.314 | L32: AT4G28520.1 | M32: CRC | N32: 12S seed storage protein CRC | O32: seed maturation; nutrient reservoir activity
A33: isotig84240 | B33: -5.660689531 | C33: 10.983 | D33: 45.673 | E33: 14.819 | F33: 11.942 | G33: 51.292 | H33: 555.595 | I33: 155.264 | J33: 96.533 | K33: 188.328 | L33: AT2G21660.1 | M33: RBG7 | N33: Glycine-rich RNA-binding protein 7 | O33: response to external stimulus
A34: isotig93754 | B34: -5.620549538 | C34: 2.863 | D34: 2.896 | E34: 25.564 | F34: 14.008 | G34: 69.424 | H34: 140.856 | I34: 84.786 | J34: 120.716 | K34: 171.691
A35: isotig84011 | B35: -5.620405764 | C35: 2.435 | D35: 27.092 | E35: 26.958 | F35: 15.579 | G35: 45.264 | H35: 119.787 | I35: 178.033 | J35: 153.535 | K35: 174.6 | L35: AT4G28520.1 | M35: CRC | N35: 12S seed storage protein CRC | O35: seed maturation; nutrient reservoir activity
A37: The highest up-regulated transcripts in M1 when E1 RPKM value was equal to 0
C38: RPKM Embryos | H38: RPKM Megagametophytes | N38: Arabidopsis homologous gene names and annotation
A39: ID | B39: Fold change | C39: E1 | D39: E2 | E39: E3DO | F39: E3SU | G39: E4 | H39: M1 | I39: M2 | J39: M3 | K39: M4 | L39: At homologous | M39: At Name | N39: At Description | O39: Involved in
A40: isotig109964 | B40: -99 | C40: 0 | D40: 103.816 | E40: 103.858 | F40: 25.752 | G40: 377.911 | H40: 476.437 | I40: 596.195 | J40: 855.262 | K40: 1128.601
A41: isotig110695 | B41: -99 | C41: 0 | D41: 15.101 | E41: 83.18 | F41: 58.437 | G41: 231.688 | H41: 366.082 | I41: 342.775 | J41: 398.853 | K41: 636.09
A42: isotig105498 | B42: -99 | C42: 0 | D42: 6.225 | E42: 24.909 | F42: 10.808 | G42: 31.502 | H42: 179.411 | I42: 220.484 | J42: 214.309 | K42: 378.494
A43: isotig79963 | B43: -99 | C43: 0 | D43: 16.352 | E43: 9.898 | F43: 8.692 | G43: 25.2 | H43: 160.511 | I43: 286.229 | J43: 248.175 | K43: 291.512 | L43: AT1G03890.1 | M43: CRD | N43: 12S seed storage protein CRD | O43: seed maturation; nutrient reservoir activity
A44: isotig108977 | B44: -99 | C44: 0 | D44: 15.625 | E44: 22.068 | F44: 13.566 | G44: 45.781 | H44: 150.789 | I44: 235.315 | J44: 199.813 | K44: 222.409
A45: isotig106501 | B45: -99 | C45: 0 | D45: 8.801 | E45: 10.876 | F45: 9.823 | G45: 58.016 | H45: 125.692 | I45: 95.424 | J45: 76.288 | K45: 164.182
A46: isotig116039 | B46: -99 | C46: 0 | D46: 5.735 | E46: 28.35 | F46: 17.071 | G46: 45.828 | H46: 119.547 | I46: 157.539 | J46: 126.934 | K46: 247.278
A47: isotig97221 | B47: -99 | C47: 0 | D47: 12.281 | E47: 30.354 | F47: 35.414 | G47: 12.267 | H47: 118.515 | I47: 163.125 | J47: 216.316 | K47: 266.027 | L47: AT4G28520.2 | M47: CRC | N47: 12S seed storage protein CRC | O47: seed maturation; nutrient reservoir activity
A48: isotig110991 | B48: -99 | C48: 0 | D48: 3.112 | E48: 0 | F48: 0 | G48: 17.409 | H48: 117.738 | I48: 119.242 | J48: 121.697 | K48: 121.29
A49: isotig96023 | B49: -99 | C49: 0 | D49: 6.014 | E49: 11.679 | F49: 8.951 | G49: 10.812 | H49: 117.232 | I49: 176.064 | J49: 266.206 | K49: 184.499
A50: isotig89628 | B50: -99 | C50: 0 | D50: 6.743 | E50: 8.571 | F50: 2.007 | G50: 40.948 | H50: 105.153 | I50: 50.691 | J50: 49.745 | K50: 107.344
A51: isotig87974 | B51: -99 | C51: 0 | D51: 7.965 | E51: 20.624 | F51: 12.842 | G51: 40.309 | H51: 94.288 | I51: 104.599 | J51: 94.02 | K51: 154.1 | L51: AT4G28520.2 | M51: CRC | N51: 12S seed storage protein CRC | O51: seed maturation; nutrient reservoir activity
A52: isotig111592 | B52: -99 | C52: 0 | D52: 3.484 | E52: 14.762 | F52: 2.593 | G52: 19.489 | H52: 94.145 | I52: 93.188 | J52: 61.691 | K52: 132.89
A53: isotig111141 | B53: -99 | C53: 0 | D53: 9.541 | E53: 6.737 | F53: 2.367 | G53: 12.706 | H53: 88.388 | I53: 126.44 | J53: 110.273 | K53: 139.757
A54: isotig88478 | B54: -99 | C54: 0 | D54: 7.863 | E54: 5.552 | F54: 3.901 | G54: 9.424 | H54: 80.937 | I54: 191.355 | J54: 186.593 | K54: 241.222 | L54: AT1G03890.1 | M54: CRD | N54: 12S seed storage protein CRD | O54: seed maturation; nutrient reservoir activity
A55: isotig89979 | B55: -99 | C55: 0 | D55: 9.39 | E55: 4.737 | F55: 4.991 | G55: 15.007 | H55: 80.78 | I55: 98.91 | J55: 99.957 | K55: 134.587 | L55: AT4G28520.1 | M55: CRC | N55: 12S seed storage protein CRC | O55: seed maturation; nutrient reservoir activity
A56: isotig02803 | B56: -99 | C56: 0 | D56: 12.701 | E56: 17.938 | F56: 7.089 | G56: 36.791 | H56: 79.058 | I56: 178.462 | J56: 107.173 | K56: 182.981
A57: isotig105217 | B57: -99 | C57: 0 | D57: 16.909 | E57: 4.478 | F57: 4.719 | G57: 6.756 | H57: 76.691 | I57: 96.254 | J57: 96.677 | K57: 133.189
A58: isotig111359 | B58: -99 | C58: 0 | D58: 64.816 | E58: 22.886 | F58: 33.764 | G58: 2.59 | H58: 72.558 | I58: 203.814 | J58: 172.147 | K58: 268.714
A59: isotig103645 | B59: -99 | C59: 0 | D59: 17.078 | E59: 8.04 | F59: 7.06 | G59: 9.097 | H59: 71.781 | I59: 104.245 | J59: 109.191 | K59: 121.146 | L59: AT4G28520.1 | M59: CRC | N59: 12S seed storage protein CRC | O59: seed maturation; nutrient reservoir activity
A60: isotig86638 | B60: -99 | C60: 0 | D60: 5.136 | E60: 11.788 | F60: 4.778 | G60: 4.104 | H60: 70.386 | I60: 43.627 | J60: 81.472 | K60: 28.747
A61: isotig55861 | B61: -99 | C61: 0 | D61: 26.865 | E61: 10.215 | F61: 6.151 | G61: 19.815 | H61: 70.197 | I61: 97.098 | J61: 76.229 | K61: 126.796
A62: isotig100342 | B62: -99 | C62: 0 | D62: 20.52 | E62: 6.038 | F62: 1.272 | G62: 8.198 | H62: 69.968 | I62: 142.151 | J62: 126.154 | K62: 147.455 | L62: AT1G03890.1 | M62: CRD | N62: 12S seed storage protein CRD | O62: seed maturation; nutrient reservoir activity
A63: isotig116458 | B63: -99 | C63: 0 | D63: 6.077 | E63: 17.164 | F63: 0 | G63: 9.711 | H63: 65.677 | I63: 70.281 | J63: 94.143 | K63: 80.614
A64: isotig82658 | B64: -99 | C64: 0 | D64: 31.94 | E64: 6.073 | F64: 1.828 | G64: 13.743 | H64: 64.492 | I64: 103.899 | J64: 107.851 | K64: 158.9 | L64: AT1G03890.1 | M64: CRD | N64: 12S seed storage protein CRD | O64: seed maturation; nutrient reservoir activity
A65: isotig90369 | B65: -99 | C65: 0 | D65: 9.709 | E65: 10.774 | F65: 19.611 | G65: 35.467 | H65: 63.179 | I65: 96.254 | J65: 93.119 | K65: 141.458 | L65: AT1G03880.1 | M65: CRB | N65: 12S seed storage protein CRB | O65: nutrient reservoir activity; response to ABA
A66: isotig116546 | B66: -99 | C66: 0 | D66: 43.309 | E66: 39.322 | F66: 4.604 | G66: 9.888 | H66: 62.095 | I66: 290.707 | J66: 196.273 | K66: 328.32
A67: isotig101188 | B67: -99 | C67: 0 | D67: 8.681 | E67: 3.678 | F67: 6.46 | G67: 81.851 | H67: 61.656 | I67: 48.946 | J67: 49.953 | K67: 67.658
A68: isotig96781 | B68: -99 | C68: 0 | D68: 9.115 | E68: 1.073 | F68: 4.522 | G68: 4.856 | H68: 58.64 | I68: 175.702 | J68: 154.663 | K68: 211.613
A69: isotig109194 | B69: -99 | C69: 0 | D69: 10.606 | E69: 16.852 | F69: 1.973 | G69: 23.307 | H69: 57.318 | I69: 53.669 | J69: 80.205 | K69: 70.354

Sheet Up in E2 (E2xM2)
A1: Additional file 2: Differentially expressed transcripts (DETs) in embryos and megagametophytes at different stages of seed development.
A2: The Arabidopsis genes showing the highest sequence similarity to the Scots pine transcript are presented (#N/A = no alignment to genes in the TAIR database. Cut off value 1e-5)
A3: The highest up-regulated transcripts in E2/M2. Samples subjected to pairwise comparison are highlighted in bold
C4: RPKM Embryos | H4: RPKM Megagametophytes | N4: Arabidopsis homologous gene names and annotation
A5: Transcript ID | B5: Fold change | C5: E1 | D5: E2 | E5: E3DO | F5: E3SU | G5: E4 | H5: M1 | I5: M2 | J5: M3 | K5: M4 | L5: At locus ID | M5: At name | N5: At annotation | O5: Involved in
A6: isotig56640 | B6: 8.363662393 | C6: 366.459 | D6: 151.191 | E6: 102.056 | F6: 132.601 | G6: 21.066 | H6: 0.736 | I6: 0.459 | J6: 0.469 | K6: 0.527
A7: isotig38581 | B7: 8.325896157 | C7: 53.73 | D7: 113.592 | E7: 69.151 | F7: 214.241 | G7: 43.036 | H7: 0.378 | I7: 0.354 | J7: 0.722 | K7: 2.03 | L7: AT5G09970.1 | M7: CYP78A7 | N7: Cytochrome P450 78A7 | O7: regulation of growth
A8: isotig07360 | B8: 7.715354761 | C8: 71.552 | D8: 115.799 | E8: 115.128 | F8: 326.549 | G8: 273.941 | H8: 7.646 | I8: 0.551 | J8: 0 | K8: 3.158 | L8: AT2G18050.1 | M8: HIS1-3 | N8: histone H1-3 | O8: nucleosome assembly
A9: isotig60244 | B9: 7.326707339 | C9: 175.589 | D9: 119.435 | E9: 89.067 | F9: 0.766 | G9: 9.461 | H9: 3.577 | I9: 0.744 | J9: 0.38 | K9: 0 | L9: AT4G23560.1 | M9: AtGH9B15 | N9: Endoglucanase 20 | O9: cell wall organization
A10: isotig42131 | B10: 7.324394883 | C10: 24.325 | D10: 53.852 | E10: 47.863 | F10: 51.129 | G10: 33.015 | H10: 0 | I10: 0.336 | J10: 0 | K10: 0 | L10: AT3G07010.1 | N10: Probable pectate lyase 8 | O10: pectin catabolic process
A11: isotig75051 | B11: 7.275682818 | C11: 69.346 | D11: 120.863 | E11: 172.985 | F11: 556.51 | G11: 468.228 | H11: 5.832 | I11: 0.78 | J11: 0 | K11: 3.579 | L11: AT2G18050.1 | M11: HIS1-3 | N11: histone H1-3 | O11: nucleosome assembly
A12: isotig55225 | B12: 7.262800711 | C12: 30.481 | D12: 190.126 | E12: 68.945 | F12: 63.732 | G12: 145.08 | H12: 6.612 | I12: 1.238 | J12: 1.264 | K12: 1.42 | L12: ATMG00580.1 | M12: NAD4 | N12: NADH dehydrogenase subunit 4 | O12: oxidation-reduction process
A13: isotig56593 | B13: 7.245581531 | C13: 187.22 | D13: 137.64 | E13: 88.341 | F13: 130.891 | G13: 36.077 | H13: 0.968 | I13: 0.907 | J13: 1.388 | K13: 1.56
A14: isotig40165 | B14: 7.183427628 | C14: 768.679 | D14: 486.064 | E14: 306.871 | F14: 402.103 | G14: 158.957 | H14: 6.667 | I14: 3.344 | J14: 5.916 | K14: 7.416
A15: isotig06047 | B15: 7.169006327 | C15: 13.133 | D15: 69.076 | E15: 67.071 | F15: 86.496 | G15: 33.436 | H15: 0 | I15: 0.48 | J15: 0 | K15: 0
A16: isotig24350 | B16: 7.096996443 | C16: 192.239 | D16: 89.123 | E16: 132.228 | F16: 0 | G16: 0.719 | H16: 9.73 | I16: 0.651 | J16: 1.992 | K16: 3.732 | L16: AT4G26880.1 | N16: Stigma-specific STIG1-like protein 1 | O16: unknown
A17: isotig92432 | B17: 7.037565906 | C17: 11.091 | D17: 133.216 | E17: 54.463 | F17: 66.785 | G17: 110.931 | H17: 6.496 | I17: 1.014 | J17: 2.069 | K17: 4.651 | L17: ATMG00580.1 | M17: NAD4 | N17: NADH dehydrogenase subunit 4 | O17: oxidation-reduction process
A18: isotig66863 | B18: 7.022953771 | C18: 35.328 | D18: 76.341 | E18: 94.628 | F18: 90.654 | G18: 41.533 | H18: 3.135 | I18: 0.587 | J18: 0.599 | K18: 0.673
A19: isotig63611 | B19: 6.927808756 | C19: 28.291 | D19: 58.563 | E19: 48.874 | F19: 87.16 | G19: 51.05 | H19: 3.083 | I19: 0.481 | J19: 1.964 | K19: 2.759 | L19: AT2G18050.1 | M19: HIS1-3 | N19: histone H1-3 | O19: nucleosome assembly
A20: isotig11848 | B20: 6.881284672 | C20: 1043.502 | D20: 656.052 | E20: 442.745 | F20: 666.113 | G20: 166.769 | H20: 7.264 | I20: 5.565 | J20: 4.417 | K20: 5.319
A21: isotig26983 | B21: 6.826797116 | C21: 64.718 | D21: 72.539 | E21: 40.917 | F21: 33.573 | G21: 32.163 | H21: 1.024 | I21: 0.639 | J21: 0 | K21: 1.1 | L21: AT1G76160.1 | M21: sks5 | N21: SKU5 similar 5 | O21: plant-type cell wall cellulose metabolic process
A22: isotig51059 | B22: 6.762935843 | C22: 23.714 | D22: 150.634 | E22: 119.246 | F22: 565.477 | G22: 340.401 | H22: 12.592 | I22: 1.387 | J22: 2.831 | K22: 4.773 | L22: AT5G59320.1 | M22: LTP3 | N22: Non-specific lipid-transfer protein 3 | O22: response to ABA and abiotic stress
A23: isotig04667 | B23: 6.676893851 | C23: 32.512 | D23: 34.276 | E23: 20.606 | F23: 17.579 | G23: 9.993 | H23: 1.43 | I23: 0.335 | J23: 1.709 | K23: 1.92 | L23: AT1G76160.1 | M23: sks5 | N23: SKU5 similar 5 | O23: plant-type cell wall cellulose metabolic process
A24: isotig71086 | B24: 6.657248188 | C24: 30.171 | D24: 71.864 | E24: 75.079 | F24: 73.99 | G24: 44.838 | H24: 1.52 | I24: 0.712 | J24: 1.453 | K24: 1.632 | L24: AT3G46030.1 | M24: HTB11 | N24: Histone H2B.7 | O24: nucleosome assembly
A25: isotig80888 | B25: 6.609630638 | C25: 269.835 | D25: 417.087 | E25: 373.798 | F25: 547.779 | G25: 787.41 | H25: 21.892 | I25: 4.271 | J25: 2.615 | K25: 10.777 | L25: ATMG00580.1 | M25: NAD4 | N25: NADH dehydrogenase subunit 4 | O25: oxidation-reduction process
A26: isotig43079 | B26: 6.596585854 | C26: 12.039 | D26: 35.517 | E26: 33.322 | F26: 4.908 | G26: 15.001 | H26: 1.959 | I26: 0.367 | J26: 1.872 | K26: 2.104 | L26: AT1G11260.1 | M26: STP1 | N26: Sugar transport protein 1 | O26: transmembrane transport
A27: isotig44479 | B27: 6.575516897 | C27: 1.734 | D27: 40.343 | E27: 44.591 | F27: 9.572 | G27: 22.893 | H27: 0.451 | I27: 0.423 | J27: 0.431 | K27: 0 | L27: AT5G48540.1 | M27: CRRSP55 | N27: Cysteine-rich repeat secretory protein 55 | O27: response to karrikin
A28: isotig32048 | B28: 6.491148311 | C28: 5.229 | D28: 49.116 | E28: 71.503 | F28: 34.863 | G28: 45.889 | H28: 0.583 | I28: 0.546 | J28: 1.115 | K28: 2.506 | L28: AT4G27250.1 | N28: NAD(P)-binding Rossmann-fold superfamily protein | O28: gibberellin biosynthetic process
A29: isotig03831 | B29: 6.453146143 | C29: 16.25 | D29: 111.537 | E29: 99.077 | F29: 108.775 | G29: 83.966 | H29: 4.985 | I29: 1.273 | J29: 3.898 | K29: 0.487 | L29: AT5G67070.1 | M29: RALFL34 | N29: Protein RALF-like 34 | O29: cell-cell signaling; hormone activity
A30: isotig58592 | B30: 6.338921166 | C30: 22.081 | D30: 51.24 | E30: 46.39 | F30: 69.092 | G30: 86.788 | H30: 1.691 | I30: 0.633 | J30: 1.292 | K30: 1.089 | L30: AT1G72830.1 | M30: NFYA3 | N30: Nuclear transcription factor Y subunit A-3 | O30: DNA binding
A31: isotig14492 | B31: 6.312623688 | C31: 56.347 | D31: 52.858 | E31: 44.792 | F31: 17.786 | G31: 37.83 | H31: 1.419 | I31: 0.665 | J31: 2.374 | K31: 3.43 | L31: AT1G07290.1 | M31: GONST2 | N31: GDP-mannose transporter GONST2 | O31: protein glycosylation
A32: isotig13900 | B32: 6.309383717 | C32: 21.662 | D32: 85.652 | E32: 37.627 | F32: 70.039 | G32: 27.854 | H32: 3.076 | I32: 1.08 | J32: 1.47 | K32: 0.413 | L32: AT1G08880.1 | M32: HTA5 | N32: Probable histone H2AXa | O32: nucleosome assembly
A33: isotig57374 | B33: 6.249931853 | C33: 2.9 | D33: 20.168 | E33: 10.099 | F33: 12.006 | G33: 13.771 | H33: 2.831 | I33: 0.265 | J33: 0.812 | K33: 0 | L33: AT3G19240.1 | N33: Vacuolar import/degradation, Vid27-related protein | O33: protein binding
A34: isotig59043 | B34: 6.194209654 | C34: 12.28 | D34: 24.383 | E34: 20.467 | F34: 10.613 | G34: 23.16 | H34: 2.841 | I34: 0.333 | J34: 1.018 | K34: 1.907 | L34: AT3G61490.1 | N34: Pectin lyase-like superfamily protein | O34: cell wall organization
A35: isotig26898 | B35: 6.182838247 | C35: 14.423 | D35: 117.834 | E35: 130.76 | F35: 40.643 | G35: 51.114 | H35: 3.177 | I35: 1.622 | J35: 2.484 | K35: 3.102 | L35: AT5G26340.1 | M35: STP13 | N35: Sugar transport protein 13 | O35: response to abiotic stress
A37: The highest up-regulated transcripts in E2 when M2 RPKM value was equal to 0
C38: RPKM Embryos | H38: RPKM Megagametophytes | N38: Arabidopsis homologous gene names and annotation
A39: Transcript ID | B39: Fold change | C39: E1 | D39: E2 | E39: E3DO | F39: E3SU | G39: E4 | H39: M1 | I39: M2 | J39: M3 | K39: M4 | L39: At homologous | M39: At Name | N39: At Description | O39: Involved in
A40: isotig101972 | B40: 99 | C40: 2337.312 | D40: 1557.12 | E40: 774.994 | F40: 1080.524 | G40: 331.704 | H40: 2.751 | I40: 0 | J40: 0 | K40: 1.477
A41: isotig87650 | B41: 99 | C41: 7.694 | D41: 585.015 | E41: 423.194 | F41: 1747.17 | G41: 412.532 | H41: 7.01 | I41: 0 | J41: 0 | K41: 6.453 | L41: AT5G59320.1 | M41: LTP3 | N41: Non-specific lipid-transfer protein 3 | O41: response to ABA and abiotic stress
A42: isotig98833 | B42: 99 | C42: 980.78 | D42: 494.428 | E42: 351.408 | F42: 472.717 | G42: 153.43 | H42: 0 | I42: 0 | J42: 1.18 | K42: 0 | L42: AT5G23870.2 | M42: PAE9 | N42: Pectin acetylesterase 9 | O42: cell wall loosening
A43: isotig18163 | B43: 99 | C43: 297.588 | D43: 287.147 | E43: 411.141 | F43: 150.315 | G43: 30.857 | H43: 0 | I43: 0 | J43: 0 | K43: 0 | L43: AT5G62360.1 | M43: 0 | N43: Plant invertase/pectin methylesterase inhibitor superfamily protein | O43: negative regulation of catalytic activity
A44: isotig41809 | B44: 99 | C44: 55.68 | D44: 208.872 | E44: 124.012 | F44: 233.316 | G44: 19.844 | H44: 0 | I44: 0 | J44: 0 | K44: 0.735 | L44: AT5G09970.1 | M44: CYP78A7 | N44: Cytochrome P450 78A7 | O44: regulation of growth
A45: isotig04236 | B45: 99 | C45: 32.099 | D45: 162.718 | E45: 322.59 | F45: 587.741 | G45: 978.037 | H45: 0.874 | I45: 0 | J45: 0 | K45: 0.939
A46: isotig14330 | B46: 99 | C46: 234.826 | D46: 92.652 | E46: 80.893 | F46: 23.818 | G46: 2.019 | H46: 0 | I46: 0 | J46: 0 | K46: 0 | L46: AT4G38400.1 | M46: EXLA2 | N46: Expansin-like A2 | O46: sexual reproduction
A47: isotig113839 | B47: 99 | C47: 90.258 | D47: 91.296 | E47: 46.888 | F47: 24.705 | G47: 13.264 | H47: 0 | I47: 0 | J47: 6.123 | K47: 0
A48: isotig42299 | B48: 99 | C48: 344.004 | D48: 82.784 | E48: 93.16 | F48: 206.886 | G48: 7.429 | H48: 0.342 | I48: 0 | J48: 0.653 | K48: 0.734
A49: isotig45249 | B49: 99 | C49: 37.635 | D49: 80.577 | E49: 56.005 | F49: 25.968 | G49: 14.702 | H49: 0 | I49: 0 | J49: 0 | K49: 1.052
A50: isotig13103 | B50: 99 | C50: 15.678 | D50: 78.299 | E50: 95.186 | F50: 92.194 | G50: 19.799 | H50: 0 | I50: 0 | J50: 0 | K50: 1.644
A51: isotig25556 | B51: 99 | C51: 170.334 | D51: 77.394 | E51: 85.883 | F51: 112.444 | G51: 92.764 | H51: 0 | I51: 0 | J51: 0 | K51: 0 | L51: AT1G10460.1 | M51: GLP7 | N51: Germin-like protein subfamily 1 member 1 | O51: metal ion binding
A52: isotig16733 | B52: 99 | C52: 40.055 | D52: 75.718 | E52: 75.983 | F52: 95.887 | G52: 16.983 | H52: 0 | I52: 0 | J52: 0 | K52: 0
A53: isotig93401 | B53: 99 | C53: 292.782 | D53: 72.613 | E53: 51.277 | F53: 117.608 | G53: 7.964 | H53: 0 | I53: 0 | J53: 0 | K53: 1.181 | L53: AT1G01190.1 | M53: CYP78A8 | N53: cytochrome P450, family 78, subfamily A, polypeptide 8 | O53: oxidation-reduction process
A54: PUT-49222 | B54: 99 | C54: 29.002 | D54: 58.67 | E54: 29.002 | F54: 39.294 | G54: 14.064 | H54: 9.059 | I54: 0 | J54: 0 | K54: 14.594
A55: isotig116979 | B55: 99 | C55: 19.789 | D55: 53.378 | E55: 75.388 | F55: 74.479 | G55: 26.658 | H55: 20.605 | I55: 0 | J55: 4.922 | K55: 27.662
A56: isotig66087 | B56: 99 | C56: 7.746 | D56: 53.276 | E56: 43.707 | F56: 1.166 | G56: 14.399 | H56: 0.605 | I56: 0 | J56: 0 | K56: 0 | L56: AT3G19430.1 | N56: late embryogenesis abundant protein-related / LEA protein-related | O56: unknown
A57: isotig04574 | B57: 99 | C57: 203.454 | D57: 50.966 | E57: 34.9 | F57: 56.315 | G57: 3.394 | H57: 0 | I57: 0 | J57: 0 | K57: 0 | L57: AT5G09970.1 | M57: CYP78A7 | N57: Cytochrome P450 78A7 | O57: regulation of growth
A58: isotig58929 | B58: 99 | C58: 22.488 | D58: 48.677 | E58: 26.343 | F58: 19.297 | G58: 10.542 | H58: 0 | I58: 0 | J58: 0 | K58: 0 | L58: AT1G76160.1 | M58: sks5 | N58: SKU5 similar 5 | O58: plant-type cell wall cellulose metabolic process
A59: isotig89904 | B59: 99 | C59: 12.015 | D59: 45.912 | E59: 17.164 | F59: 46.224 | G59: 20.501 | H59: 1.042 | I59: 0 | J59: 0 | K59: 1.12
A60: isotig19551 | B60: 99 | C60: 84.732 | D60: 45.71 | E60: 52.453 | F60: 39.685 | G60: 3.044 | H60: 0 | I60: 0 | J60: 0 | K60: 0
A61: isotig73704 | B61: 99 | C61: 7.382 | D61: 44.803 | E61: 21.845 | F61: 33.34 | G61: 17.048 | H61: 0 | I61: 0 | J61: 0 | K61: 0 | L61: AT5G62040.1 | M61: BFT | N61: Protein BROTHER of FT and TFL 1 | O61: vegetative to reproductive phase transition of meristem
A62: isotig12568 | B62: 99 | C62: 0.969 | D62: 43.128 | E62: 57.104 | F62: 27.718 | G62: 110.827 | H62: 0 | I62: 0 | J62: 0 | K62: 0 | L62: AT1G77380.1 | M62: AAP3 | N62: Amino acid permease 3 | O62: amino acid transmembrane transport
A63: isotig48879 | B63: 99 | C63: 25.322 | D63: 42.993 | E63: 32.944 | F63: 34.036 | G63: 11.695 | H63: 0 | I63: 0 | J63: 0 | K63: 0 | L63: AT3G54560.1 | M63: H2AV | N63: Histone H2A variant 1 | O63: nucleosome assembly
A64: isotig25890 | B64: 99 | C64: 8.571 | D64: 41.181 | E64: 24.489 | F64: 30.645 | G64: 18.185 | H64: 0 | I64: 0 | J64: 0 | K64: 0
A65: isotig103195 | B65: 99 | C65: 0 | D65: 40.909 | E65: 64.342 | F65: 44.28 | G65: 57.948 | H65: 0 | I65: 0 | J65: 0 | K65: 0
A66: isotig105977 | B66: 99 | C66: 4.214 | D66: 40.493 | E66: 10.535 | F66: 7.93 | G66: 13.624 | H66: 6.581 | I66: 0 | J66: 6.289 | K66: 12.37
A67: isotig66830 | B67: 99 | C67: 44.749 | D67: 40.414 | E67: 23.402 | F67: 30.074 | G67: 13.563 | H67: 0 | I67: 0 | J67: 0 | K67: 1.34 | L67: AT2G04780.1 | M67: FLA7 | N67: Fasciclin-like arabinogalactan protein 7
A68: isotig105225 | B68: 99 | C68: 141.863 | D68: 38.948 | E68: 21.714 | F68: 45.764 | G68: 1.638 | H68: 0 | I68: 0 | J68: 0 | K68: 0 | L68: AT5G09970.1 | M68: CYP78A7 | N68: Cytochrome P450 78A7 | O68: regulation of growth
A69: isotig115879 | B69: 99 | C69: 0 | D69: 38.837 | E69: 0 | F69: 0 | G69: 0 | H69: 0 | I69: 0 | J69: 0 | K69: 0

Sheet Up in M2 (E2xM2)
A1: Additional file 2: Differentially expressed transcripts (DETs) in embryos and megagametophytes at different stages of seed development.
A2: The Arabidopsis genes showing the highest sequence similarity to the Scots pine transcript are presented (#N/A = no alignment to genes in the TAIR database. Cut off value 1e-5)
A3: The highest up-regulated transcripts in M2/E2. Samples subjected to pairwise comparison are highlighted in bold
C4: RPKM Embryos | H4: RPKM Megagametophytes | N4: Arabidopsis homologous gene names and annotation
A5: Transcript ID | B5: Fold change | C5: E1 | D5: E2 | E5: E3DO | F5: E3SU | G5: E4 | H5: M1 | I5: M2 | J5: M3 | K5: M4 | L5: At locus ID | M5: At name | N5: At annotation | O5: Involved in
A6: isotig111460 | B6: -5.958134753 | C6: 6.428 | D6: 3.251 | E6: 41.325 | F6: 14.516 | G6: 38.968 | H6: 102.908 | I6: 202.113 | J6: 155.905 | K6: 272.266
A7: isotig15249 | B7: -5.834753372 | C7: 2.522 | D7: 0.638 | E7: 0.45 | F7: 1.424 | G7: 3.567 | H7: 16.737 | I7: 36.413 | J7: 26.343 | K7: 54.456
A8: isotig91286 | B8: -5.598368166 | C8: 4.059 | D8: 1.368 | E8: 3.865 | F8: 1.018 | G8: 6.561 | H8: 54.936 | I8: 66.277 | J8: 57.546 | K8: 118.004 | L8: AT4G28520.1 | M8: CRC | N8: 12S seed storage protein CRC | O8: seed maturation; nutrient reservoir activity
A9: isotig11912 | B9: -5.461499843 | C9: 2.379 | D9: 0.602 | E9: 3.398 | F9: 4.029 | G9: 4.807 | H9: 20.435 | I9: 26.526 | J9: 23.966 | K9: 22.944
A10: isotig94827 | B10: -5.364553362 | C10: 8.713 | D10: 1.469 | E10: 9.335 | F10: 7.651 | G10: 14.085 | H10: 68.04 | I10: 60.522 | J10: 58.517 | K10: 64.549
A11: isotig110991 | B11: -5.259906608 | C11: 0 | D11: 3.112 | E11: 0 | F11: 0 | G11: 17.409 | H11: 117.738 | I11: 119.242 | J11: 121.697 | K11: 121.29
A12: isotig08500 | B12: -5.204198923 | C12: 30.359 | D12: 2.996 | E12: 6.347 | F12: 12.262 | G12: 27.53 | H12: 221.461 | I12: 110.449 | J12: 88.962 | K12: 95.637
A13: isotig86626 | B13: -5.203859207 | C13: 3.789 | D13: 1.278 | E13: 2.707 | F13: 0.951 | G13: 2.042 | H13: 18.741 | I13: 47.103 | J13: 47.13 | K13: 43.435
A14: isotig65828 | B14: -5.174794995 | C14: 1.51 | D14: 0.764 | E14: 1.618 | F14: 3.409 | G14: 1.83 | H14: 20.632 | I14: 27.597 | J14: 15.773 | K14: 19.626
A15: isotig105498 | B15: -5.146456319 | C15: 0 | D15: 6.225 | E15: 24.909 | F15: 10.808 | G15: 31.502 | H15: 179.411 | I15: 220.484 | J15: 214.309 | K15: 378.494
A16: isotig100247 | B16: -5.086444923 | C16: 0 | D16: 1.668 | E16: 1.178 | F16: 0 | G16: 1.333 | H16: 30.907 | I16: 56.672 | J16: 50.456 | K16: 84.368
A17: isotig96528 | B17: -5.055318349 | C17: 4.479 | D17: 7.551 | E17: 83.18 | F17: 40.456 | G17: 102.57 | H17: 174.88 | I17: 251.077 | J17: 320.865 | K17: 313.036
A18: isotig87457 | B18: -5.023516572 | C18: 1.279 | D18: 2.588 | E18: 5.482 | F18: 1.926 | G18: 12.407 | H18: 38.957 | I18: 84.177 | J18: 55.364 | K18: 92.262 | L18: AT1G03890.1 | M18: CRD | N18: 12S seed storage protein CRD | O18: seed maturation; nutrient reservoir activity
A19: isotig81937 | B19: -5.023181412 | C19: 2.372 | D19: 1.2 | E19: 2.541 | F19: 0.893 | G19: 0 | H19: 27.783 | I19: 39.022 | J19: 12.39 | K19: 8.952
A20: isotig40699 | B20: -4.97471098 | C20: 3.056 | D20: 0.687 | E20: 2.183 | F20: 1.022 | G20: 5.215 | H20: 13.259 | I20: 21.602 | J20: 15.205 | K20: 19.937 | L20: AT2G14740.1 | M20: VSR3 | N20: Vacuolar-sorting receptor 3 | O20: protein targeting to vacuole
A21: isotig108255 | B21: -4.969202001 | C21: 4.887 | D21: 14.831 | E21: 75.057 | F21: 75.416 | G21: 108.633 | H21: 171.746 | I21: 464.568 | J21: 444.955 | K21: 379.161
A22: isotig13086 | B22: -4.958420896 | C22: 11.117 | D22: 1.606 | E22: 2.836 | F22: 4.184 | G22: 0 | H22: 34.725 | I22: 49.932 | J22: 79.403 | K22: 73.923
A23: isotig53951 | B23: -4.924064934 | C23: 13.979 | D23: 1.414 | E23: 17.972 | F23: 7.365 | G23: 11.298 | H23: 26.198 | I23: 42.928 | J23: 52.157 | K23: 113.72
A24: isotig93754 | B24: -4.871692557 | C24: 2.863 | D24: 2.896 | E24: 25.564 | F24: 14.008 | G24: 69.424 | H24: 140.856 | I24: 84.786 | J24: 120.716 | K24: 171.691
A25: isotig96023 | B25: -4.871631272 | C25: 0 | D25: 6.014 | E25: 11.679 | F25: 8.951 | G25: 10.812 | H25: 117.232 | I25: 176.064 | J25: 266.206 | K25: 184.499
A26: isotig15915 | B26: -4.854087079 | C26: 3.302 | D26: 1.113 | E26: 4.324 | F26: 2.9 | G26: 1.334 | H26: 33.949 | I26: 32.19 | J26: 21.765 | K26: 25.384 | L26: AT1G21460.1 | M26: SWEET1 | N26: Bidirectional sugar transporter SWEET1 | O26: carbohydrate transmembrane transport
A27: isotig89551 | B27: -4.853961953 | C27: 2.635 | D27: 2.665 | E27: 6.588 | F27: 5.951 | G27: 14.909 | H27: 68.935 | I27: 77.07 | J27: 74.724 | K27: 101.662
A28: isotig83926 | B28: -4.853677236 | C28: 6.08 | D28: 4.92 | E28: 6.08 | F28: 6.407 | G28: 3.931 | H28: 102.551 | I28: 142.255 | J28: 137.925 | K28: 149.914
A29: isotig67718 | B29: -4.853238076 | C29: 5.046 | D29: 0.851 | E29: 1.201 | F29: 0 | G29: 24.472 | H29: 11.822 | I29: 24.598 | J29: 13.808 | K29: 14.108
A30: isotig101116 | B30: -4.83927735 | C30: 8.467 | D30: 8.564 | E30: 9.676 | F30: 2.549 | G30: 1.369 | H30: 97.854 | I30: 245.157 | J30: 296.96 | K30: 184.628
A31: isotig70333 | B31: -4.816853255 | C31: 1.892 | D31: 0.957 | E31: 2.703 | F31: 0 | G31: 0 | H31: 4.432 | I31: 26.973 | J31: 12.705 | K31: 36.492
A32: isotig74245 | B32: -4.816517983 | C32: 1.052 | D32: 1.065 | E32: 3.007 | F32: 0 | G32: 6.805 | H32: 17.258 | I32: 30.01 | J32: 45.55 | K32: 55.606 | L32: AT1G52240.2 | M32: ATROPGEF11 | N32: RHO guanyl-nucleotide exchange factor 11 | O32: microtubule-based process
A33: isotig81044 | B33: -4.798486181 | C33: 0 | D33: 2.366 | E33: 2.506 | F33: 5.282 | G33: 22.686 | H33: 19.178 | I33: 65.842 | J33: 39.272 | K33: 46.099 | L33: AT2G24762.1 | M33: GDU4 | N33: Protein GLUTAMINE DUMPER 4 | O33: regulation of amino acid export
A34: isotig116039 | B34: -4.779771727 | C34: 0 | D34: 5.735 | E34: 28.35 | F34: 17.071 | G34: 45.828 | H34: 119.547 | I34: 157.539 | J34: 126.934 | K34: 247.278
A35: isotig38068 | B35: -4.756736978 | C35: 4.476 | D35: 5.659 | E35: 21.579 | F35: 7.58 | G35: 17.183 | H35: 71.648 | I35: 152.989 | J35: 137.77 | K35: 213.959 | L35: AT1G03890.1 | M35: CRD | N35: 12S seed storage protein CRD | O35: nutrient reservoir activity
A37: The highest up-regulated transcripts in M2 when E2 RPKM value was equal to 0
C38: RPKM Embryos | H38: RPKM Megagametophytes | N38: Arabidopsis homologous gene names and annotation
A39: ID | B39: Fold change | C39: E1 | D39: E2 | E39: E3DO | F39: E3SU | G39: E4 | H39: M1 | I39: M2 | J39: M3 | K39: M4 | L39: At homologous | M39: At Name | N39: At Description | O39: Involved in
A40: isotig111425 | B40: -99 | C40: 9.704 | D40: 0 | E40: 11.553 | F40: 12.174 | G40: 7.844 | H40: 169.245 | I40: 153.739 | J40: 142.421 | K40: 143.788 | L40: AT1G76990.1 | M40: ACR3 | N40: ACT domain-containing protein ACR3 | O40: cysteine biosynthetic process
A41: isotig113357 | B41: -99 | C41: 0 | D41: 0 | E41: 0 | F41: 0 | G41: 3.15 | H41: 33.472 | I41: 68.381 | J41: 43.618 | K41: 62.095
A42: isotig107041 | B42: -99 | C42: 0 | D42: 0 | E42: 0 | F42: 7.034 | G42: 16.994 | H42: 31.014 | I42: 56.371 | J42: 31.381 | K42: 33.309
A43: isotig93861 | B43: -99 | C43: 1.414 | D43: 0 | E43: 10.097 | F43: 4.256 | G43: 11.425 | H43: 38.634 | I43: 54.778 | J43: 81.221 | K43: 61.646
A44: isotig115197 | B44: -99 | C44: 0 | D44: 0 | E44: 14.066 | F44: 0 | G44: 39.792 | H44: 11.534 | I44: 50.396 | J44: 36.739 | K44: 53.677
A45: isotig103400 | B45: -99 | C45: 0 | D45: 0 | E45: 0 | F45: 0 | G45: 0 | H45: 31.169 | I45: 48.641 | J45: 56.734 | K45: 121.149
A46: isotig102633 | B46: -99 | C46: 0 | D46: 0 | E46: 0 | F46: 0 | G46: 0 | H46: 25.333 | I46: 44.804 | J46: 60.52 | K46: 71.041
A47: isotig95840 | B47: -99 | C47: 1.471 | D47: 0 | E47: 3.153 | F47: 3.322 | G47: 4.756 | H47: 24.126 | I47: 43.029 | J47: 19.762 | K47: 60.461
A48: isotig114762 | B48: -99 | C48: 0 | D48: 0 | E48: 0 | F48: 0 | G48: 0 | H48: 54.087 | I48: 39.791 | J48: 95.989 | K48: 70.538
A49: isotig103518 | B49: -99 | C49: 3.724 | D49: 0 | E49: 5.32 | F49: 2.803 | G49: 9.03 | H49: 33.444 | I49: 39.484 | J49: 33.349 | K49: 35.919
A50: isotig108157 | B50: -99 | C50: 0 | D50: 0 | E50: 0 | F50: 3.661 | G50: 3.931 | H50: 15.193 | I50: 39.12 | J50: 19.963 | K50: 38.753
A51: isotig88459 | B51: -99 | C51: 5.189 | D51: 0 | E51: 0.927 | F51: 3.906 | G51: 3.146 | H51: 5.065 | I51: 37.941 | J51: 61.955 | K51: 57.663
A52: isotig111394 | B52: -99 | C52: 0 | D52: 0 | E52: 2.281 | F52: 0 | G52: 0 | H52: 27.435 | I52: 37.364 | J52: 45.284 | K52: 42.858
A53: isotig55863 | B53: -99 | C53: 0 | D53: 0 | E53: 3.972 | F53: 0 | G53: 4.494 | H53: 32.567 | I53: 36.592 | J53: 37.346 | K53: 25.65
A54: isotig116304 | B54: -99 | C54: 0 | D54: 0 | E54: 0 | F54: 4.495 | G54: 0 | H54: 32.644 | I54: 34.932 | J54: 31.195 | K54: 45.077
A55: isotig109530 | B55: -99 | C55: 2.699 | D55: 0 | E55: 13.493 | F55: 6.094 | G55: 8.724 | H55: 31.609 | I55: 33.543 | J55: 14.096 | K55: 29.422 | L55: AT3G02470.1 | M55: SAMDC1 | N55: S-adenosylmethionine decarboxylase proenzyme 1 | O55: spermidine biosynthetic process
A56: isotig49875 | B56: -99 | C56: 0 | D56: 0 | E56: 4.123 | F56: 1.448 | G56: 3.888 | H56: 27.047 | I56: 33.063 | J56: 25.129 | K56: 24.207 | L56: AT2G01300.1 | M56: unknown protein
A57: isotig105366 | B57: -99 | C57: 10.194 | D57: 0 | E57: 4.369 | F57: 3.069 | G57: 6.592 | H57: 50.95 | I57: 32.798 | J57: 38.037 | K57: 32.49 | L57: AT1G80760.1 | M57: NIP6-1 | N57: Aquaporin NIP6-1 | O57: water transport
A58: isotig114480 | B58: -99 | C58: 0 | D58: 0 | E58: 3.176 | F58: 0 | G58: 3.594 | H58: 10.416 | I58: 32.509 | J58: 69.674 | K58: 108.137
A59: isotig111247 | B59: -99 | C59: 0 | D59: 0 | E59: 2.253 | F59: 0 | G59: 2.549 | H59: 27.092 | I59: 32.285 | J59: 61.193 | K59: 31.742
A60: isotig108267 | B60: -99 | C60: 4.887 | D60: 0 | E60: 5.237 | F60: 1.839 | G60: 3.95 | H60: 34.349 | I60: 32.162 | J60: 58.355 | K60: 34.842
A61: isotig96314 | B61: -99 | C61: 0 | D61: 0 | E61: 2.198 | F61: 2.316 | G61: 4.974 | H61: 33.639 | I61: 31.498 | J61: 25.258 | K61: 15.484
A62: isotig96969 | B62: -99 | C62: 3.026 | D62: 0 | E62: 0 | F62: 0 | G62: 0 | H62: 11.816 | I62: 30.978 | J62: 21.454 | K62: 12.69
A63: isotig114674 | B63: -99 | C63: 5.229 | D63: 0 | E63: 3.735 | F63: 7.872 | G63: 0 | H63: 16.334 | I63: 30.589 | J63: 31.218 | K63: 39.472
A64: isotig36963 | B64: -99 | C64: 0 | D64: 0 | E64: 5.923 | F64: 2.675 | G64: 2.872 | H64: 12.025 | I64: 28.582 | J64: 25.635 | K64: 22.85
A65: isotig115110 | B65: -99 | C65: 0 | D65: 0 | E65: 0 | F65: 0 | G65: 3.922 | H65: 22.734 | I65: 28.383 | J65: 36.209 | K65: 32.556
A66: isotig83588 | B66: -99 | C66: 1.226 | D66: 0 | E66: 1.752 | F66: 0 | G66: 0 | H66: 16.28 | I66: 26.003 | J66: 10.981 | K66: 16.456
A67: isotig112494 | B67: -99 | C67: 0 | D67: 0 | E67: 5.041 | F67: 7.969 | G67: 0 | H67: 16.534 | I67: 25.802 | J67: 28.967 | K67: 35.515
A68: isotig80019 | B68: -99 | C68: 1.157 | D68: 0 | E68: 0 | F68: 0 | G68: 2.806 | H68: 3.615 | I68: 25.388 | J68: 33.684 | K68: 27.18
A69: isotig14517 | B69: -99 | C69: 0.526 | D69: 0 | E69: 1.878 | F69: 0.792 | G69: 4.251 | H69: 22.588 | I69: 24.996 | J69: 33.752 | K69: 21.613

Sheet Up in E3DO (E3DOxM3)
A1: Additional file 2: Differentially expressed transcripts (DETs) in embryos and megagametophytes at different stages of seed development.
A2: The Arabidopsis genes showing the highest sequence similarity to the Scots pine transcript are presented (#N/A = no alignment to genes in the TAIR database. Cut off value 1e-5)
A3: The highest up-regulated transcripts in E3DO/M3. Samples subjected to pairwise comparison are highlighted in bold
C4: RPKM Embryos | H4: RPKM Megagametophytes | N4: Arabidopsis homologous gene names and annotation
A5: Transcript ID | B5: Fold change | C5: E1 | D5: E2 | E5: E3DO | F5: E3SU | G5: E4 | H5: M1 | I5: M2 | J5: M3 | K5: M4 | L5: At locus ID | M5: At name | N5: At annotation | O5: Involved in
A6: isotig98833 | B6: 8.218216366 | C6: 980.78 | D6: 494.428 | E6: 351.408 | F6: 472.717 | G6: 153.43 | H6: 0 | I6: 0 | J6: 1.18 | K6: 0 | L6: AT5G23870.2 | M6: PAE9 | N6: Pectin acetylesterase 9 | O6: cell wall loosening
A7: isotig60244 | B7: 7.872747772 | C7: 175.589 | D7: 119.435 | E7: 89.067 | F7: 0.766 | G7: 9.461 | H7: 3.577 | I7: 0.744 | J7: 0.38 | K7: 0 | L7: AT4G23560.1 | M7: AtGH9B15 | N7: Endoglucanase 20 | O7: cell wall organization
A8: isotig56640 | B8: 7.765557365 | C8: 366.459 | D8: 151.191 | E8: 102.056 | F8: 132.601 | G8: 21.066 | H8: 0.736 | I8: 0.459 | J8: 0.469 | K8: 0.527
A9: isotig66863 | B9: 7.30356732 | C9: 35.328 | D9: 76.341 | E9: 94.628 | F9: 90.654 | G9: 41.533 | H9: 3.135 | I9: 0.587 | J9: 0.599 | K9: 0.673
A10: isotig80888 | B10: 7.159304093 | C10: 269.835 | D10: 417.087 | E10: 373.798 | F10: 547.779 | G10: 787.41 | H10: 21.892 | I10: 4.271 | J10: 2.615 | K10: 10.777 | L10: ATMG00580.1 | M10: NAD4 | N10: NADH dehydrogenase subunit 4 | O10: oxidation-reduction process
A11: isotig42299 | B11: 7.156483838 | C11: 344.004 | D11: 82.784 | E11: 93.16 | F11: 206.886 | G11: 7.429 | H11: 0.342 | I11: 0 | J11: 0.653 | K11: 0.734
A12: isotig60442 | B12: 7.02589067 | C12: 30.111 | D12: 57.239 | E12: 50.433 | F12: 34.389 | G12: 25.597 | H12: 1.622 | I12: 1.898 | J12: 0.387 | K12: 1.306 | L12: AT3G45310.1 | M12: 0 | N12: Thiol protease aleurain-like | O12: proteolysis involved in cellular protein catabolic process
A13: isotig63780 | B13: 6.980715435 | C13: 95.012 | D13: 57.797 | E13: 62.645 | F13: 5.001 | G13: 5.37 | H13: 1.557 | I13: 3.886 | J13: 0.496 | K13: 1.114 | L13: AT5G60530.1 | M13: 0 | N13: late embryogenesis abundant protein-related / LEA protein-related | O13: transition metal ion transport
A14: isotig83308 | B14: 6.824423748 | C14: 822.445 | D14: 673.619 | E14: 1025.89 | F14: 1868.158 | G14: 1106.928 | H14: 57.783 | I14: 18.626 | J14: 9.052 | K14: 15.261
A15: isotig44479 | B15: 6.692920874 | C15: 1.734 | D15: 40.343 | E15: 44.591 | F15: 9.572 | G15: 22.893 | H15: 0.451 | I15: 0.423 | J15: 0.431 | K15: 0 | L15: AT5G48540.1 | M15: CRRSP55 | N15: Cysteine-rich repeat secretory protein 55 | O15: esponse to karrikin
A16: isotig11848 | B16: 6.647265372 | C16: 1043.502 | D16: 656.052 | E16: 442.745 | F16: 666.113 | G16: 166.769 | H16: 7.264 | I16: 5.565 | J16: 4.417 | K16: 5.319
A17: isotig38581 | B17: 6.581607467 | C17: 53.73 | D17: 113.592 | E17: 69.151 | F17: 214.241 | G17: 43.036 | H17: 0.378 | I17: 0.354 | J17: 0.722 | K17: 2.03 | L17: AT5G09970.1 | M17: CYP78A7 | N17: Cytochrome P450 78A7 | O17: regulation of growth
A18: isotig28506 | B18: 6.379847636 | C18: 2.573 | D18: 34.484 | E18: 39.973 | F18: 58.586 | G18: 48.351 | H18: 0.502 | I18: 0 | J18: 0.48 | K18: 0
A19: isotig34646 | B19: 6.37593432 | C19: 426.889 | D19: 167.432 | E19: 166.103 | F19: 35.311 | G19: 93.707 | H19: 16.746 | I19: 4.41 | J19: 2 | K19: 4.496 | L19: AT4G01610.1 | M19: 0 | N19: Cysteine proteinases superfamily protein | O19: cell morphogenesis; cell growth
A20: isotig55937 | B20: 6.312310177 | C20: 14.336 | D20: 22.235 | E20: 56.661 | F20: 12.949 | G20: 26.264 | H20: 2.985 | I20: 0.699 | J20: 0.713 | K20: 0.802 | L20: AT1G28330.1 | M20: DYL1 | N20: dormancy-associated protein-like 1 | O20: unknown
A21: isotig70648 | B21: 6.275867972 | C21: 31.114 | D21: 35.405 | E21: 56.255 | F21: 50.499 | G21: 24.362 | H21: 1.519 | I21: 1.422 | J21: 0.726 | K21: 0 | L21: AT3G57440.1 | M21: 0 | N21: unknown | O21: unknown
A22: isotig55932 | B22: 6.275193334 | C22: 8.621 | D22: 20.554 | E22: 35.627 | F22: 37.08 | G22: 18.913 | H22: 5.77 | I22: 2.251 | J22: 0.46 | K22: 1.549 | L22: AT2G39795.1 | M22: 0 | N22: Uncharacterized protein At2g39795, mitochondrial | O22: unknown
A23: isotig62762 | B23: 6.257769793 | C23: 373.053 | D23: 22.234 | E23: 35.888 | F23: 1.418 | G23: 5.076 | H23: 3.433 | I23: 1.378 | J23: 0.469 | K23: 3.16 | L23: AT1G69830.1 | M23: AMY3 | N23: Alpha-amylase 3, chloroplastic | O23: carbohydrate metabolic process
A24: isotig78926 | B24: 6.250055069 | C24: 88.551 | D24: 87.272 | E24: 128.934 | F24: 17.945 | G24: 13.764 | H24: 0 | I24: 1.66 | J24: 1.694 | K24: 0.952 | L24: AT5G62360.1 | M24: 0 | N24: Plant invertase/pectin methylesterase inhibitor superfamily protein | O24: negative regulation of catalytic activity
A25: isotig113860 | B25: 6.146112615 | C25: 53.335 | D25: 336.136 | E25: 216.855 | F25: 200.729 | G25: 437.711 | H25: 32.038 | I25: 11.999 | J25: 3.062 | K25: 6.882
A26: isotig39079 | B26: 6.065245309 | C26: 15.074 | D26: 25.413 | E26: 35.891 | F26: 15.669 | G26: 19.146 | H26: 0 | I26: 0 | J26: 0.536 | K26: 0 | L26: AT1G20190.1 | M26: EXPA11 | N26: Expansin-A11 | O26: plant-type cell wall organization
A27: isotig24350 | B27: 6.05266625 | C27: 192.239 | D27: 89.123 | E27: 132.228 | F27: 0 | G27: 0.719 | H27: 9.73 | I27: 0.651 | J27: 1.992 | K27: 3.732 | L27: AT4G26880.1 | M27: 0 | N27: Stigma-specific STIG1-like protein 1 | O27: unknown
A28: isotig78934 | B28: 6.024483834 | C28: 51.202 | D28: 82.866 | E28: 55.266 | F28: 75.369 | G28: 123.234 | H28: 3.554 | I28: 1.664 | J28: 0.849 | K28: 3.817 | L28: ATMG00580.1 | M28: NAD4 | N28: NADH dehydrogenase subunit 4 | O28: oxidation-reduction process
A29: isotig32048 | B29: 6.002888158 | C29: 5.229 | D29: 49.116 | E29: 71.503 | F29: 34.863 | G29: 45.889 | H29: 0.583 | I29: 0.546 | J29: 1.115 | K29: 2.506 | L29: AT4G27250.1 | M29: 0 | N29: NAD(P)-binding Rossmann-fold superfamily protein | O29: gibberellin biosynthetic process
A30: isotig114214 | B30: 5.998681286 | C30: 650.028 | D30: 333.077 | E30: 1020.251 | F30: 2343.423 | G30: 1023.125 | H30: 33.395 | I30: 18.761 | J30: 15.956 | K30: 14.347
A31: isotig39384 | B31: 5.996202144 | C31: 34.002 | D31: 128.715 | E31: 73.598 | F31: 140.768 | G31: 84.114 | H31: 8.046 | I31: 4.52 | J31: 1.153 | K31: 7.345 | L31: AT4G32460.1 | M31: 0 | N31: Protein of unknown function, DUF642 | O31: unknown
A32: isotig56593 | B32: 5.99200369 | C32: 187.22 | D32: 137.64 | E32: 88.341 | F32: 130.891 | G32: 36.077 | H32: 0.968 | I32: 0.907 | J32: 1.388 | K32: 1.56
A33: isotig64994 | B33: 5.960571541 | C33: 10.844 | D33: 9.507 | E33: 33.566 | F33: 0.544 | G33: 7.012 | H33: 0 | I33: 0.529 | J33: 0.539 | K33: 0.606 | L33: AT1G14520.1 | M33: MIOX1 | N33: Inositol oxygenase 1 | O33: oxidation-reduction process
A34: isotig23092 | B34: 5.958537898 | C34: 36.7 | D34: 37.122 | E34: 42.598 | F34: 89.78 | G34: 22.989 | H34: 9.314 | I34: 0 | J34: 0.685 | K34: 3.078
A35: isotig21539 | B35: 5.936249631 | C35: 28.766 | D35: 20.22 | E35: 22.289 | F35: 1.468 | G35: 4.729 | H35: 0.381 | I35: 0 | J35: 0.364 | K35: 1.227 | L35: AT3G26200.1 | M35: CYP71B22 | N35: Cytochrome P450 71B22 | O35: oxidation-reduction process
A37: The highest up-regulated transcripts in E3DO when M3 RPKM value was equal to 0
C38: RPKM Embryos | H38: RPKM Megagametophytes | N38: Arabidopsis homologous gene names and annotation
A39: Transcript ID | B39: Fold change | C39: E1 | D39: E2 | E39: E3DO | F39: E3SU | G39: E4 | H39: M1 | I39: M2 | J39: M3 | K39: M4 | L39: At Transcript ID | M39: At Name | N39: At Description | O39: Involved in
A40: isotig101972 | B40: 99 | C40: 2337.312 | D40: 1557.12 | E40: 774.994 | F40: 1080.524 | G40: 331.704 | H40: 2.751 | I40: 0 | J40: 0 | K40: 1.477
A41: isotig87650 | B41: 99 | C41: 7.694 | D41: 585.015 | E41: 423.194 | F41: 1747.17 | G41: 412.532 | H41: 7.01 | I41: 0 | J41: 0 | K41: 6.453 | L41: AT5G59320.1 | M41: LTP3 | N41: Non-specific lipid-transfer protein 3 | O41: response to abscisic acid; response to water deprivation
A42: isotig18163 | B42: 99 | C42: 297.588 | D42: 287.147 | E42: 411.141 | F42: 150.315 | G42: 30.857 | H42: 0 | I42: 0 | J42: 0 | K42: 0 | L42: AT5G62360.1 | M42: 0 | N42: Plant invertase/pectin methylesterase inhibitor superfamily protein | O42: negative regulation of catalytic activity
A43: isotig04236 | B43: 99 | C43: 32.099 | D43: 162.718 | E43: 322.59 | F43: 587.741 | G43: 978.037 | H43: 0.874 | I43: 0 | J43: 0 | K43: 0.939
A44: isotig75051 | B44: 99 | C44: 69.346 | D44: 120.863 | E44: 172.985 | F44: 556.51 | G44: 468.228 | H44: 5.832 | I44: 0.78 | J44: 0 | K44: 3.579 | L44: AT2G18050.1 | M44: HIS1-3 | N44: histone H1-3 | O44: nucleosome assembly
A45: isotig41809 | B45: 99 | C45: 55.68 | D45: 208.872 | E45: 124.012 | F45: 233.316 | G45: 19.844 | H45: 0 | I45: 0 | J45: 0 | K45: 0.735 | L45: AT5G09970.1 | M45: CYP78A7 | N45: Cytochrome P450 78A7 | O45: regulation of growth
A46: isotig07360 | B46: 99 | C46: 71.552 | D46: 115.799 | E46: 115.128 | F46: 326.549 | G46: 273.941 | H46: 7.646 | I46: 0.551 | J46: 0 | K46: 3.158 | L46: AT2G18050.1 | M46: HIS1-3 | N46: histone H1-3 | O46: nucleosome assembly
A47: PUT-58056 | B47: 99 | C47: 58.629 | D47: 122.842 | E47: 101.703 | F47: 138.697 | G47: 16.924 | H47: 16.351 | I47: 6.124 | J47: 0 | K47: 7.024
A48: isotig13103 | B48: 99 | C48: 15.678 | D48: 78.299 | E48: 95.186 | F48: 92.194 | G48: 19.799 | H48: 0 | I48: 0 | J48: 0 | K48: 1.644
A49: isotig73073 | B49: 99 | C49: 28.689 | D49: 84.985 | E49: 87.093 | F49: 125.714 | G49: 53.002 | H49: 1.6 | I49: 1.498 | J49: 0 | K49: 0.859
A50: isotig25556 | B50: 99 | C50: 170.334 | D50: 77.394 | E50: 85.883 | F50: 112.444 | G50: 92.764 | H50: 0 | I50: 0 | J50: 0 | K50: 0 | L50: AT1G10460.1 | M50: GLP7 | N50: Germin-like protein subfamily 1 member 1 | O50: nutrient reservoir activity
A51: isotig14330 | B51: 99 | C51: 234.826 | D51: 92.652 | E51: 80.893 | F51: 23.818 | G51: 2.019 | H51: 0 | I51: 0 | J51: 0 | K51: 0 | L51: AT4G38400.1 | M51: EXLA2 | N51: Expansin-like A2 | O51: sexual reproduction
A52: isotig16733 | B52: 99 | C52: 40.055 | D52: 75.718 | E52: 75.983 | F52: 95.887 | G52: 16.983 | H52: 0 | I52: 0 | J52: 0 | K52: 0
A53: PUT-37504 | B53: 99 | C53: 65.643 | D53: 45.648 | E53: 73.262 | F53: 86.468 | G53: 6.632 | H53: 19.223 | I53: 3 | J53: 0 | K53: 10.323
A54: isotig44201 | B54: 99 | C54: 182.288 | D54: 35.528 | E54: 72.725 | F54: 56.892 | G54: 11.859 | H54: 0 | I54: 0 | J54: 0 | K54: 0.746
A55: isotig06047 | B55: 99 | C55: 13.133 | D55: 69.076 | E55: 67.071 | F55: 86.496 | G55: 33.436 | H55: 0 | I55: 0.48 | J55: 0 | K55: 0
A56: isotig21693 | B56: 99 | C56: 35.633 | D56: 33.923 | E56: 65.876 | F56: 32.344 | G56: 8.471 | H56: 2.455 | I56: 2.299 | J56: 0 | K56: 0
A57: isotig103195 | B57: 99 | C57: 0 | D57: 40.909 | E57: 64.342 | F57: 44.28 | G57: 57.948 | H57: 0 | I57: 0 | J57: 0 | K57: 0
A58: isotig10842 | B58: 99 | C58: 16.356 | D58: 25.302 | E58: 62.537 | F58: 2.173 | G58: 34.993 | H58: 0 | I58: 0 | J58: 0 | K58: 0
A59: isotig12568 | B59: 99 | C59: 0.969 | D59: 43.128 | E59: 57.104 | F59: 27.718 | G59: 110.827 | H59: 0 | I59: 0 | J59: 0 | K59: 0 | L59: AT1G77380.1 | M59: AAP3 | N59: Amino acid permease 3 | O59: amino acid transmembrane transport
A60: isotig71172 | B60: 99 | C60: 208.104 | D60: 29.647 | E60: 56.527 | F60: 19.856 | G60: 14.214 | H60: 0 | I60: 0 | J60: 0 | K60: 0 | L60: AT5G67070.1 | M60: RALFL34 | N60: Protein RALF-like 34 | O60: cell-cell signaling; hormone activity
A61: isotig45249 | B61: 99 | C61: 37.635 | D61: 80.577 | E61: 56.005 | F61: 25.968 | G61: 14.702 | H61: 0 | I61: 0 | J61: 0 | K61: 1.052
A62: PUT-1873 | B62: 99 | C62: 11.69 | D62: 11.825 | E62: 55.668 | F62: 35.198 | G62: 22.047 | H62: 0 | I62: 0 | J62: 0 | K62: 0
A63: PUT-27362 | B63: 99 | C63: 63.078 | D63: 82.033 | E63: 54.711 | F63: 88.177 | G63: 138.384 | H63: 3.518 | I63: 3.294 | J63: 0 | K63: 7.558
A64: isotig114285 | B64: 99 | C64: 12.995 | D64: 26.288 | E64: 52.598 | F64: 45.646 | G64: 42.012 | H64: 13.53 | I64: 12.669 | J64: 0 | K64: 25.43 | L64: AT1G09330.1 | M64: ECH | N64: Golgi apparatus membrane protein-like protein ECHIDNA | O64: unidimensional cell growth
A65: isotig19551 | B65: 99 | C65: 84.732 | D65: 45.71 | E65: 52.453 | F65: 39.685 | G65: 3.044 | H65: 0 | I65: 0 | J65: 0 | K65: 0
A66: isotig93401 | B66: 99 | C66: 292.782 | D66: 72.613 | E66: 51.277 | F66: 117.608 | G66: 7.964 | H66: 0 | I66: 0 | J66: 0 | K66: 1.181 | L66: AT1G01190.1 | M66: CYP78A8 | N66: cytochrome P450, family 78, subfamily A, polypeptide 8 | O66: regulation of growth
A67: isotig68357 | B67: 99 | C67: 13.017 | D67: 37.745 | E67: 48.349 | F67: 45.071 | G67: 10.521 | H67: 0 | I67: 0 | J67: 0 | K67: 0
A68: isotig28907 | B68: 99 | C68: 7.996 | D68: 39.54 | E68: 48.229 | F68: 96.298 | G68: 98.376 | H68: 0 | I68: 0.65 | J68: 0 | K68: 1.49
A69: isotig42131 | B69: 99 | C69: 24.325 | D69: 53.852 | E69: 47.863 | F69: 51.129 | G69: 33.015 | H69: 0 | I69: 0.336 | J69: 0 | K69: 0 | L69: AT3G07010.1 | M69: 0 | N69: Probable pectate lyase 8 | O69: pectin catabolic process

Sheet Up in M3 (E3DOxM3)
A1: Additional file 2: Differentially expressed transcripts (DETs) in embryos and megagametophytes at different stages of seed development.
A2: The Arabidopsis genes showing the highest sequence similarity to the Scots pine transcript are presented (#N/A = no alignment to genes in the TAIR database. Cut off value 1e-5)
A3: The highest up-regulated transcripts in M3/E3DO. Samples subjected to pairwise comparison are highlighted in bold
C4: RPKM Embryos | H4: RPKM Megagametophytes | N4: Arabidopsis homologous gene names and annotation
A5: Transcript ID | B5: Fold change | C5: E1 | D5: E2 | E5: E3DO | F5: E3SU | G5: E4 | H5: M1 | I5: M2 | J5: M3 | K5: M4 | L5: At locus ID | M5: At name | N5: At annotation | O5: Involved in
A6: isotig96781 | B6: -7.171334216 | C6: 0 | D6: 9.115 | E6: 1.073 | F6: 4.522 | G6: 4.856 | H6: 58.64 | I6: 175.702 | J6: 154.663 | K6: 211.613
A7: isotig91944 | B7: -6.594644676 | C7: 1.396 | D7: 16.944 | E7: 1.994 | F7: 1.051 | G7: 14.667 | H7: 105.737 | I7: 181.68 | J7: 192.713 | K7: 270.443 | L7: AT1G03890.1 | M7: CRD | N7: 12S seed storage protein CRD | O7: seed maturation; nutrient reservoir activity
A8: isotig107909 | B8: -6.51453074 | C8: 14.282 | D8: 40.931 | E8: 3.4 | F8: 0 | G8: 0 | H8: 55.764 | I8: 127.052 | J8: 310.848 | K8: 135.751
A9: isotig108390 | B9: -6.27262659 | C9: 30.661 | D9: 23.26 | E9: 1.825 | F9: 7.693 | G9: 14.456 | H9: 129.691 | I9: 132.644 | J9: 141.095 | K9: 212.148
A10: isotig83823 | B10: -6.197560878 | C10: 6.073 | D10: 20.884 | E10: 3.47 | F10: 7.313 | G10: 24.541 | H10: 131.828 | I10: 255.751 | J10: 254.672 | K10: 408.456 | L10: AT1G03890.1 | M10: CRD | N10: 12S seed storage protein CRD | O10: seed maturation; nutrient reservoir activity
A11: isotig98332 | B11: -6.150279039 | C11: 0 | D11: 8.381 | E11: 1.184 | F11: 2.495 | G11: 12.055 | H11: 53.059 | I11: 102.998 | J11: 84.095 | K11: 136.21 | L11: AT4G28520.2 | M11: CRC | N11: 12S seed storage protein CRC | O11: seed maturation; nutrient reservoir activity
A12: isotig101482 | B12: -6.107223334 | C12: 8.776 | D12: 12.428 | E12: 1.254 | F12: 3.964 | G12: 7.093 | H12: 57.567 | I12: 111.655 | J12: 86.448 | K12: 131.016
A13: isotig88459 | B13: -6.062507569 | C13: 5.189 | D13: 0 | E13: 0.927 | F13: 3.906 | G13: 3.146 | H13: 5.065 | I13: 37.941 | J13: 61.955 | K13: 57.663
A14: isotig106733 | B14: -5.970002705 | C14: 2.283 | D14: 32.335 | E14: 1.631 | F14: 0 | G14: 27.683 | H14: 108.768 | I14: 71.791 | J14: 102.236 | K14: 151.289 | L14: AT4G28520.2 | M14: CRC | N14: 12S seed storage protein CRC
A15: isotig15249 | B15: -5.871350841 | C15: 2.522 | D15: 0.638 | E15: 0.45 | F15: 1.424 | G15: 3.567 | H15: 16.737 | I15: 36.413 | J15: 26.343 | K15: 54.456
A16: isotig106007 | B16: -5.870626356 | C16: 6.334 | D16: 10.678 | E16: 1.508 | F16: 1.589 | G16: 13.652 | H16: 49.464 | I16: 77.191 | J16: 88.234 | K16: 72.603 | L16: AT4G28520.1 | M16: CRC | N16: 12S seed storage protein CRC | O16: seed maturation; nutrient reservoir activity
A17: isotig80506 | B17: -5.844605039 | C17: 4.646 | D17: 11.748 | E17: 1.659 | F17: 6.994 | G17: 10.326 | H17: 47.161 | I17: 105.3 | J17: 95.334 | K17: 135.393 | L17: AT1G03890.1 | M17: CRD | N17: 12S seed storage protein CRD | O17: seed maturation; nutrient reservoir activity
A18: isotig112834 | B18: -5.844461864 | C18: 14.627 | D18: 22.193 | E18: 2.612 | F18: 5.505 | G18: 38.422 | H18: 94.232 | I18: 136.36 | J18: 150.083 | K18: 171.744
A19: isotig20740 | B19: -5.736790923 | C19: 17.94 | D19: 2.927 | E19: 0.413 | F19: 0 | G19: 0.935 | H19: 18.528 | I19: 22.003 | J19: 22.024 | K19: 27.665 | L19: AT4G26740.1 | M19: PXG1 | N19: Peroxygenase 1 | O19: plant seed peroxidase activity
A20: isotig13456 | B20: -5.706675952 | C20: 0.332 | D20: 2.354 | E20: 0.475 | F20: 0 | G20: 11.016 | H20: 5.971 | I20: 17.015 | J20: 24.807 | K20: 20.353 | L20: AT4G38620.1 | M20: MYB4 | N20: Transcription repressor MYB4 | O20: response to hormones
A21: isotig102531 | B21: -5.617682617 | C21: 1.828 | D21: 11.096 | E21: 1.306 | F21: 0 | G21: 4.433 | H21: 51.399 | I21: 56.148 | J21: 64.126 | K21: 62.87
A22: isotig92841 | B22: -5.571072753 | C22: 5.553 | D22: 16.85 | E22: 1.983 | F22: 3.135 | G22: 2.244 | H22: 22.766 | I22: 66.994 | J22: 94.272 | K22: 59.38 | L22: AT5G01380.1 | M22: GT-3A | N22: Trihelix transcription factor GT-3a | O22: transcription
A23: isotig103533 | B23: -5.522562642 | C23: 3.78 | D23: 9.559 | E23: 1.35 | F23: 1.423 | G23: 4.583 | H23: 85.602 | I23: 62.187 | J23: 62.057 | K23: 58.649
A24: isotig32252 | B24: -5.490097081 | C24: 0 | D24: 3.184 | E24: 0.749 | F24: 3.159 | G24: 4.24 | H24: 14.747 | I24: 28.383 | J24: 33.664 | K24: 25.517 | L24: AT4G36850.1 | M24: 0 | N24: PQ-loop repeat family protein / transmembrane family protein | O24: unknown
A25: isotig99566 | B25: -5.455986562 | C25: 3.23 | D25: 9.8 | E25: 1.153 | F25: 0 | G25: 13.052 | H25: 26.481 | I25: 61.397 | J25: 50.611 | K25: 44.693 | L25: AT1G03890.1 | M25: CRD | N25: 12S seed storage protein CRD | O25: seed maturation; nutrient reservoir activity
A26: isotig68989 | B26: -5.455817349 | C26: 0.916 | D26: 5.558 | E26: 0.654 | F26: 2.757 | G26: 8.883 | H26: 11.443 | I26: 31.473 | J26: 28.704 | K26: 26.884
A27: isotig100247 | B27: -5.420614394 | C27: 0 | D27: 1.668 | E27: 1.178 | F27: 0 | G27: 1.333 | H27: 30.907 | I27: 56.672 | J27: 50.456 | K27: 84.368
A28: isotig107511 | B28: -5.384740587 | C28: 0 | D28: 4.672 | E28: 1.65 | F28: 1.738 | G28: 0 | H28: 30.659 | I28: 25.33 | J28: 68.937 | K28: 67.794
A29: isotig94770 | B29: -5.272467382 | C29: 1.438 | D29: 14.542 | E29: 2.054 | F29: 5.411 | G29: 12.782 | H29: 49.398 | I29: 72.533 | J29: 79.391 | K29: 91.639 | L29: AT4G28520.1 | M29: CRC | N29: 12S seed storage protein CRC | O29: seed maturation; nutrient reservoir activity
A30: isotig08295 | B30: -5.271286656 | C30: 2.462 | D30: 4.27 | E30: 0.503 | F30: 0.265 | G30: 2.559 | H30: 15.383 | I30: 19.806 | J30: 19.426 | K30: 23.308 | L30: AT1G10520.1 | M30: 0 | N30: DNA polymerase lambda (POLL) | O30: DNA repair; regulation of chromosome organization
A31: isotig96258 | B31: -5.240970809 | C31: 1.484 | D31: 31.527 | E31: 5.301 | F31: 1.117 | G31: 13.196 | H31: 90.403 | I31: 219.214 | J31: 200.469 | K31: 251.446
A32: isotig45859 | B32: -5.233550211 | C32: 2.706 | D32: 1.368 | E32: 0.483 | F32: 0 | G32: 2.187 | H32: 13.734 | I32: 19.784 | J32: 18.172 | K32: 11.914 | L32: AT5G15720.1 | M32: GLIP7 | N32: GDSL esterase/lipase 7 | O32: lipid catabolic process
A33: isotig74390 | B33: -5.193271112 | C33: 1.059 | D33: 1.071 | E33: 0.756 | F33: 0 | G33: 0.856 | H33: 11.578 | I33: 20.907 | J33: 27.66 | K33: 33.751 | L33: AT4G23160.1 | M33: CRK8 | N33: cysteine-rich RLK (RECEPTOR-like protein kinase) 8 | O33: protein phosphorylation
A34: isotig108473 | B34: -5.192724049 | C34: 2.498 | D34: 7.581 | E34: 1.784 | F34: 7.522 | G34: 40.383 | H34: 52.672 | I34: 65.758 | J34: 65.247 | K34: 104.759 | L34: AT5G22470.1 | M34: PARP3 | N34: Poly | O34: double-strand break repair
A35: isotig112237 | B35: -5.19264966 | C35: 3.445 | D35: 3.484 | E35: 2.46 | F35: 0 | G35: 19.489 | H35: 34.968 | I35: 50.372 | J35: 89.966 | K35: 54.889 | L35: AT1G03890.1 | M35: CRD | N35: 12S seed storage protein CRD | O35: seed maturation; nutrient reservoir activity
A37: The highest up-regulated transcripts in M3 when E3DO RPKM value was equal to 0
C38: RPKM Embryos | H38: RPKM Megagametophytes | N38: Arabidopsis homologous gene names and annotation
A39: ID | B39: Fold change | C39: E1 | D39: E2 | E39: E3DO | F39: E3SU | G39: E4 | H39: M1 | I39: M2 | J39: M3 | K39: M4 | L39: At homologous | M39: At Name | N39: At Description | O39: Involved in
A40: isotig110991 | B40: -99 | C40: 0 | D40: 3.112 | E40: 0 | F40: 0 | G40: 17.409 | H40: 117.738 | I40: 119.242 | J40: 121.697 | K40: 121.29
A41: isotig111318 | B41: -99 | C41: 3.342 | D41: 6.761 | E41: 0 | F41: 2.515 | G41: 2.701 | H41: 23.487 | I41: 114.846 | J41: 114.717 | K41: 81.282
A42: isotig114762 | B42: -99 | C42: 0 | D42: 0 | E42: 0 | F42: 0 | G42: 0 | H42: 54.087 | I42: 39.791 | J42: 95.989 | K42: 70.538
A43: isotig113148 | B43: -99 | C43: 3.809 | D43: 7.705 | E43: 0 | F43: 11.467 | G43: 3.078 | H43: 62.455 | I43: 136.451 | J43: 85.261 | K43: 73.466
A44: isotig13374 | B44: -99 | C44: 2.429 | D44: 2.457 | E44: 0 | F44: 0 | G44: 0 | H44: 32.246 | I44: 55.057 | J44: 62.535 | K44: 78.432
A45: isotig102633 | B45: -99 | C45: 0 | D45: 0 | E45: 0 | F45: 0 | G45: 0 | H45: 25.333 | I45: 44.804 | J45: 60.52 | K45: 71.041
A46: isotig103400 | B46: -99 | C46: 0 | D46: 0 | E46: 0 | F46: 0 | G46: 0 | H46: 31.169 | I46: 48.641 | J46: 56.734 | K46: 121.149
A47: isotig101744 | B47: -99 | C47: 0 | D47: 5.568 | E47: 0 | F47: 0 | G47: 1.483 | H47: 22.927 | I47: 38.91 | J47: 46.558 | K47: 10.773
A48: isotig102224 | B48: -99 | C48: 17.706 | D48: 100.295 | E48: 0 | F48: 1.333 | G48: 10.018 | H48: 80.195 | I48: 69.911 | J48: 44.924 | K48: 50.49
A49: isotig113357 | B49: -99 | C49: 0 | D49: 0 | E49: 0 | F49: 0 | G49: 3.15 | H49: 33.472 | I49: 68.381 | J49: 43.618 | K49: 62.095
A50: isotig115996 | B50: -99 | C50: 5.638 | D50: 28.516 | E50: 0 | F50: 0 | G50: 9.114 | H50: 26.418 | I50: 57.717 | J50: 42.075 | K50: 37.83
A51: isotig113006 | B51: -99 | C51: 7.476 | D51: 26.467 | E51: 0 | F51: 0 | G51: 3.021 | H51: 8.757 | I51: 40.997 | J51: 41.841 | K51: 109.725
A52: isotig110213 | B52: -99 | C52: 0 | D52: 3.753 | E52: 0 | F52: 0 | G52: 2.999 | H52: 14.488 | I52: 37.983 | J52: 38.765 | K52: 18.672
A53: isotig108366 | B53: -99 | C53: 0 | D53: 7.488 | E53: 0 | F53: 0 | G53: 5.983 | H53: 1.927 | I53: 23.456 | J53: 36.828 | K53: 41.391
A54: isotig116517 | B54: -99 | C54: 12.16 | D54: 6.15 | E54: 0 | F54: 18.306 | G54: 14.742 | H54: 23.739 | I54: 4.445 | J54: 36.296 | K54: 30.595
A55: isotig115110 | B55: -99 | C55: 0 | D55: 0 | E55: 0 | F55: 0 | G55: 3.922 | H55: 22.734 | I55: 28.383 | J55: 36.209 | K55: 32.556
A56: isotig80019 | B56: -99 | C56: 1.157 | D56: 0 | E56: 0 | F56: 0 | G56: 2.806 | H56: 3.615 | I56: 25.388 | J56: 33.684 | K56: 27.18
A57: isotig94816 | B57: -99 | C57: 1.491 | D57: 7.54 | E57: 0 | F57: 0 | G57: 4.82 | H57: 15.134 | I57: 33.791 | J57: 32.262 | K57: 53.763 | L57: AT1G03890.1 | M57: =VLOOKUP(L57,[2]Sheet1!$A$2:$C$13,2,FALSE) -> CRD | N57: =VLOOKUP(L57,[2]Sheet1!$A$2:$C$13,3,FALSE) -> 12S seed storage protein CRD | O57: seed maturation; nutrient reservoir activity
A58: isotig104997 | B58: -99 | C58: 2.035 | D58: 6.175 | E58: 0 | F58: 1.532 | G58: 1.645 | H58: 12.712 | I58: 35.707 | J58: 31.887 | K58: 78.501
A59: isotig107041 | B59: -99 | C59: 0 | D59: 0 | E59: 0 | F59: 7.034 | G59: 16.994 | H59: 31.014 | I59: 56.371 | J59: 31.381 | K59: 33.309
A60: isotig116304 | B60: -99 | C60: 0 | D60: 0 | E60: 0 | F60: 4.495 | G60: 0 | H60: 32.644 | I60: 34.932 | J60: 31.195 | K60: 45.077
A61: isotig72585 | B61: -99 | C61: 3.331 | D61: 4.492 | E61: 0 | F61: 3.343 | G61: 1.795 | H61: 26.878 | I61: 55.204 | J61: 30.656 | K61: 54.009
A62: isotig115394 | B62: -99 | C62: 5.046 | D62: 5.104 | E62: 0 | F62: 0 | G62: 8.157 | H62: 23.644 | I62: 18.449 | J62: 30.126 | K62: 33.858
A63: PUT-62775 | B63: -99 | C63: 13.164 | D63: 4.439 | E63: 0 | F63: 13.212 | G63: 3.547 | H63: 17.133 | I63: 9.625 | J63: 29.471 | K63: 25.762
A64: isotig93842 | B64: -99 | C64: 1.416 | D64: 2.864 | E64: 0 | F64: 4.262 | G64: 4.576 | H64: 7.738 | I64: 14.49 | J64: 28.52 | K64: 28.492
A65: isotig114894 | B65: -99 | C65: 4.716 | D65: 0 | E65: 0 | F65: 3.55 | G65: 7.624 | H65: 29.463 | I65: 13.793 | J65: 28.155 | K65: 11.866
A66: isotig78986 | B66: -99 | C66: 1.14 | D66: 2.307 | E66: 0 | F66: 0.858 | G66: 3.687 | H66: 5.343 | I66: 21.68 | J66: 28.083 | K66: 9.564
A67: isotig73153 | B67: -99 | C67: 1.029 | D67: 2.081 | E67: 0 | F67: 0 | G67: 2.495 | H67: 7.231 | I67: 17.302 | J67: 27.638 | K67: 32.788 | L67: AT5G25940.1 | M67: =VLOOKUP(L67,[2]Sheet1!$A$2:$C$13,2,FALSE) -> 0 | N67: =VLOOKUP(L67,[2]Sheet1!$A$2:$C$13,3,FALSE) -> early nodulin-related | O67: response to ethylene
A68: isotig97152 | B68: -99 | C68: 1.515 | D68: 4.598 | E68: 0 | F68: 0 | G68: 1.225 | H68: 13.017 | I68: 23.269 | J68: 27.14 | K68: 40.67
A69: isotig115519 | B69: -99 | C69: 0 | D69: 0 | E69: 0 | F69: 0 | G69: 0 | H69: 4.021 | I69: 11.295 | J69: 26.898 | K69: 8.637

Sheet Up in E3SU (E3SUxM3)
A1: Additional file 2: Differentially expressed transcripts (DETs) in embryos and megagametophytes at different stages of seed development.
A2: The Arabidopsis genes showing the highest sequence similarity to the Scots pine transcript are presented (#N/A = no alignment to genes in the TAIR database. Cut off value 1e-5)
A3: The highest up-regulated transcripts in E3SU/M3. Samples subjected to pairwise comparison are highlighted in bold
C4: RPKM Embryos | H4: RPKM Megagametophytes | N4: Arabidopsis homologous gene names and annotation
A5: Transcript ID | B5: Fold change | C5: E1 | D5: E2 | E5: E3DO | F5: E3SU | G5: E4 | H5: M1 | I5: M2 | J5: M3 | K5: M4 | L5: At locus ID | M5: At name | N5: At annotation | O5: Involved in
A6: isotig98833 | B6: 8.646046078 | C6: 980.78 | D6: 494.428 | E6: 351.408 | F6: 472.717 | G6: 153.43 | H6: 0 | I6: 0 | J6: 1.18 | K6: 0 | L6: AT5G23870.2 | M6: PAE9 | N6: Pectin acetylesterase 9 | O6: cell wall loosening
A7: isotig42299 | B7: 8.307537314 | C7: 344.004 | D7: 82.784 | E7: 93.16 | F7: 206.886 | G7: 7.429 | H7: 0.342 | I7: 0 | J7: 0.653 | K7: 0.734
A8: isotig38581 | B8: 8.213020047 | C8: 53.73 | D8: 113.592 | E8: 69.151 | F8: 214.241 | G8: 43.036 | H8: 0.378 | I8: 0.354 | J8: 0.722 | K8: 2.03 | L8: AT5G09970.1 | M8: CYP78A7 | N8: Cytochrome P450 78A7 | O8: regulation of growth
A9: isotig56640 | B9: 8.143288017 | C9: 366.459 | D9: 151.191 | E9: 102.056 | F9: 132.601 | G9: 21.066 | H9: 0.736 | I9: 0.459 | J9: 0.469 | K9: 0.527
A10: isotig80888 | B10: 7.710639202 | C10: 269.835 | D10: 417.087 | E10: 373.798 | F10: 547.779 | G10: 787.41 | H10: 21.892 | I10: 4.271 | J10: 2.615 | K10: 10.777 | L10: ATMG00580.1 | M10: NAD4 | N10: NADH dehydrogenase subunit 4 | O10: oxidation-reduction process
A11: isotig83308 | B11: 7.689164177 | C11: 822.445 | D11: 673.619 | E11: 1025.89 | F11: 1868.158 | G11: 1106.928 | H11: 57.783 | I11: 18.626 | J11: 9.052 | K11: 15.261
A12: isotig51059 | B12: 7.642012786 | C12: 23.714 | D12: 150.634 | E12: 119.246 | F12: 565.477 | G12: 340.401 | H12: 12.592 | I12: 1.387 | J12: 2.831 | K12: 4.773 | L12: AT5G59320.1 | M12: LTP3 | N12: Non-specific lipid-transfer protein 3 | O12: response to abscisic acid; response to water deprivation
A13: isotig66863 | B13: 7.241670865 | C13: 35.328 | D13: 76.341 | E13: 94.628 | F13: 90.654 | G13: 41.533 | H13: 3.135 | I13: 0.587 | J13: 0.599 | K13: 0.673
A14: isotig11848 | B14: 7.236556296 | C14: 1043.502 | D14: 656.052 | E14: 442.745 | F14: 666.113 | G14: 166.769 | H14: 7.264 | I14: 5.565 | J14: 4.417 | K14: 5.319
A15: isotig114214 | B15: 7.198374553 | C15: 650.028 | D15: 333.077 | E15: 1020.251 | F15: 2343.423 | G15: 1023.125 | H15: 33.395 | I15: 18.761 | J15: 15.956 | K15: 14.347
A16: isotig23092 | B16: 7.034146298 | C16: 36.7 | D16: 37.122 | E16: 42.598 | F16: 89.78 | G16: 22.989 | H16: 9.314 | I16: 0 | J16: 0.685 | K16: 3.078
A17: isotig38237 | B17: 6.98949203 | C17: 29.401 | D17: 24.878 | E17: 12.52 | F17: 26.812 | G17: 4.341 | H17: 0.662 | I17: 0.827 | J17: 0.211 | K17: 0.237
A18: isotig39384 | B18: 6.931783088 | C18: 34.002 | D18: 128.715 | E18: 73.598 | F18: 140.768 | G18: 84.114 | H18: 8.046 | I18: 4.52 | J18: 1.153 | K18: 7.345 | L18: AT4G32460.1 | N18: Protein of unknown function, DUF642 | O18: unknown
A19: isotig28506 | B19: 6.931377736 | C19: 2.573 | D19: 34.484 | E19: 39.973 | F19: 58.586 | G19: 48.351 | H19: 0.502 | I19: 0 | J19: 0.48 | K19: 0
A20: isotig71492 | B20: 6.780769936 | C20: 25.576 | D20: 24.875 | E20: 37.942 | F20: 80.707 | G20: 19.877 | H20: 29.958 | I20: 3.596 | J20: 0.734 | K20: 4.125 | L20: AT3G42725.1 | N20: Putative membrane lipoprotein | O20: unknown
A21: isotig48361 | B21: 6.686231141 | C21: 2.79 | D21: 31.042 | E21: 31.387 | F21: 53.55 | G21: 17.476 | H21: 0 | I21: 1.53 | J21: 0.52 | K21: 1.17 | L21: AT1G59940.1 | M21: ARR3 | N21: Two-component response regulator ARR3 | O21: response to cytokinin; circadian rhythm
A22: isotig56593 | B22: 6.559214524 | C22: 187.22 | D22: 137.64 | E22: 88.341 | F22: 130.891 | G22: 36.077 | H22: 0.968 | I22: 0.907 | J22: 1.388 | K22: 1.56
A23: isotig27288 | B23: 6.519032064 | C23: 11.327 | D23: 23.488 | E23: 25.486 | F23: 38.794 | G23: 38.452 | H23: 7.519 | I23: 1.656 | J23: 0.423 | K23: 3.325 | L23: AT5G38110.1 | M23: ASF1B | N23: Histone chaperone ASF1B | O23: regulation of cell size; cell division
A24: isotig60442 | B24: 6.473469788 | C24: 30.111 | D24: 57.239 | E24: 50.433 | F24: 34.389 | G24: 25.597 | H24: 1.622 | I24: 1.898 | J24: 0.387 | K24: 1.306 | L24: AT3G45310.1 | N24: Thiol protease aleurain-like | O24: proteolysis
A25: isotig78934 | B25: 6.472062887 | C25: 51.202 | D25: 82.866 | E25: 55.266 | F25: 75.369 | G25: 123.234 | H25: 3.554 | I25: 1.664 | J25: 0.849 | K25: 3.817 | L25: ATMG00580.1 | M25: NAD4 | N25: NADH dehydrogenase subunit 4 | O25: oxidation-reduction process
A26: isotig55932 | B26: 6.332863573 | C26: 8.621 | D26: 20.554 | E26: 35.627 | F26: 37.08 | G26: 18.913 | H26: 5.77 | I26: 2.251 | J26: 0.46 | K26: 1.549 | L26: AT2G39795.1 | N26: Uncharacterized protein At2g39795, mitochondrial | O26: unknown
A27: isotig60559 | B27: 6.318068408 | C27: 37.438 | D27: 17.601 | E27: 19.209 | F27: 31.356 | G27: 0.852 | H27: 0 | I27: 0 | J27: 0.393 | K27: 0.442
A28: isotig21424 | B28: 6.260738631 | C28: 4.461 | D28: 4.512 | E28: 0.797 | F28: 63.796 | G28: 130.698 | H28: 0.871 | I28: 0 | J28: 0.832 | K28: 0 | L28: AT5G59320.1 | M28: LTP3 | N28: Non-specific lipid-transfer protein 3 | O28: response to abscisic acid; response to water deprivation
A29: isotig43821 | B29: 6.259205221 | C29: 5.249 | D29: 8.343 | E29: 16.068 | F29: 21.447 | G29: 48.18 | H29: 1.171 | I29: 1.371 | J29: 0.28 | K29: 0.314
A30: isotig34581 | B30: 6.203596653 | C30: 12.666 | D30: 13.486 | E30: 26.665 | F30: 36.629 | G30: 32.328 | H30: 9.891 | I30: 4.874 | J30: 0.497 | K30: 3.354 | L30: AT4G19350.1 | M30: EMB3006 | N30: embryo defective 3006 | O30: unknown
A31: isotig70648 | B31: 6.120141461 | C31: 31.114 | D31: 35.405 | E31: 56.255 | F31: 50.499 | G31: 24.362 | H31: 1.519 | I31: 1.422 | J31: 0.726 | K31: 0 | L31: AT3G57440.1 | N31: unknown | O31: unknown
A32: isotig52803 | B32: 6.099884875 | C32: 3.425 | D32: 8.084 | E32: 22.018 | F32: 58.437 | G32: 22.147 | H32: 2.675 | I32: 0 | J32: 0.852 | K32: 0
A33: isotig40165 | B33: 6.086799237 | C33: 768.679 | D33: 486.064 | E33: 306.871 | F33: 402.103 | G33: 158.957 | H33: 6.667 | I33: 3.344 | J33: 5.916 | K33: 7.416
A34: isotig49156 | B34: 6.056421346 | C34: 0 | D34: 9.418 | E34: 9.31 | F34: 46.254 | G34: 10.535 | H34: 0 | I34: 0 | J34: 0.695 | K34: 0 | L34: AT1G73580.1 | N34: Calcium-dependent lipid-binding (CaLB domain) family protein | O34: unknown
A35: isotig113860 | B35: 6.03463097 | C35: 53.335 | D35: 336.136 | E35: 216.855 | F35: 200.729 | G35: 437.711 | H35: 32.038 | I35: 11.999 | J35: 3.062 | K35: 6.882
A37: The highest up-regulated transcripts in E3SU when M3 RPKM value was equal to 0
C38: RPKM Embryos | H38: RPKM Megagametophytes | N38: Arabidopsis homologous gene names and annotation
A39: Transcript ID | B39: Fold change | C39: E1 | D39: E2 | E39: E3DO | F39: E3SU | G39: E4 | H39: M1 | I39: M2 | J39: M3 | K39: M4 | L39: At Transcript ID | M39: At Name | N39: At Description | O39: Involved in
A40: isotig87650 | B40: 99 | C40: 7.694 | D40: 585.015 | E40: 423.194 | F40: 1747.17 | G40: 412.532 | H40: 7.01 | I40: 0 | J40: 0 | K40: 6.453 | L40: AT5G59320.1 | M40: LTP3 | N40: Non-specific lipid-transfer protein 3 | O40: response to abscisic acid; response to water deprivation
A41: isotig101972 | B41: 99 | C41: 2337.312 | D41: 1557.12 | E41: 774.994 | F41: 1080.524 | G41: 331.704 | H41: 2.751 | I41: 0 | J41: 0 | K41: 1.477
A42: isotig04236 | B42: 99 | C42: 32.099 | D42: 162.718 | E42: 322.59 | F42: 587.741 | G42: 978.037 | H42: 0.874 | I42: 0 | J42: 0 | K42: 0.939
A43: isotig75051 | B43: 99 | C43: 69.346 | D43: 120.863 | E43: 172.985 | F43: 556.51 | G43: 468.228 | H43: 5.832 | I43: 0.78 | J43: 0 | K43: 3.579 | L43: AT2G18050.1 | M43: HIS1-3 | N43: histone H1-3 | O43: nucleosome assembly
A44: isotig07360 | B44: 99 | C44: 71.552 | D44: 115.799 | E44: 115.128 | F44: 326.549 | G44: 273.941 | H44: 7.646 | I44: 0.551 | J44: 0 | K44: 3.158 | L44: AT2G18050.1 | M44: HIS1-3 | N44: histone H1-3 | O44: nucleosome assembly
A45: isotig41809 | B45: 99 | C45: 55.68 | D45: 208.872 | E45: 124.012 | F45: 233.316 | G45: 19.844 | H45: 0 | I45: 0 | J45: 0 | K45: 0.735 | L45: AT5G09970.1 | M45: CYP78A7 | N45: Cytochrome P450 78A7 | O45: regulation of growth
A46: isotig18163 | B46: 99 | C46: 297.588 | D46: 287.147 | E46: 411.141 | F46: 150.315 | G46: 30.857 | H46: 0 | I46: 0 | J46: 0 | K46: 0 | L46: AT5G62360.1 | N46: Plant invertase/pectin methylesterase inhibitor superfamily protein | O46: negative regulation of catalytic activity
A47: PUT-58056 | B47: 99 | C47: 58.629 | D47: 122.842 | E47: 101.703 | F47: 138.697 | G47: 16.924 | H47: 16.351 | I47: 6.124 | J47: 0 | K47: 7.024
A48: isotig73073 | B48: 99 | C48: 28.689 | D48: 84.985 | E48: 87.093 | F48: 125.714 | G48: 53.002 | H48: 1.6 | I48: 1.498 | J48: 0 | K48: 0.859
A49: isotig93401 | B49: 99 | C49: 292.782 | D49: 72.613 | E49: 51.277 | F49: 117.608 | G49: 7.964 | H49: 0 | I49: 0 | J49: 0 | K49: 1.181 | L49: AT1G01190.1 | M49: CYP78A8 | N49: cytochrome P450, family 78, subfamily A, polypeptide 8 | O49: regulation of growth
A50: isotig25556 | B50: 99 | C50: 170.334 | D50: 77.394 | E50: 85.883 | F50: 112.444 | G50: 92.764 | H50: 0 | I50: 0 | J50: 0 | K50: 0 | L50: AT1G10460.1 | M50: GLP7 | N50: Germin-like protein subfamily 1 member 1 | O50: nutrient reservoir activity
A51: isotig15429 | B51: 99 | C51: 4.811 | D51: 19.463 | E51: 8.934 | F51: 105.008 | G51: 81.651 | H51: 0 | I51: 0 | J51: 0 | K51: 0.807 | L51: AT2G02850.1 | M51: ARPN | N51: Basic blue protein | O51: anther development
A52: isotig28907 | B52: 99 | C52: 7.996 | D52: 39.54 | E52: 48.229 | F52: 96.298 | G52: 98.376 | H52: 0 | I52: 0.65 | J52: 0 | K52: 1.49
A53: isotig16733 | B53: 99 | C53: 40.055 | D53: 75.718 | E53: 75.983 | F53: 95.887 | G53: 16.983 | H53: 0 | I53: 0 | J53: 0 | K53: 0
A54: isotig13103 | B54: 99 | C54: 15.678 | D54: 78.299 | E54: 95.186 | F54: 92.194 | G54: 19.799 | H54: 0 | I54: 0 | J54: 0 | K54: 1.644
A55: PUT-27362 | B55: 99 | C55: 63.078 | D55: 82.033 | E55: 54.711 | F55: 88.177 | G55: 138.384 | H55: 3.518 | I55: 3.294 | J55: 0 | K55: 7.558
A56: isotig59371 | B56: 99 | C56: 1.879 | D56: 25.652 | E56: 15.096 | F56: 88.023 | G56: 87.685 | H56: 0.367 | I56: 0 | J56: 0 | K56: 0 | L56: AT5G09970.1 | M56: CYP78A7 | N56: Cytochrome P450 78A7 | O56: regulation of growth
A57: isotig06047 | B57: 99 | C57: 13.133 | D57: 69.076 | E57: 67.071 | F57: 86.496 | G57: 33.436 | H57: 0 | I57: 0.48 | J57: 0 | K57: 0
A58: PUT-37504 | B58: 99 | C58: 65.643 | D58: 45.648 | E58: 73.262 | F58: 86.468 | G58: 6.632 | H58: 19.223 | I58: 3 | J58: 0 | K58: 10.323
A59: PUT-10584 | B59: 99 | C59: 3.541 | D59: 7.164 | E59: 17.706 | F59: 82.632 | G59: 5.724 | H59: 2.765 | I59: 2.589 | J59: 0 | K59: 5.94
A60: isotig32300 | B60: 99 | C60: 0 | D60: 64.998 | E60: 43.2 | F60: 80.615 | G60: 43.791 | H60: 3.936 | I60: 1.843 | J60: 0 | K60: 3.17 | L60: AT1G07660.1 | N60: Histone H4 | O60: nucleosome assembly
A61: PUT-21393 | B61: 99 | C61: 5.097 | D61: 25.779 | E61: 32.768 | F61: 61.388 | G61: 16.479 | H61: 11.941 | I61: 0 | J61: 0 | K61: 4.275
A62: isotig37986 | B62: 99 | C62: 0 | D62: 2.369 | E62: 1.673 | F62: 59.928 | G62: 219.548 | H62: 0 | I62: 0 | J62: 0 | K62: 0 | L62: AT5G59320.1 | M62: LTP3 | N62: Non-specific lipid-transfer protein 3 | O62: response to abscisic acid; response to water deprivation
A63: isotig44201 | B63: 99 | C63: 182.288 | D63: 35.528 | E63: 72.725 | F63: 56.892 | G63: 11.859 | H63: 0 | I63: 0 | J63: 0 | K63: 0.746
A64: isotig04574 | B64: 99 | C64: 203.454 | D64: 50.966 | E64: 34.9 | F64: 56.315 | G64: 3.394 | H64: 0 | I64: 0 | J64: 0 | K64: 0 | L64: AT5G09970.1 | M64: CYP78A7 | N64: Cytochrome P450 78A7 | O64: regulation of growth
A65: isotig51521 | B65: 99 | C65: 2.105 | D65: 15.968 | E65: 13.531 | F65: 53.075 | G65: 22.116 | H65: 1.644 | I65: 0 | J65: 0 | K65: 0 | L65: AT1G09200.1 | M65: HTR2 | N65: Histone H3.2 | O65: nucleosome assembly
A66: isotig42131 | B66: 99 | C66: 24.325 | D66: 53.852 | E66: 47.863 | F66: 51.129 | G66: 33.015 | H66: 0 | I66: 0.336 | J66: 0 | K66: 0 | L66: AT3G07010.1 | N66: Probable pectate lyase 8 | O66: pectin catabolic process
A67: isotig39262 | B67: 99 | C67: 4.47 | D67: 11.755 | E67: 19.794 | F67: 50.466 | G67: 21.676 | H67: 0.698 | I67: 0 | J67: 0 | K67: 0 | L67: AT5G22880.1 | M67: H2B | N67: Histone H2B.10 | O67: nucleosome assembly
A68: isotig106069 | B68: 99 | C68: 6.348 | D68: 4.28 | E68: 12.09 | F68: 49.371 | G68: 5.13 | H68: 3.305 | I68: 1.547 | J68: 0 | K68: 0
A69: isotig89904 | B69: 99 | C69: 12.015 | D69: 45.912 | E69: 17.164 | F69: 46.224 | G69: 20.501 | H69: 1.042 | I69: 0 | J69: 0 | K69: 1.12

Sheet Up in M3 (E3SUxM3)
A1: Additional file 2: Differentially expressed transcripts (DETs) in embryos and megagametophytes at different stages of seed development.
A2: The Arabidopsis genes showing the highest sequence similarity to the Scots pine transcript are presented (#N/A = no alignment to genes in the TAIR database. Cut off value 1e-5)
A3: The highest up-regulated transcripts in M3/E3SU. Samples subjected to pairwise comparison are highlighted in bold
C4: RPKM Embryos | H4: RPKM Megagametophytes | N4: Arabidopsis homologous gene names and annotation
A5: Transcript ID | B5: Fold change | C5: E1 | D5: E2 | E5: E3DO | F5: E3SU | G5: E4 | H5: M1 | I5: M2 | J5: M3 | K5: M4 | L5: At locus ID | M5: At name | N5: At annotation | O5: Involved in
A6: isotig92965 | B6: -7.932744448 | C6: 13.921 | D6: 80.261 | E6: 22.87 | F6: 2.096 | G6: 5.626 | H6: 213.066 | I6: 359.304 | J6: 512.136 | K6: 388.783
A7: isotig91944 | B7: -7.518547416 | C7: 1.396 | D7: 16.944 | E7: 1.994 | F7: 1.051 | G7: 14.667 | H7: 105.737 | I7: 181.68 | J7: 192.713 | K7: 270.443 | L7: AT1G03890.1 | M7: CRD | N7: 12S seed storage protein CRD | O7: seed maturation; nutrient reservoir activity
A8: isotig96258 | B8: -7.487606163 | C8: 1.484 | D8: 31.527 | E8: 5.301 | F8: 1.117 | G8: 13.196 | H8: 90.403 | I8: 219.214 | J8: 200.469 | K8: 251.446
A9: isotig101116 | B9: -6.864193432 | C9: 8.467 | D9: 8.564 | E9: 9.676 | F9: 2.549 | G9: 1.369 | H9: 97.854 | I9: 245.157 | J9: 296.96 | K9: 184.628
A10: isotig100342 | B10: -6.63194347 | C10: 0 | D10: 20.52 | E10: 6.038 | F10: 1.272 | G10: 8.198 | H10: 69.968 | I10: 142.151 | J10: 126.154 | K10: 147.455 | L10: AT1G03890.1 | M10: CRD | N10: 12S seed storage protein CRD | O10: seed maturation; nutrient reservoir activity
A11: isotig100482 | B11: -6.510623802 | C11: 9.993 | D11: 23.584 | E11: 8.327 | F11: 1.254 | G11: 30.96 | H11: 100.141 | I11: 137.604 | J11: 114.338 | K11: 209.517 | L11: AT4G28520.2 | M11: CRC | N11: 12S seed storage protein CRC | O11: seed maturation; nutrient reservoir activity
A12: isotig101443 | B12: -6.495298147 | C12: 6.866 | D12: 36.459 | E12: 7.356 | F12: 1.292 | G12: 9.711 | H12: 61.656 | I12: 138.051 | J12: 116.558 | K12: 217.371
A13: isotig53419 | B13: -6.446916564 | C13: 4.053 | D13: 5.466 | E13: 2.895 | F13: 1.017 | G13: 2.184 | H13: 30.597 | I13: 41.491 | J13: 88.723 | K13: 114.446 | L13: AT5G25940.1 | N13: early nodulin-related
A14: isotig90894 | B14: -6.413159625 | C14: 6.719 | D14: 4.078 | E14: 9.599 | F14: 1.012 | G14: 6.517 | H14: 43.027 | I14: 86.471 | J14: 86.245 | K14: 126.235 | L14: AT1G03890.1 | M14: CRD | N14: 12S seed storage protein CRD | O14: seed maturation; nutrient reservoir activity
A15: isotig103149 | B15: -6.396632721 | C15: 7.327 | D15: 9.264 | E15: 10.467 | F15: 1.379 | G15: 5.922 | H15: 52.923 | I15: 54.911 | J15: 116.183 | K15: 35.333 | L15: AT3G15353.1 | M15: MT3 | N15: metallothionein 3 | O15: auxin polar transport; response to stress
A16: isotig88106 | B16: -6.396477182 | C16: 6.461 | D16: 13.071 | E16: 7.384 | F16: 0.973 | G16: 1.044 | H16: 71.648 | I16: 70.866 | J16: 81.968 | K16: 97.542
A17: isotig101990 | B17: -6.379649926 | C17: 5.34 | D17: 5.401 | E17: 7.629 | F17: 1.34 | G17: 2.877 | H17: 75.06 | I17: 106.723 | J17: 111.576 | K17: 116.443
A18: isotig85065 | B18: -6.344892357 | C18: 3.766 | D18: 13.967 | E18: 2.69 | F18: 0.945 | G18: 16.234 | H18: 72.539 | I18: 89.949 | J18: 76.813 | K18: 117.914 | L18: AT5G44120.3 | M18: CRA1 | N18: 12S seed storage protein CRA1 | O18: seed maturation; nutrient reservoir activity
A19: isotig99643 | B19: -6.327833527 | C19: 3.24 | D19: 39.327 | E19: 8.1 | F19: 1.219 | G19: 17.022 | H19: 37.951 | I19: 103.052 | J19: 97.92 | K19: 127.715 | L19: AT4G28520.2 | M19: CRC | N19: 12S seed storage protein CRC | O19: seed maturation; nutrient reservoir activity
A20: isotig89992 | B20: -6.309258012 | C20: 0 | D20: 25.656 | E20: 24.793 | F20: 1.005 | G20: 20.501 | H20: 6.255 | I20: 65.4 | J20: 79.697 | K20: 79.495 | L20: AT2G44480.1 | M20: BGLU17 | N20: Beta-glucosidase 17 | O20: carbohydrate metabolic process
A21: isotig08295 | B21: -6.195852697 | C21: 2.462 | D21: 4.27 | E21: 0.503 | F21: 0.265 | G21: 2.559 | H21: 15.383 | I21: 19.806 | J21: 19.426 | K21: 23.308 | L21: AT1G10520.1 | N21: DNA polymerase lambda (POLL) | O21: DNA repair
A22: isotig55129 | B22: -6.148886734 | C22: 64.386 | D22: 164.444 | E22: 44.84 | F22: 8.481 | G22: 137.907 | H22: 534.216 | I22: 494.319 | J22: 601.792 | K22: 889.651
A23: isotig105861 | B23: -5.998848119 | C23: 2.094 | D23: 21.18 | E23: 23.93 | F23: 3.152 | G23: 8.462 | H23: 89.931 | I23: 148.508 | J23: 201.567 | K23: 184.393
A24: isotig93411 | B24: -5.987488422 | C24: 2.827 | D24: 10.008 | E24: 4.039 | F24: 1.064 | G24: 13.71 | H24: 78.371 | I24: 62.012 | J24: 67.508 | K24: 64.017
A25: isotig102309 | B25: -5.987277874 | C25: 1.771 | D25: 26.865 | E25: 3.794 | F25: 1.333 | G25: 32.916 | H25: 98.17 | I25: 106.161 | J25: 84.563 | K25: 129.195 | L25: AT1G03890.1 | M25: CRD | N25: 12S seed storage protein CRD | O25: seed maturation; nutrient reservoir activity
A26: isotig86154 | B26: -5.98707127 | C26: 2.507 | D26: 22.827 | E26: 4.478 | F26: 0.944 | G26: 21.28 | H26: 60.7 | I26: 101.754 | J26: 59.877 | K26: 125.127 | L26: AT1G03880.1 | M26: CRB | N26: 12S seed storage protein CRB | O26: nutrient reservoir activity; response to ABA
A27: isotig92636 | B27: -5.980043993 | C27: 5.718 | D27: 17.352 | E27: 10.211 | F27: 3.228 | G27: 13.865 | H27: 26.792 | I27: 106.616 | J27: 203.754 | K27: 145.072
A28: isotig73754 | B28: -5.942353421 | C28: 53.231 | D28: 7.538 | E28: 6.844 | F28: 0.801 | G28: 0.86 | H28: 34.917 | I28: 59.16 | J28: 49.256 | K28: 36.608
A29: isotig74378 | B29: -5.941700773 | C29: 0 | D29: 8.525 | E29: 3.01 | F29: 0.793 | G29: 5.109 | H29: 37.02 | I29: 67.786 | J29: 48.742 | K29: 60.082 | L29: AT4G36700.1 | N29: RmlC-like cupins superfamily protein | O29: nutrient reservoir activity
A30: isotig86659 | B30: -5.917947714 | C30: 6.316 | D30: 11.499 | E30: 3.609 | F30: 0.951 | G30: 1.021 | H30: 72.993 | I30: 62.804 | J30: 57.499 | K30: 37.079
A31: isotig101219 | B31: -5.894505415 | C31: 3.404 | D31: 36.152 | E31: 9.725 | F31: 2.562 | G31: 34.39 | H31: 111.64 | I31: 150.576 | J31: 152.406 | K31: 171.288 | L31: AT1G03880.1 | M31: CRB | N31: 12S seed storage protein CRB | O31: nutrient reservoir activity; response to ABA
A32: isotig74564 | B32: -5.883757193 | C32: 23.299 | D32: 106.049 | E32: 18.911 | F32: 7.174 | G32: 28.247 | H32: 231.558 | I32: 486.287 | J32: 423.593 | K32: 703.451 | L32: AT1G03890.1 | M32: CRD | N32: 12S seed storage protein CRD | O32: seed maturation; nutrient reservoir activity
A33: isotig82658 | B33: -5.882629673 | C33: 0 | D33: 31.94 | E33: 6.073 | F33: 1.828 | G33: 13.743 | H33: 64.492 | I33: 103.899 | J33: 107.851 | K33: 158.9 | L33: AT1G03890.1 | M33: CRD | N33: 12S seed storage protein CRD | O33: seed maturation; nutrient reservoir activity
A34: isotig50161 | B34: -5.870812738 | C34: 0.988 | D34: 3.996 | E34: 2.116 | F34: 0.743 | G34: 0 | H34: 31.618 | I34: 17.33 | J34: 43.479 | K34: 24.847
A35: isotig78414 | B35: -5.842548545 | C35: 50.745 | D35: 83.266 | E35: 49.134 | F35: 14.43 | G35: 30.989 | H35: 353.996 | I35: 982.007 | J35: 828.035 | K35: 1300.413 | L35: AT1G22690.1 | M35: GASA9 | N35: Gibberellin-regulated protein 9 | O35: gibberellic acid mediated signaling pathway
A37: The highest up-regulated transcripts in M3 when E3SU RPKM value was equal to 0
C38: RPKM Embryos | H38: RPKM Megagametophytes | N38: Arabidopsis homologous gene names and annotation
A39: ID | B39: Fold change | C39: E1 | D39: E2 | E39: E3DO | F39: E3SU | G39: E4 | H39: M1 | I39: M2 | J39: M3 | K39: M4 | L39: At homologous | M39: At Name | N39: At Description | O39: Involved in
A40: isotig107909 | B40: -99 | C40: 14.282 | D40: 40.931 | E40: 3.4 | F40: 0 | G40: 0 | H40: 55.764 | I40: 127.052 | J40: 310.848 | K40: 135.751
A41: isotig96968 | B41: -99 | C41: 4.526 | D41: 7.63 | E41: 5.388 | F41: 0 | G41: 8.535 | H41: 155.505 | I41: 167.665 | J41: 160.985 | K41: 192.318
A42: isotig110991 | B42: -99 | C42: 0 | D42: 3.112 | E42: 0 | F42: 0 | G42: 17.409 | H42: 117.738 | I42: 119.242 | J42: 121.697 | K42: 121.29
A43: isotig106733 | B43: -99 | C43: 2.283 | D43: 32.335 | E43: 1.631 | F43: 0 | G43: 27.683 | H43: 108.768 | I43: 71.791 | J43: 102.236 | K43: 151.289 | L43: AT4G28520.2 | M43: CRC | N43: 12S seed storage protein CRC | O43: seed maturation; nutrient reservoir activity
A44: isotig114762 | B44: -99 | C44: 0 | D44: 0 | E44: 0 | F44: 0 | G44: 0 | H44: 54.087 | I44: 39.791 | J44: 95.989 | K44: 70.538
A45: isotig116458 | B45: -99 | C45: 0 | D45: 6.077 | E45: 17.164 | F45: 0 | G45: 9.711 | H45: 65.677 | I45: 70.281 | J45: 94.143 | K45: 80.614
A46: isotig93604 | B46: -99 | C46: 1.438 | D46: 8.725 | E46: 3.081 | F46: 0 | G46: 12.782 | H46: 76.343 | I46: 83.045 | J46: 92.265 | K46: 155.544
A47: isotig112237 | B47: -99 | C47: 3.445 | D47: 3.484 | E47: 2.46 | F47: 0 | G47: 19.489 | H47: 34.968 | I47: 50.372 | J47: 89.966 | K47: 54.889 | L47: AT1G03890.1 | M47: CRD | N47: 12S seed storage protein CRD | O47: seed maturation; nutrient reservoir activity
A48: isotig82478 | B48: -99 | C48: 0 | D48: 8.62 | E48: 2.609 | F48: 0 | G48: 6.888 | H48: 51.337 | I48: 81.005 | J48: 87.215 | K48: 106.189 | L48: AT1G03890.1 | M48: CRD | N48: 12S seed storage protein CRD | O48: seed maturation; nutrient reservoir activity
A49: isotig101740 | B49: -99 | C49: 5.211 | D49: 33.384 | E49: 3.722 | F49: 0 | G49: 4.212 | H49: 29.843 | I49: 77.478 | J49: 71.296 | K49: 90.327 | L49: AT3G22640.1 | M49: PAP85 | N49: cupin family protein | O49: response to abiotic stress; nutrient reservoir activity
A50: isotig114480 | B50: -99 | C50: 0 | D50: 0 | E50: 3.176 | F50: 0 | G50: 3.594 | H50: 10.416 | I50: 32.509 | J50: 69.674 | K50: 108.137
A51: isotig113655 | B51: -99 | C51: 0 | D51: 20.255 | E51: 2.861 | F51: 0 | G51: 19.422 | H51: 34.402 | I51: 38.069 | J51: 68.739 | K51: 104.127
A52: isotig104923 | B52: -99 | C52: 7.994 | D52: 4.043 | E52: 5.71 | F52: 0 | G52: 12.923 | H52: 37.455 | I52: 54.067 | J52: 64.129 | K52: 55.313
A53: isotig102531 | B53: -99 | C53: 1.828 | D53: 11.096 | E53: 1.306 | F53: 0 | G53: 4.433 | H53: 51.399 | I53: 56.148 | J53: 64.126 | K53: 62.87
A54: isotig102395 | B54: -99 | C54: 8.884 | D54: 16.176 | E54: 3.808 | F54: 0 | G54: 1.436 | H54: 65.215 | I54: 68.858 | J54: 63.646 | K54: 47.687
A55: isotig13374 | B55: -99 | C55: 2.429 | D55: 2.457 | E55: 0 | F55: 0 | G55: 0 | H55: 32.246 | I55: 55.057 | J55: 62.535 | K55: 78.432
A56: isotig111247 | B56: -99 | C56: 0 | D56: 0 | E56: 2.253 | F56: 0 | G56: 2.549 | H56: 27.092 | I56: 32.285 | J56: 61.193 | K56: 31.742
A57: isotig112437 | B57: -99 | C57: 3.697 | D57: 14.958 | E57: 2.641 | F57: 0 | G57: 8.964 | H57: 28.869 | I57: 51.359 | J57: 60.693 | K57: 49.609
A58: isotig102633 | B58: -99 | C58: 0 | D58: 0 | E58: 0 | F58: 0 | G58: 0 | H58: 25.333 | I58: 44.804 | J58: 60.52 | K58: 71.041
A59: isotig102758 | B59: -99 | C59: 0 | D59: 20.053 | E59: 5.149 | F59: 0 | G59: 1.457 | H59: 29.555 | I59: 52.711 | J59: 60.52 | K59: 86.157 | L59: AT3G22640.1 | M59: PAP85 | N59: cupin family protein | O59: response to abiotic stress; nutrient reservoir activity
A60: isotig54267 | B60: -99 | C60: 5.176 | D60: 15.706 | E60: 1.848 | F60: 0 | G60: 4.183 | H60: 14.146 | I60: 37.843 | J60: 59.865 | K60: 67.282
A61: isotig103400 | B61: -99 | C61: 0 | D61: 0 | E61: 0 | F61: 0 | G61: 0 | H61: 31.169 | I61: 48.641 | J61: 56.734 | K61: 121.149
A62: PUT-30904 | B62: -99 | C62: 8.446 | D62: 55.528 | E62: 12.065 | F62: 0 | G62: 0 | H62: 29.678 | I62: 49.402 | J62: 53.571 | K62: 24.791 | L62: ATCG00580.1 | M62: PSBE | N62: photosystem II reaction center protein E | O62: photosynthesis
A63: PUT-17171 | B63: -99 | C63: 66.453 | D63: 8.402 | E63: 2.967 | F63: 0 | G63: 0 | H63: 68.11 | I63: 12.147 | J63: 52.689 | K63: 13.933 | L63: AT4G03210.1 | M63: XTH9 | N63: Xyloglucan endotransglucosylase/hydrolase protein 9 | O63: cell wall organization
A64: isotig82101 | B64: -99 | C64: 23.775 | D64: 7.215 | E64: 4.246 | F64: 0 | G64: 5.765 | H64: 64.981 | I64: 58.236 | J64: 52.338 | K64: 46.859 | L64: AT3G03150.1 | M64: 0 | N64: unknown
A65: isotig99811 | B65: -99 | C65: 3.325 | D65: 5.045 | E65: 4.751 | F65: 0 | G65: 13.439 | H65: 48.041 | I65: 51.061 | J65: 52.112 | K65: 75.302 | L65: AT1G03880.1 | M65: CRB | N65: 12S seed storage protein CRB | O65: nutrient reservoir activity; response to ABA
A66: isotig116211 | B66: -99 | C66: 0 | D66: 11.667 | E66: 4.119 | F66: 0 | G66: 0 | H66: 31.525 | I66: 46.385 | J66: 51.644 | K66: 62.879
A67: isotig99566 | B67: -99 | C67: 3.23 | D67: 9.8 | E67: 1.153 | F67: 0 | G67: 13.052 | H67: 26.481 | I67: 61.397 | J67: 50.611 | K67: 44.693 | L67: AT1G03890.1 | M67: CRD | N67: 12S seed storage protein CRD | O67: seed maturation; nutrient reservoir activity
A68: isotig100247 | B68: -99 | C68: 0 | D68: 1.668 | E68: 1.178 | F68: 0 | G68: 1.333 | H68: 30.907 | I68: 56.672 | J68: 50.456 | K68: 84.368
A69: isotig53720 | B69: -99 | C69: 0 | D69: 5.373 | E69: 7.588 | F69: 0 | G69: 3.22 | H69: 12.444 | I69: 35.926 | J69: 46.576 | K69: 22.275

Sheet Up in E4 (E4xM4)
A1: Additional file 2: Differentially expressed transcripts (DETs) in embryos and megagametophytes at different stages of seed development.
A2: The Arabidopsis genes showing the highest sequence similarity to the Scots pine transcript are presented (#N/A = no alignment to genes in the TAIR database. Cut off value 1e-5)
A3: The highest up-regulated transcripts in E4/M4. Samples subjected to pairwise comparison are highlighted in bold
C4: RPKM Embryos | H4: RPKM Megagametophytes | N4: Arabidopsis homologous gene names and annotation
A5: Transcript ID | B5: Fold change | C5: E1 | D5: E2 | E5: E3DO | F5: E3SU | G5: E4 | H5: M1 | I5: M2 | J5: M3 | K5: M4 | L5: At locus ID | M5: At name | N5: At annotation | O5: Involved in
A6: isotig04236 | B6: 10.02454817 | C6: 32.099 | D6: 162.718 | E6: 322.59 | F6: 587.741 | G6: 978.037 | H6: 0.874 | I6: 0 | J6: 0 | K6: 0.939
A7: isotig31840 | B7: 8.26915658 | C7: 0.933 | D7: 23.587 | E7: 47.305 | F7: 59.679 | G7: 241.252 | H7: 0.728 | I7: 0 | J7: 2.088 | K7: 0.782
A8: isotig101972 | B8: 7.811082773 | C8: 2337.312 | D8: 1557.12 | E8: 774.994 | F8: 1080.524 | G8: 331.704 | H8: 2.751 | I8: 0 | J8: 0 | K8: 1.477
A9: isotig03831 | B9: 7.429739679 | C9: 16.25 | D9: 111.537 | E9: 99.077 | F9: 108.775 | G9: 83.966 | H9: 4.985 | I9: 1.273 | J9: 3.898 | K9: 0.487 | L9: AT5G67070.1 | M9: RALFL34 | N9: Protein RALF-like 34 | O9: cell-cell signaling; hormone activity
A10: isotig43821 | B10: 7.261526024 | C10: 5.249 | D10: 8.343 | E10: 16.068 | F10: 21.447 | G10: 48.18 | H10: 1.171 | I10: 1.371 | J10: 0.28 | K10: 0.314
A11: isotig75051 | B11: 7.031510856 | C11: 69.346 | D11: 120.863 | E11: 172.985 | F11: 556.51 | G11: 468.228 | H11: 5.832 | I11: 0.78 | J11: 0 | K11: 3.579 | L11: AT2G18050.1 | M11: HIS1-3 | N11: histone H1-3 | O11: nucleosome assembly
A12: isotig45043 | B12: 6.981140973 | C12: 7.35 | D12: 34.85 | E12: 39.375 | F12: 43.568 | G12: 48.64 | H12: 1.794 | I12: 1.679 | J12: 0 | K12: 0.385 | L12: AT3G54000.1 | N12: unknown
A13: isotig55225 | B13: 6.67481391 | C13: 30.481 | D13: 190.126 | E13: 68.945 | F13: 63.732 | G13: 145.08 | H13: 6.612 | I13: 1.238 | J13: 1.264 | K13: 1.42 | L13: ATMG00580.1 | M13: NAD4 | N13: NADH dehydrogenase subunit 4 | O13: oxidation-reduction process
A14: isotig15429 | B14: 6.660758071 | C14: 4.811 | D14: 19.463 | E14: 8.934 | F14: 105.008 | G14: 81.651 | H14: 0 | I14: 0 | J14: 0 | K14: 0.807 | L14: AT2G02850.1 | M14: ARPN | N14: Basic blue protein | O14: anther development
A15: isotig46967 | B15: 6.516927555 | C15: 17.776 | D15: 79.911 | E15: 68.657 | F15: 86.722 | G15: 50.551 | H15: 2.571 | I15: 2.888 | J15: 3.93 | K15: 0.552 | L15: AT2G12646.1 | N15: PLATZ transcription factor family protein | O15: unknown
A16: isotig07360 | B16: 6.438710225 | C16: 71.552 | D16: 115.799 | E16: 115.128 | F16: 326.549 | G16: 273.941 | H16: 7.646 | I16: 0.551 | J16: 0 | K16: 3.158 | L16: AT2G18050.1 | M16: HIS1-3 | N16: histone H1-3 | O16: nucleosome assembly
A17: isotig51083 | B17: 6.321485612 | C17: 5.102 | D17: 6.193 | E17: 7.289 | F17: 29.189 | G17: 68.459 | H17: 4.781 | I17: 0.746 | J17: 1.523 | K17: 0.856 | L17: AT5G55450.1 | N17: Bifunctional inhibitor/lipid-transfer protein | O17: negative regulation of defense response
A18: isotig58592 | B18: 6.316419719 | C18: 22.081 | D18: 51.24 | E18: 46.39 | F18: 69.092 | G18: 86.788 | H18: 1.691 | I18: 0.633 | J18: 1.292 | K18: 1.089 | L18: AT1G72830.1 | M18: NFYA3 | N18: Nuclear transcription factor Y subunit A-3 | O18: DNA binding
A19: isotig27987 | B19: 6.305019716 | C19: 1.055 | D19: 26.668 | E19: 35.404 | F19: 39.691 | G19: 69.896 | H19: 0.824 | I19: 0 | J19: 0 | K19: 0.884
A20: isotig30508 | B20: 6.2721862 | C20: 4.571 | D20: 3.596 | E20: 9.07 | F20: 16.44 | G20: 164.625 | H20: 1.983 | I20: 5.571 | J20: 3.79 | K20: 2.13
A21: isotig82424 | B21: 6.232121833 | C21: 85.894 | D21: 179.797 | E21: 160.199 | F21: 326.86 | G21: 451.257 | H21: 26.085 | I21: 7.851 | J21: 7.122 | K21: 6.003 | L21: AT1G09200.1 | M21: HTR2 | N21: Histone H3.2 | O21: nucleosome assembly
A22: isotig80888 | B22: 6.191087499 | C22: 269.835 | D22: 417.087 | E22: 373.798 | F22: 547.779 | G22: 787.41 | H22: 21.892 | I22: 4.271 | J22: 2.615 | K22: 10.777 | L22: ATMG00580.1 | M22: NAD4 | N22: NADH dehydrogenase subunit 4 | O22: oxidation-reduction process
A23: isotig83308 | B23: 6.180568075 | C23: 822.445 | D23: 673.619 | E23: 1025.89 | F23: 1868.158 | G23: 1106.928 | H23: 57.783 | I23: 18.626 | J23: 9.052 | K23: 15.261
A24: isotig37162 | B24: 6.173655965 | C24: 0.351 | D24: 10.66 | E24: 7.779 | F24: 6.611 | G24: 21.295 | H24: 0.274 | I24: 0 | J24: 0.786 | K24: 0.295 | L24: AT3G24140.1 | M24: FAMA | N24: Transcription factor FAMA | O24: negative regulation of cell division
A25: isotig51059 | B25: 6.156195129 | C25: 23.714 | D25: 150.634 | E25: 119.246 | F25: 565.477 | G25: 340.401 | H25: 12.592 | I25: 1.387 | J25: 2.831 | K25: 4.773 | L25: AT5G59320.1 | M25: LTP3 | N25: Non-specific lipid-transfer protein 3 | O25: response to abscisic acid; response to water deprivation
A26: isotig114214 | B26: 6.15608951 | C26: 650.028 | D26: 333.077 | E26: 1020.251 | F26: 2343.423 | G26: 1023.125 | H26: 33.395 | I26: 18.761 | J26: 15.956 | K26: 14.347
A27: isotig13900 | B27: 6.07559893 | C27: 21.662 | D27: 85.652 | E27: 37.627 | F27: 70.039 | G27: 27.854 | H27: 3.076 | I27: 1.08 | J27: 1.47 | K27: 0.413 | L27: AT1G08880.1 | M27: HTA5 | N27: Probable histone H2AXa | O27: nucleosome assembly
A28: isotig28907 | B28: 6.04492216 | C28: 7.996 | D28: 39.54 | E28: 48.229 | F28: 96.298 | G28: 98.376 | H28: 0 | I28: 0.65 | J28: 0 | K28: 1.49
A29: isotig87650 | B29: 5.998392197 | C29: 7.694 | D29: 585.015 | E29: 423.194 | F29: 1747.17 | G29: 412.532 | H29: 7.01 | I29: 0 | J29: 0 | K29: 6.453 | L29: AT5G59320.1 | M29: LTP3 | N29: Non-specific lipid-transfer protein 3 | O29: response to abscisic acid; response to water deprivation
A30: isotig113860 | B30: 5.991006938 | C30: 53.335 | D30: 336.136 | E30: 216.855 | F30: 200.729 | G30: 437.711 | H30: 32.038 | I30: 11.999 | J30: 3.062 | K30: 6.882
A31: isotig66863 | B31: 5.947507769 | C31: 35.328 | D31: 76.341 | E31: 94.628 | F31: 90.654 | G31: 41.533 | H31: 3.135 | I31: 0.587 | J31: 0.599 | K31: 0.673
A32: isotig73073 | B32: 5.947244858 | C32: 28.689 | D32: 84.985 | E32: 87.093 | F32: 125.714 | G32: 53.002 | H32: 1.6 | I32: 1.498 | J32: 0 | K32: 0.859
A33: isotig20999 | B33: 5.600302922 | C33: 21.018 | D33: 150.313 | E33: 158.297 | F33: 123.514 | G33: 135.012 | H33: 4.031 | I33: 4.314 | J33: 6.329 | K33: 2.783 | L33: AT5G26340.1 | M33: STP13 | N33: Sugar transport protein 13 | O33: transport; response to stress
A34: isotig74937 | B34: 5.590729298 | C34: 11.963 | D34: 52.803 | E34: 59.039 | F34: 103.146 | G34: 131.854 | H34: 4.246 | I34: 4.771 | J34: 5.681 | K34: 2.736 | L34: AT4G32460.1 | N34: Protein of unknown function, DUF642 | O34: unknown
A35: isotig66714 | B35: 5.561220462 | C35: 12.685 | D35: 19.246 | E35: 18.688 | F35: 28.048 | G35: 31.399 | H35: 8.668 | I35: 0.58 | J35: 0.592 | K35: 0.665 | L35: AT3G25980.1 | M35: MAD2 | N35: Mitotic spindle checkpoint protein MAD2 | O35: regulation of mitotic cell cycle
A37: Top most up-regulated transcripts in E4 when M4 RPKM value was equal to 0. Pairwise comparison E4 x M4
C38: RPKM Embryos | H38: RPKM Megagametophytes | N38: Arabidopsis homologous gene names and annotation
A39: Transcript ID | B39: Fold change | C39: E1 | D39: E2 | E39: E3DO | F39: E3SU | G39: E4 | H39: M1 | I39: M2 | J39: M3 | K39: M4 | L39: At Transcript ID | M39: At Name | N39: At Description | O39: Involved in
A40: isotig37986 | B40: 99 | C40: 0 | D40: 2.369 | E40: 1.673 | F40: 59.928 | G40: 219.548 | H40: 0 | I40: 0 | J40: 0 | K40: 0 | L40: AT5G59320.1 | M40: LTP3 | N40: Non-specific lipid-transfer protein 3 | O40: response to abscisic acid; response to water deprivation
A41: isotig98833 | B41: 99 | C41: 980.78 | D41: 494.428 | E41: 351.408 | F41: 472.717 | G41: 153.43 | H41: 0 | I41: 0 | J41: 1.18 | K41: 0 | L41: AT5G23870.2 | M41: PAE9 | N41: Pectin acetylesterase 9 | O41: cell wall loosening
A42: isotig62874 | B42: 99 | C42: 0 | D42: 9.476 | E42: 5.353 | F42: 24.445 | G42: 139.321 | H42: 0.488 | I42: 0 | J42: 3.262 | K42: 0
A43: isotig21424 | B43: 99 | C43: 4.461 | D43: 4.512 | E43: 0.797 | F43: 63.796 | G43: 130.698 | H43: 0.871 | I43: 0 | J43: 0.832 | K43: 0 | L43: AT5G59320.1 | M43: LTP3 | N43: Non-specific lipid-transfer protein 3 | O43: response to abscisic acid; response to water deprivation
A44: isotig12568 | B44: 99 | C44: 0.969 | D44: 43.128 | E44: 57.104 | F44: 27.718 | G44: 110.827 | H44: 0 | I44: 0 | J44: 0 | K44: 0 | L44: AT1G77380.1 | M44: AAP3 | N44: Amino acid permease 3 | O44: amino acid transmembrane transport
A45: isotig03987 | B45: 99 | C45: 1.149 | D45: 13.945 | E45: 13.54 | F45: 31.996 | G45: 109.105 | H45: 0 | I45: 0 | J45: 0 | K45: 0
A46: isotig25556 | B46: 99 | C46: 170.334 | D46: 77.394 | E46: 85.883 | F46: 112.444 | G46: 92.764 | H46: 0 | I46: 0 | J46: 0 | K46: 0 | L46: AT1G10460.1 | M46: GLP7 | N46: Germin-like protein subfamily 1 member 1 | O46: manganese ion binding; nutrient reservoir activity
A47: isotig59371 | B47: 99 | C47: 1.879 | D47: 25.652 | E47: 15.096 | F47: 88.023 | G47: 87.685 | H47: 0.367 | I47: 0 | J47: 0 | K47: 0 | L47: AT5G09970.1 | M47: CYP78A7 | N47: Cytochrome P450 78A7 | O47: regulation of growth
A48: isotig67423 | B48: 99 | C48: 0 | D48: 2.508 | E48: 4.723 | F48: 4.355 | G48: 62.8 | H48: 0 | I48: 0 | J48: 0 | K48: 0
A49: PUT-24489 | B49: 99 | C49: 132.164 | D49: 93.174 | E49: 71.517 | F49: 126.613 | G49: 61.504 | H49: 6.255 | I49: 2.928 | J49: 2.989 | K49: 0
A50: isotig45589 | B50: 99 | C50: 2.49 | D50: 9.447 | E50: 5.337 | F50: 24.37 | G50: 61.394 | H50: 2.917 | I50: 0.91 | J50: 1.858 | K50: 0 | L50: AT2G12646.1 | M50: 0 | N50: PLATZ transcription factor family protein | O50: unknown
A51: isotig103195 | B51: 99 | C51: 0 | D51: 40.909 | E51: 64.342 | F51: 44.28 | G51: 57.948 | H51: 0 | I51: 0 | J51: 0 | K51: 0
A52: PUT-65564 | B52: 99 | C52: 23.38 | D52: 19.708 | E52: 50.101 | F52: 87.994 | G52: 53.542 | H52: 9.129 | I52: 2.849 | J52: 5.816 | K52: 0
A53: isotig114994 | B53: 99 | C53: 0 | D53: 6.38 | E53: 0 | F53: 0 | G53: 50.983 | H53: 0 | I53: 0 | J53: 0 | K53: 0
A54: isotig60120 | B54: 99 | C54: 13.075 | D54: 26.958 | E54: 21.192 | F54: 34.823 | G54: 50.399 | H54: 0.785 | I54: 1.103 | J54: 0.751 | K54: 0 | L54: AT1G68810.1 | M54: BHLH30 | N54: Transcription factor bHLH30 | O54: regulation of transcription
A55: isotig114306 | B55: 99 | C55: 21.658 | D55: 39.432 | E55: 12.376 | F55: 26.083 | G55: 49.014 | H55: 27.06 | I55: 25.337 | J55: 16.162 | K55: 0
A56: isotig28506 | B56: 99 | C56: 2.573 | D56: 34.484 | E56: 39.973 | F56: 58.586 | G56: 48.351 | H56: 0.502 | I56: 0 | J56: 0.48 | K56: 0
A57: isotig71041 | B57: 99 | C57: 0 | D57: 0 | E57: 6.233 | F57: 40.867 | G57: 47.016 | H57: 0 | I57: 0 | J57: 0 | K57: 0
A58: isotig63058 | B58: 99 | C58: 3.16 | D58: 31.962 | E58: 29.793 | F58: 27.114 | G58: 46.993 | H58: 0 | I58: 0 | J58: 0 | K58: 0 | L58: AT2G40220.1 | M58: ABI4 | N58: Ethylene-responsive transcription factor ABI4 | O58: response to osmotic stress
A59: isotig114701 | B59: 99 | C59: 0 | D59: 0 | E59: 6.965 | F59: 7.34 | G59: 43.348 | H59: 0 | I59: 0 | J59: 0 | K59: 0
A60: isotig85711 | B60: 99 | C60: 6.23 | D60: 17.644 | E60: 11.57 | F60: 30.012 | G60: 40.283 | H60: 2.919 | I60: 0.911 | J60: 0 | K60: 0 | L60: AT1G09200.1 | M60: HTR2 | N60: Histone H3.2 | O60: nucleosome assembly
A61: isotig71508 | B61: 99 | C61: 0.985 | D61: 1.992 | E61: 1.407 | F61: 14.823 | G61: 39.792 | H61: 0 | I61: 2.16 | J61: 2.939 | K61: 0 | L61: AT2G30420.1 | M61: ETC2 | N61: MYB-like transcription factor ETC2 | O61: negative regulation of trichome patterning
A62: isotig81143 | B62: 99 | C62: 1.172 | D62: 0 | E62: 0 | F62: 0.882 | G62: 39.792 | H62: 0 | I62: 0 | J62: 0 | K62: 0 | L62: AT4G15630.1 | M62: 0 | N62: CASP-like protein 1E1 | O62: oxidation-reduction process
A63: isotig53493 | B63: 99 | C63: 0 | D63: 8.497 | E63: 8.572 | F63: 14.453 | G63: 39.768 | H63: 0 | I63: 1.755 | J63: 0 | K63: 0
A64: isotig49361 | B64: 99 | C64: 0 | D64: 0 | E64: 1.314 | F64: 5.54 | G64: 38.667 | H64: 0 | I64: 0 | J64: 0 | K64: 0
A65: isotig69379 | B65: 99 | C65: 1.82 | D65: 18.41 | E65: 14.301 | F65: 14.385 | G65: 38.249 | H65: 0 | I65: 0 | J65: 0 | K65: 0 | L65: AT2G40260.1 | M65: 0 | N65: Homeodomain-like superfamily protein | O65: regulation of transcription
A66: isotig69819 | B66: 99 | C66: 0 | D66: 0.937 | E66: 15.888 | F66: 24.416 | G66: 38.202 | H66: 0 | I66: 0 | J66: 0.692 | K66: 0
A67: isotig77461 | B67: 99 | C67: 2.221 | D67: 38.184 | E67: 33.309 | F67: 80.23 | G67: 37.691 | H67: 5.202 | I67: 0 | J67: 1.657 | K67: 0 | L67: AT3G46940.1 | M67: DUT | N67: Deoxyuridine 5'-triphosphate nucleotidohydrolase | O67: DNA repair
A68: isotig40071 | B68: 99 | C68: 9.704 | D68: 29.737 | E68: 24.873 | F68: 15.898 | G68: 37.372 | H68: 0 | I68: 0 | J68: 0 | K68: 0 | L68: AT1G51190.1 | M68: PLT2 | N68: AP2-like ethylene-responsive transcription factor PLT2 | O68: pattern specification process; stem cell maintenance
A69: isotig87399 | B69: 99 | C69: 0 | D69: 27.171 | E69: 84.973 | F69: 25.997 | G69: 37.22 | H69: 0 | I69: 1.871 | J69: 4.773 | K69: 0

Sheet Up in M4 (E4xM4)
A1: Additional file 2: Differentially expressed transcripts (DETs) in embryos and megagametophytes at different stages of seed development.
A2: The Arabidopsis genes showing the highest sequence similarity to the Scots pine transcript are presented (#N/A = no alignment to genes in the TAIR database. Cut off value 1e-5)
A3: The highest up-regulated transcripts in M4/E4. Samples subjected to pairwise comparison are highlighted in bold
C4: RPKM Embryos | H4: RPKM Megagametophytes | N4: Arabidopsis homologous gene names and annotation
A5: Transcript ID | B5: Fold change | C5: E1 | D5: E2 | E5: E3DO | F5: E3SU | G5: E4 | H5: M1 | I5: M2 | J5: M3 | K5: M4 | L5: At locus ID | M5: At name | N5: At annotation | O5: Involved in
A6: isotig99197 | B6: -7.536877471 | C6: 19.193 | D6: 72.803 | E6: 20.564 | F6: 13.243 | G6: 1.293 | H6: 116.158 | I6: 187.118 | J6: 193.358 | K6: 240.118
A7: isotig100129 | B7: -7.130032696 | C7: 6.596 | D7: 35.029 | E7: 16.491 | F7: 8.689 | G7: 1.333 | H7: 95.296 | I7: 346.064 | J7: 292.888 | K7: 186.717
A8: isotig101116 | B8: -7.075355107 | C8: 8.467 | D8: 8.564 | E8: 9.676 | F8: 2.549 | G8: 1.369 | H8: 97.854 | I8: 245.157 | J8: 296.96 | K8: 184.628
A9: isotig111359 | B9: -6.69697558 | C9: 0 | D9: 64.816 | E9: 22.886 | F9: 33.764 | G9: 2.59 | H9: 72.558 | I9: 203.814 | J9: 172.147 | K9: 268.714
A10: isotig88106 | B10: -6.545829937 | C10: 6.461 | D10: 13.071 | E10: 7.384 | F10: 0.973 | G10: 1.044 | H10: 71.648 | I10: 70.866 | J10: 81.968 | K10: 97.542
A11: isotig75915 | B11: -6.356559902 | C11: 0 | D11: 6.658 | E11: 6.269 | F11: 1.651 | G11: 0.887 | H11: 5.997 | I11: 14.438 | J11: 46.662 | K11: 72.684 | L11: AT4G11600.1 | M11: GPX6 | N11: Probable phospholipid hydroperoxide glutathione peroxidase 6, mitochondrial | O11: response to oxidative stress
A12: isotig77512 | B12: -6.223825332 | C12: 22.353 | D12: 24.871 | E12: 15.168 | F12: 25.239 | G12: 0.903 | H12: 68.95 | I12: 71.098 | J12: 101.753 | K12: 67.491
A13: isotig77133 | B13: -6.203794146 | C13: 5.533 | D13: 13.432 | E13: 12.647 | F13: 19.159 | G13: 0.894 | H13: 40.616 | I13: 78.488 | J13: 73.497 | K13: 65.897
A14: isotig92898 | B14: -6.161342614 | C14: 4.17 | D14: 19.686 | E14: 14.895 | F14: 6.278 | G14: 1.124 | H14: 102.044 | I14: 68.103 | J14: 92.327 | K14: 80.448
A15: isotig98153 | B15: -6.151257774 | C15: 29.547 | D15: 102.243 | E15: 19.994 | F15: 23.411 | G15: 2.514 | H15: 195.513 | I15: 200.121 | J15: 189.156 | K15: 178.681
A16: isotig92965 | B16: -6.110711774 | C16: 13.921 | D16: 80.261 | E16: 22.87 | F16: 2.096 | G16: 5.626 | H16: 213.066 | I16: 359.304 | J16: 512.136 | K16: 388.783
A17: isotig53589 | B17: -6.064563102 | C17: 3.799 | D17: 19.213 | E17: 5.427 | F17: 2.86 | G17: 2.047 | H17: 38.566 | I17: 99.072 | J17: 98.277 | K17: 137.004 | L17: AT1G03890.1 | M17: CRD | N17: 12S seed storage protein CRD | O17: seed maturation; nutrient reservoir activity
A18: isotig49233 | B18: -6.006594762 | C18: 0 | D18: 3.617 | E18: 17.24 | F18: 4.71 | G18: 0.723 | H18: 19.546 | I18: 16.341 | J18: 30.686 | K18: 46.484
A19: isotig100247 | B19: -5.983947216 | C19: 0 | D19: 1.668 | E19: 1.178 | F19: 0 | G19: 1.333 | H19: 30.907 | I19: 56.672 | J19: 50.456 | K19: 84.368
A20: isotig22888 | B20: -5.983094796 | C20: 3.134 | D20: 5.073 | E20: 5.373 | F20: 0 | G20: 0.507 | H20: 13.217 | I20: 33.46 | J20: 26.196 | K20: 32.07
A21: isotig101416 | B21: -5.979344431 | C21: 12.077 | D21: 87.253 | E21: 166.361 | F21: 74.02 | G21: 20.916 | H21: 561.792 | I21: 1190.808 | J21: 1421.313 | K21: 1319.595
A22: isotig81911 | B22: -5.974699891 | C22: 39.322 | D22: 55.442 | E22: 44.258 | F22: 49.33 | G22: 4.815 | H22: 103.284 | I22: 289.255 | J22: 352.118 | K22: 302.803
A23: isotig91688 | B23: -5.960038769 | C23: 1.362 | D23: 2.755 | E23: 2.919 | F23: 1.025 | G23: 1.101 | H23: 28.717 | I23: 28.881 | J23: 44.721 | K23: 68.539
A24: isotig37510 | B24: -5.948850057 | C24: 1.886 | D24: 13.993 | E24: 4.941 | F24: 3.787 | G24: 1.016 | H24: 13.749 | I24: 42.76 | J24: 43.171 | K24: 62.759
A25: isotig72490 | B25: -5.911968075 | C25: 3.09 | D25: 3.125 | E25: 4.414 | F25: 6.977 | G25: 0.832 | H25: 18.497 | I25: 28.614 | J25: 32.277 | K25: 50.096
A26: isotig102758 | B26: -5.885895233 | C26: 0 | D26: 20.053 | E26: 5.149 | F26: 0 | G26: 1.457 | H26: 29.555 | I26: 52.711 | J26: 60.52 | K26: 86.157 | L26: AT3G22640.1 | M26: PAP85 | N26: cupin family protein | O26: response to abiotic stress; nutrient reservoir activity
A27: isotig102265 | B27: -5.739811028 | C27: 3.592 | D27: 29.064 | E27: 35.917 | F27: 16.221 | G27: 8.709 | H27: 286.081 | I27: 345.339 | J27: 438.216 | K27: 465.397
A28: isotig53419 | B28: -5.711550374 | C28: 4.053 | D28: 5.466 | E28: 2.895 | F28: 1.017 | G28: 2.184 | H28: 30.597 | I28: 41.491 | J28: 88.723 | K28: 114.446 | L28: AT5G25940.1 | N28: early nodulin-related | O28: response to ethylene
A29: isotig36496 | B29: -5.696561318 | C29: 1.249 | D29: 11.371 | E29: 3.569 | F29: 0 | G29: 1.01 | H29: 9.754 | I29: 20.093 | J29: 42.877 | K29: 52.379
A30: isotig97313 | B30: -5.687351473 | C30: 229.514 | D30: 648.798 | E30: 30.399 | F30: 43.476 | G30: 3.686 | H30: 51.038 | I30: 117.805 | J30: 115.693 | K30: 189.941
A31: isotig42503 | B31: -5.669146149 | C31: 0 | D31: 2.856 | E31: 2.016 | F31: 1.062 | G31: 0.38 | H31: 4.777 | I31: 14.793 | J31: 10.533 | K31: 19.336 | L31: AT5G09220.1 | M31: AAP2 | N31: Amino acid permease 2 | O31: acidic amino acid transport
A32: isotig92769 | B32: -5.663446968 | C32: 92.885 | D32: 158.457 | E32: 199.039 | F32: 102.265 | G32: 35.856 | H32: 859.576 | I32: 1630.987 | J32: 1986.307 | K32: 1817.311
A33: isotig37575 | B33: -5.592381867 | C33: 7.751 | D33: 45.359 | E33: 13.05 | F33: 8.334 | G33: 3.58 | H33: 70.901 | I33: 138.036 | J33: 161.122 | K33: 172.726
A34: isotig32012 | B34: -5.57663695 | C34: 2.006 | D34: 6.089 | E34: 3.583 | F34: 1.51 | G34: 0.811 | H34: 23.503 | I34: 27.875 | J34: 27.7 | K34: 38.704
A35: isotig104997 | B35: -5.576551543 | C35: 2.035 | D35: 6.175 | E35: 0 | F35: 1.532 | G35: 1.645 | H35: 12.712 | I35: 35.707 | J35: 31.887 | K35: 78.501
A37: The hichest up-regulated transcripts in M4 when E4 RPKM value was equal to 0
C38: RPKM Embryos | H38: RPKM Megagametophytes | N38: Arabidopsis homologous gene names and annotation
A39: ID | B39: Fold change | C39: E1 | D39: E2 | E39: E3DO | F39: E3SU | G39: E4 | H39: M1 | I39: M2 | J39: M3 | K39: M4 | L39: At homologous | M39: At Name | N39: At Description | O39: Involved in
A40: isotig107909 | B40: -99 | C40: 14.282 | D40: 40.931 | E40: 3.4 | F40: 0 | G40: 0 | H40: 55.764 | I40: 127.052 | J40: 310.848 | K40: 135.751
A41: isotig103400 | B41: -99 | C41: 0 | D41: 0 | E41: 0 | F41: 0 | G41: 0 | H41: 31.169 | I41: 48.641 | J41: 56.734 | K41: 121.149
A42: isotig13374 | B42: -99 | C42: 2.429 | D42: 2.457 | E42: 0 | F42: 0 | G42: 0 | H42: 32.246 | I42: 55.057 | J42: 62.535 | K42: 78.432
A43: isotig13086 | B43: -99 | C43: 11.117 | D43: 1.606 | E43: 2.836 | F43: 4.184 | G43: 0 | H43: 34.725 | I43: 49.932 | J43: 79.403 | K43: 73.923
A44: isotig102633 | B44: -99 | C44: 0 | D44: 0 | E44: 0 | F44: 0 | G44: 0 | H44: 25.333 | I44: 44.804 | J44: 60.52 | K44: 71.041
A45: isotig114762 | B45: -99 | C45: 0 | D45: 0 | E45: 0 | F45: 0 | G45: 0 | H45: 54.087 | I45: 39.791 | J45: 95.989 | K45: 70.538
A46: isotig107511 | B46: -99 | C46: 0 | D46: 4.672 | E46: 1.65 | F46: 1.738 | G46: 0 | H46: 30.659 | I46: 25.33 | J46: 68.937 | K46: 67.794
A47: isotig100320 | B47: -99 | C47: 0 | D47: 10.041 | E47: 4.727 | F47: 3.736 | G47: 0 | H47: 29.716 | I47: 91.941 | J47: 67.906 | K47: 66.606 | L47: AT3G22640.1 | M47: PAP85 | N47: cupin family protein | O47: response to abiotic stress; nutrient reservoir activity
A48: isotig74114 | B48: -99 | C48: 4.192 | D48: 14.841 | E48: 12.726 | F48: 6.311 | G48: 0 | H48: 46.649 | I48: 47.511 | J48: 77.426 | K48: 65.044
A49: isotig101959 | B49: -99 | C49: 7.145 | D49: 3.614 | E49: 7.656 | F49: 5.378 | G49: 0 | H49: 18.134 | I49: 30.04 | J49: 19.995 | K49: 64.42
A50: isotig116211 | B50: -99 | C50: 0 | D50: 11.667 | E50: 4.119 | F50: 0 | G50: 0 | H50: 31.525 | I50: 46.385 | J50: 51.644 | K50: 62.879
A51: isotig113022 | B51: -99 | C51: 7.476 | D51: 7.562 | E51: 18.69 | F51: 2.814 | G51: 0 | H51: 32.109 | I51: 57.396 | J51: 52.999 | K51: 56.43
A52: isotig104953 | B52: -99 | C52: 21.984 | D52: 16.172 | E52: 11.42 | F52: 1.504 | G52: 0 | H52: 26.531 | I52: 75.987 | J52: 74.568 | K52: 55.313
A53: isotig105617 | B53: -99 | C53: 2.103 | D53: 12.761 | E53: 3.004 | F53: 0 | G53: 0 | H53: 9.852 | I53: 33.823 | J53: 23.536 | K53: 51.14
A54: isotig76307 | B54: -99 | C54: 15.292 | D54: 7.734 | E54: 12.483 | F54: 8.222 | G54: 0 | H54: 34.118 | I54: 56.704 | J54: 31.788 | K54: 50.384 | L54: AT3G52800.1 | M54: SAP6 | N54: Zinc finger A20 and AN1 domain-containing stress-associated protein 6 | O54: response to chitin
A55: isotig102927 | B55: -99 | C55: 7.261 | D55: 12.853 | E55: 23.338 | F55: 38.257 | G55: 0 | H55: 22.68 | I55: 49.108 | J55: 63.665 | K55: 50.239
A56: isotig83372 | B56: -99 | C56: 8.451 | D56: 3.663 | E56: 5.174 | F56: 2.726 | G56: 0 | H56: 15.084 | I56: 14.123 | J56: 40.54 | K56: 47.588 | L56: AT3G62550.1 | N56: Adenine nucleotide alpha hydrolases-like superfamily protein | O56: response to stress
A57: isotig73776 | B57: -99 | C57: 0 | D57: 9.472 | E57: 1.486 | F57: 0 | G57: 0 | H57: 8.125 | I57: 28.149 | J57: 38.045 | K57: 45.377 | L57: AT5G18140.1 | N57: Chaperone DnaJ-domain superfamily protein
A58: isotig116304 | B58: -99 | C58: 0 | D58: 0 | E58: 0 | F58: 4.495 | G58: 0 | H58: 32.644 | I58: 34.932 | J58: 31.195 | K58: 45.077
A59: isotig81319 | B59: -99 | C59: 0 | D59: 4.821 | E59: 4.256 | F59: 3.588 | G59: 0 | H59: 36.289 | I59: 73.185 | J59: 53.351 | K59: 43.971
A60: isotig111394 | B60: -99 | C60: 0 | D60: 0 | E60: 2.281 | F60: 0 | G60: 0 | H60: 27.435 | I60: 37.364 | J60: 45.284 | K60: 42.858
A61: isotig51777 | B61: -99 | C61: 0 | D61: 2.195 | E61: 6.976 | F61: 5.718 | G61: 0 | H61: 12.712 | I61: 37.294 | J61: 45.35 | K61: 42.778 | L61: AT1G63060.1 | N61: unknown protein | O61: unknown
A62: isotig106692 | B62: -99 | C62: 8.853 | D62: 8.955 | E62: 4.743 | F62: 1.666 | G62: 0 | H62: 10.37 | I62: 43.694 | J62: 69.368 | K62: 42.694 | L62: AT5G25940.1 | N62: early nodulin-related | O62: response to ethylene
A63: isotig114674 | B63: -99 | C63: 5.229 | D63: 0 | E63: 3.735 | F63: 7.872 | G63: 0 | H63: 16.334 | I63: 30.589 | J63: 31.218 | K63: 39.472
A64: isotig116114 | B64: -99 | C64: 178.782 | D64: 0 | E64: 8.239 | F64: 0 | G64: 0 | H64: 63.05 | I64: 8.434 | J64: 30.126 | K64: 38.695
A65: isotig99692 | B65: -99 | C65: 32.4 | D65: 19.663 | E65: 16.2 | F65: 19.51 | G65: 0 | H65: 17.711 | I65: 34.351 | J65: 42.311 | K65: 38.043
A66: isotig113695 | B66: -99 | C66: 0 | D66: 12.25 | E66: 2.884 | F66: 3.039 | G66: 0 | H66: 31.525 | I66: 26.566 | J66: 27.113 | K66: 37.244
A67: isotig116710 | B67: -99 | C67: 0 | D67: 0 | E67: 4.506 | F67: 0 | G67: 0 | H67: 4.926 | I67: 18.449 | J67: 9.414 | K67: 37.032
A68: isotig97158 | B68: -99 | C68: 4.694 | D68: 3.165 | E68: 2.235 | F68: 2.356 | G68: 0 | H68: 8.553 | I68: 35.467 | J68: 31.527 | K68: 36.745
A69: isotig70333 | B69: -99 | C69: 1.892 | D69: 0.957 | E69: 2.703 | F69: 0 | G69: 0 | H69: 4.432 | I69: 26.973 | J69: 12.705 | K69: 36.492
